Workbook

Sheet data
B1: bi | C1: r/a | D1: $ | E1: daily profit | F1: daily roi% | G1: daily abi | H1: daily bi | I1: daily #mtt | J1: sold % | K1: c | L1: $ to investors | T1: daily bi | AA1: 0 | AB1: 0 | AG1: bi | AH1: $ | AI1: payback | AJ1: month | AK1: month bi | AL1: month $ | AM1: #days | AN1: from/to | AO1: #months | BJ1: 0
E2: =IF(A2=0,"",IF(B2<>"",SUM(AH2:AH10000)-SUM(AG2:AG10000)-SUM(E3:E10000),"")) ->  | F2: =IF(A2=0,"",IF(T2=0,"",E2/T2)) ->  | G2: =IF(A3=0,IF(B3="",IF(B2=0,"",U2/S2),""),U2/S2) ->  | H2: =IF(A3=0,IF(B3="",IF(B2=0,"",U2),""),U2) ->  | I2: =IF(A3=0,IF(B3="",IF(B2=0,"",S2),""),S2) ->  | L2: =IF(A2=0,"",SUM(AI2:AI10000)-SUM(L3:L10000)) ->  | S2: =IF(A2=0,S1+1,1) -> 1 | T2: =IF(A2=0,"",SUM(AG2:AG10000)-SUM(T3:T10000)) ->  | U2: =IF(A3=0,IF(B3="",IF(B2=0,"",SUM($AG$1:AG2)-SUM($U$1:U1)),""),SUM($AG$1:AG2)-SUM($U$1:U1)) ->  | AA2: =AA1+AH2-AG2 -> 0 | AB2: =IF(AJ2=statistics!$D$3,AB1+AH2-AG2,) -> 0 | AC2: =IF(AND(ROW(AC2)>=statistics!$C$55,ROW(AC2)<=statistics!$D$55),AC1+AH2-AG2,) -> 0 | AD2: =IF(AND(statistics!$C$55<=ROW(A2),ROW(A2)<=statistics!$D$55)=TRUE,AH2-AG2+AA1-INDEX(AA:AA,statistics!$C$55),"") ->  | AG2: =IF(J2=0,B2+C2,(B2+C2)-(B2+C2)*J2*K2) -> 0 | AH2: =IF(J2=0,D2,D2*(1-J2)) -> 0 | AI2: =IF(J2=0,,D2*J2) -> 0 | AJ2: =IF(A2<>0,MONTH(A2),IF(B2="","",AJ1)) ->  | AK2: =IF(statistics!$D$3<>0,IF(AJ2=statistics!$D$3,AG2,""),IF(B2<>"",AG2,"")) ->  | AL2: =IF(statistics!$D$3<>0,IF(AJ2=statistics!$D$3,IF(AH2=0,"",AH2),""),IF(AH2<>0,AH2,"")) ->  | AM2: =IF(statistics!$D$3<>0,IF(AJ2=statistics!$D$3,IF(A2=0,"",1),""),IF(A2=0,"",1)) ->  | AN2: =IF(statistics!$D$3=AJ3,ROW(AN2),"") ->  | AO2: =AJ2 ->  | AQ2: =IF(B2=0,"",IF(D2=0,IF(D1=0,AQ1+1,1),"")) ->  | AX2: =J2*D2-J2*K2*(B2+C2) -> 0 | BA2: =statistics!P3 -> 11 | BB2: =IF(B2=$BA$2,ROW(),"") ->  | BE2: =IF(B2=$BA$2,INDEX(D:D,SMALL(BB:BB,CELL("содержимое",BG2)))-INDEX(B:B,SMALL(BB:BB,CELL("содержимое",BG2)))-INDEX(C:C,SMALL(BB:BB,CELL("содержимое",BG2))),"") ->  | BG2: =IF($BA$2=B2,BG1+1,BG1) -> 0 | BI2: =INDEX(BE:BE,SMALL(BB:BB,CELL("содержимое",BK2))) ->  | BJ2: =BJ1+BI2 ->  | BK2: =BK1+1 -> 1
E3: =IF(A3=0,"",IF(B3<>"",SUM(AH3:AH10001)-SUM(AG3:AG10001)-SUM(E4:E10001),"")) ->  | L3: =IF(A3=0,"",SUM(AI3:AI10001)-SUM(L4:L10001)) ->  | S3: 2 | T3: =IF(A3=0,"",SUM(AG3:AG10001)-SUM(T4:T10001)) ->  | U3: =IF(A4=0,IF(B4="",IF(B3=0,"",SUM($AG$1:AG3)-SUM($U$1:U2)),""),SUM($AG$1:AG3)-SUM($U$1:U2)) ->  | AA3: =AA2+AH3-AG3 -> 0 | AB3: =IF(AJ3=statistics!$D$3,AB2+AH3-AG3,) -> 0 | AC3: =IF(AND(ROW(AC3)>=statistics!$C$55,ROW(AC3)<=statistics!$D$55),AC2+AH3-AG3,) -> 0 | AD3: =IF(AND(statistics!$C$55<=ROW(A3),ROW(A3)<=statistics!$D$55)=TRUE,AH3-AG3+AA2-INDEX(AA:AA,statistics!$C$55),"") ->  | AG3: =IF(J3=0,B3+C3,(B3+C3)-(B3+C3)*J3*K3) -> 0 | AH3: =IF(J3=0,D3,D3*(1-J3)) -> 0 | AI3: =IF(J3=0,,D3*J3) -> 0 | AK3: =IF(statistics!$D$3<>0,IF(AJ3=statistics!$D$3,AG3,""),IF(B3<>"",AG3,"")) ->  | AL3: =IF(statistics!$D$3<>0,IF(AJ3=statistics!$D$3,IF(AH3=0,"",AH3),""),IF(AH3<>0,AH3,"")) ->  | AM3: =IF(statistics!$D$3<>0,IF(AJ3=statistics!$D$3,IF(A3=0,"",1),""),IF(A3=0,"",1)) ->  | AN3: =IF(AK3<>"",IF(AK2=0,ROW(AK3),ROW(AK3)),"") ->  | AO3: =IF(A3<>0,IF(MONTH(A3)=AJ2,"",MONTH(A3)),"") ->  | AQ3: =IF(B3=0,"",IF(D3=0,IF(D2=0,AQ2+1,1),"")) ->  | AX3: =J3*D3-J3*K3*(B3+C3) -> 0 | BB3: =IF(B3=$BA$2,ROW(),"") ->  | BE3: =IF(B3=$BA$2,INDEX(D:D,SMALL(BB:BB,CELL("содержимое",BG3)))-INDEX(B:B,SMALL(BB:BB,CELL("содержимое",BG3)))-INDEX(C:C,SMALL(BB:BB,CELL("содержимое",BG3))),"") ->  | BG3: =IF($BA$2=B3,BG2+1,BG2) -> 0 | BI3: =INDEX(BE:BE,SMALL(BB:BB,CELL("содержимое",BK3))) ->  | BJ3: =BJ2+BI3 ->  | BK3: =BK2+1 -> 2
S4: 3 | U4: =IF(A5=0,IF(B5="",IF(B4=0,"",SUM($AG$1:AG4)-SUM($U$1:U3)),""),SUM($AG$1:AG4)-SUM($U$1:U3)) ->  | AA4: 0 | AB4: =IF(AJ4=statistics!$D$3,AB3+AH4-AG4,) -> 0 | AC4: =IF(AND(ROW(AC4)>=statistics!$C$55,ROW(AC4)<=statistics!$D$55),AC3+AH4-AG4,) -> 0 | AD4: =IF(AND(statistics!$C$55<=ROW(A4),ROW(A4)<=statistics!$D$55)=TRUE,AH4-AG4+AA3-INDEX(AA:AA,statistics!$C$55),"") ->  | AG4: =B4+C4 -> 0 | AH4: =D4 -> 0 | AI4: 0 | AK4: =IF(statistics!$D$3<>0,IF(AJ4=statistics!$D$3,AG4,""),IF(B4<>"",AG4,"")) ->  | AL4: =IF(statistics!$D$3<>0,IF(AJ4=statistics!$D$3,IF(AH4=0,"",AH4),""),IF(AH4<>0,AH4,"")) ->  | AM4: =IF(statistics!$D$3<>0,IF(AJ4=statistics!$D$3,IF(A4=0,"",1),""),IF(A4=0,"",1)) ->  | AN4: =IF(AK4<>"",IF(AK3=0,ROW(AK4),ROW(AK4)),"") ->  | AO4: =IF(A4<>0,IF(MONTH(A4)=AJ3,"",MONTH(A4)),"") ->  | AX4: 0 | BG4: 0 | BK4: 3
S5: 4 | U5: =IF(A6=0,IF(B6="",IF(B5=0,"",SUM($AG$1:AG5)-SUM($U$1:U4)),""),SUM($AG$1:AG5)-SUM($U$1:U4)) ->  | AA5: 0 | AB5: =IF(AJ5=statistics!$D$3,AB4+AH5-AG5,) -> 0 | AC5: =IF(AND(ROW(AC5)>=statistics!$C$55,ROW(AC5)<=statistics!$D$55),AC4+AH5-AG5,) -> 0 | AD5: =IF(AND(statistics!$C$55<=ROW(A5),ROW(A5)<=statistics!$D$55)=TRUE,AH5-AG5+AA4-INDEX(AA:AA,statistics!$C$55),"") ->  | AG5: =IF(J5=0,B5+C5,(B5+C5)-(B5+C5)*J5*K5) -> 0 | AH5: =IF(J5=0,D5,D5*(1-J5)) -> 0 | AI5: 0 | AK5: =IF(statistics!$D$3<>0,IF(AJ5=statistics!$D$3,AG5,""),IF(B5<>"",AG5,"")) ->  | AL5: =IF(statistics!$D$3<>0,IF(AJ5=statistics!$D$3,IF(AH5=0,"",AH5),""),IF(AH5<>0,AH5,"")) ->  | AM5: =IF(statistics!$D$3<>0,IF(AJ5=statistics!$D$3,IF(A5=0,"",1),""),IF(A5=0,"",1)) ->  | AX5: 0 | BG5: 0 | BK5: 4
S6: 5 | U6: =IF(A7=0,IF(B7="",IF(B6=0,"",SUM($AG$1:AG6)-SUM($U$1:U5)),""),SUM($AG$1:AG6)-SUM($U$1:U5)) ->  | AA6: 0 | AB6: =IF(AJ6=statistics!$D$3,AB5+AH6-AG6,) -> 0 | AC6: =IF(AND(ROW(AC6)>=statistics!$C$55,ROW(AC6)<=statistics!$D$55),AC5+AH6-AG6,) -> 0 | AD6: =IF(AND(statistics!$C$55<=ROW(A6),ROW(A6)<=statistics!$D$55)=TRUE,AH6-AG6+AA5-INDEX(AA:AA,statistics!$C$55),"") ->  | AG6: 0 | AH6: 0 | AI6: 0 | AK6: =IF(statistics!$D$3<>0,IF(AJ6=statistics!$D$3,AG6,""),IF(B6<>"",AG6,"")) ->  | AL6: =IF(statistics!$D$3<>0,IF(AJ6=statistics!$D$3,IF(AH6=0,"",AH6),""),IF(AH6<>0,AH6,"")) ->  | AM6: =IF(statistics!$D$3<>0,IF(AJ6=statistics!$D$3,IF(A6=0,"",1),""),IF(A6=0,"",1)) ->  | AX6: 0 | BG6: 0 | BK6: 5
S7: 6 | U7: =IF(A8=0,IF(B8="",IF(B7=0,"",SUM($AG$1:AG7)-SUM($U$1:U6)),""),SUM($AG$1:AG7)-SUM($U$1:U6)) ->  | AA7: 0 | AB7: =IF(AJ7=statistics!$D$3,AB6+AH7-AG7,) -> 0 | AC7: =IF(AND(ROW(AC7)>=statistics!$C$55,ROW(AC7)<=statistics!$D$55),AC6+AH7-AG7,) -> 0 | AD7: =IF(AND(statistics!$C$55<=ROW(A7),ROW(A7)<=statistics!$D$55)=TRUE,AH7-AG7+AA6-INDEX(AA:AA,statistics!$C$55),"") ->  | AG7: 0 | AH7: 0 | AI7: 0 | AK7: =IF(statistics!$D$3<>0,IF(AJ7=statistics!$D$3,AG7,""),IF(B7<>"",AG7,"")) ->  | AL7: =IF(statistics!$D$3<>0,IF(AJ7=statistics!$D$3,IF(AH7=0,"",AH7),""),IF(AH7<>0,AH7,"")) ->  | AM7: =IF(statistics!$D$3<>0,IF(AJ7=statistics!$D$3,IF(A7=0,"",1),""),IF(A7=0,"",1)) ->  | AX7: 0 | BG7: 0 | BK7: 6
S8: 7 | U8: =IF(A9=0,IF(B9="",IF(B8=0,"",SUM($AG$1:AG8)-SUM($U$1:U7)),""),SUM($AG$1:AG8)-SUM($U$1:U7)) ->  | AA8: 0 | AB8: =IF(AJ8=statistics!$D$3,AB7+AH8-AG8,) -> 0 | AC8: =IF(AND(ROW(AC8)>=statistics!$C$55,ROW(AC8)<=statistics!$D$55),AC7+AH8-AG8,) -> 0 | AD8: =IF(AND(statistics!$C$55<=ROW(A8),ROW(A8)<=statistics!$D$55)=TRUE,AH8-AG8+AA7-INDEX(AA:AA,statistics!$C$55),"") ->  | AG8: 0 | AH8: 0 | AI8: 0 | AK8: =IF(statistics!$D$3<>0,IF(AJ8=statistics!$D$3,AG8,""),IF(B8<>"",AG8,"")) ->  | AL8: =IF(statistics!$D$3<>0,IF(AJ8=statistics!$D$3,IF(AH8=0,"",AH8),""),IF(AH8<>0,AH8,"")) ->  | AM8: =IF(statistics!$D$3<>0,IF(AJ8=statistics!$D$3,IF(A8=0,"",1),""),IF(A8=0,"",1)) ->  | AX8: 0 | BG8: 0 | BK8: 7
S9: 8 | U9: =IF(A10=0,IF(B10="",IF(B9=0,"",SUM($AG$1:AG9)-SUM($U$1:U8)),""),SUM($AG$1:AG9)-SUM($U$1:U8)) ->  | AA9: 0 | AB9: =IF(AJ9=statistics!$D$3,AB8+AH9-AG9,) -> 0 | AC9: =IF(AND(ROW(AC9)>=statistics!$C$55,ROW(AC9)<=statistics!$D$55),AC8+AH9-AG9,) -> 0 | AD9: =IF(AND(statistics!$C$55<=ROW(A9),ROW(A9)<=statistics!$D$55)=TRUE,AH9-AG9+AA8-INDEX(AA:AA,statistics!$C$55),"") ->  | AG9: 0 | AH9: 0 | AI9: 0 | AK9: =IF(statistics!$D$3<>0,IF(AJ9=statistics!$D$3,AG9,""),IF(B9<>"",AG9,"")) ->  | AL9: =IF(statistics!$D$3<>0,IF(AJ9=statistics!$D$3,IF(AH9=0,"",AH9),""),IF(AH9<>0,AH9,"")) ->  | AM9: =IF(statistics!$D$3<>0,IF(AJ9=statistics!$D$3,IF(A9=0,"",1),""),IF(A9=0,"",1)) ->  | AX9: 0 | BG9: 0 | BK9: 8
S10: 9 | U10: =IF(A11=0,IF(B11="",IF(B10=0,"",SUM($AG$1:AG10)-SUM($U$1:U9)),""),SUM($AG$1:AG10)-SUM($U$1:U9)) ->  | AA10: 0 | AB10: =IF(AJ10=statistics!$D$3,AB9+AH10-AG10,) -> 0 | AC10: =IF(AND(ROW(AC10)>=statistics!$C$55,ROW(AC10)<=statistics!$D$55),AC9+AH10-AG10,) -> 0 | AD10: =IF(AND(statistics!$C$55<=ROW(A10),ROW(A10)<=statistics!$D$55)=TRUE,AH10-AG10+AA9-INDEX(AA:AA,statistics!$C$55),"") ->  | AG10: 0 | AH10: 0 | AI10: 0 | AK10: =IF(statistics!$D$3<>0,IF(AJ10=statistics!$D$3,AG10,""),IF(B10<>"",AG10,"")) ->  | AL10: =IF(statistics!$D$3<>0,IF(AJ10=statistics!$D$3,IF(AH10=0,"",AH10),""),IF(AH10<>0,AH10,"")) ->  | AM10: =IF(statistics!$D$3<>0,IF(AJ10=statistics!$D$3,IF(A10=0,"",1),""),IF(A10=0,"",1)) ->  | AX10: 0 | BG10: 0 | BK10: 9
S11: 10 | U11: =IF(A12=0,IF(B12="",IF(B11=0,"",SUM($AG$1:AG11)-SUM($U$1:U10)),""),SUM($AG$1:AG11)-SUM($U$1:U10)) ->  | AA11: 0 | AB11: =IF(AJ11=statistics!$D$3,AB10+AH11-AG11,) -> 0 | AC11: =IF(AND(ROW(AC11)>=statistics!$C$55,ROW(AC11)<=statistics!$D$55),AC10+AH11-AG11,) -> 0 | AD11: =IF(AND(statistics!$C$55<=ROW(A11),ROW(A11)<=statistics!$D$55)=TRUE,AH11-AG11+AA10-INDEX(AA:AA,statistics!$C$55),"") ->  | AG11: 0 | AH11: 0 | AI11: 0 | AK11: =IF(statistics!$D$3<>0,IF(AJ11=statistics!$D$3,AG11,""),IF(B11<>"",AG11,"")) ->  | AL11: =IF(statistics!$D$3<>0,IF(AJ11=statistics!$D$3,IF(AH11=0,"",AH11),""),IF(AH11<>0,AH11,"")) ->  | AM11: =IF(statistics!$D$3<>0,IF(AJ11=statistics!$D$3,IF(A11=0,"",1),""),IF(A11=0,"",1)) ->  | AX11: 0 | BG11: 0 | BK11: 10
S12: 11 | U12: =IF(A13=0,IF(B13="",IF(B12=0,"",SUM($AG$1:AG12)-SUM($U$1:U11)),""),SUM($AG$1:AG12)-SUM($U$1:U11)) ->  | AA12: 0 | AB12: =IF(AJ12=statistics!$D$3,AB11+AH12-AG12,) -> 0 | AC12: =IF(AND(ROW(AC12)>=statistics!$C$55,ROW(AC12)<=statistics!$D$55),AC11+AH12-AG12,) -> 0 | AD12: =IF(AND(statistics!$C$55<=ROW(A12),ROW(A12)<=statistics!$D$55)=TRUE,AH12-AG12+AA11-INDEX(AA:AA,statistics!$C$55),"") ->  | AG12: 0 | AH12: 0 | AI12: 0 | AK12: =IF(statistics!$D$3<>0,IF(AJ12=statistics!$D$3,AG12,""),IF(B12<>"",AG12,"")) ->  | AL12: =IF(statistics!$D$3<>0,IF(AJ12=statistics!$D$3,IF(AH12=0,"",AH12),""),IF(AH12<>0,AH12,"")) ->  | AM12: =IF(statistics!$D$3<>0,IF(AJ12=statistics!$D$3,IF(A12=0,"",1),""),IF(A12=0,"",1)) ->  | AX12: 0 | BG12: 0 | BK12: 11
S13: 12 | U13: =IF(A14=0,IF(B14="",IF(B13=0,"",SUM($AG$1:AG13)-SUM($U$1:U12)),""),SUM($AG$1:AG13)-SUM($U$1:U12)) ->  | AA13: 0 | AB13: =IF(AJ13=statistics!$D$3,AB12+AH13-AG13,) -> 0 | AC13: =IF(AND(ROW(AC13)>=statistics!$C$55,ROW(AC13)<=statistics!$D$55),AC12+AH13-AG13,) -> 0 | AD13: =IF(AND(statistics!$C$55<=ROW(A13),ROW(A13)<=statistics!$D$55)=TRUE,AH13-AG13+AA12-INDEX(AA:AA,statistics!$C$55),"") ->  | AG13: 0 | AH13: 0 | AI13: 0 | AK13: =IF(statistics!$D$3<>0,IF(AJ13=statistics!$D$3,AG13,""),IF(B13<>"",AG13,"")) ->  | AL13: =IF(statistics!$D$3<>0,IF(AJ13=statistics!$D$3,IF(AH13=0,"",AH13),""),IF(AH13<>0,AH13,"")) ->  | AM13: =IF(statistics!$D$3<>0,IF(AJ13=statistics!$D$3,IF(A13=0,"",1),""),IF(A13=0,"",1)) ->  | AX13: 0 | BG13: 0 | BK13: 12
S14: 13 | U14: =IF(A15=0,IF(B15="",IF(B14=0,"",SUM($AG$1:AG14)-SUM($U$1:U13)),""),SUM($AG$1:AG14)-SUM($U$1:U13)) ->  | AA14: 0 | AB14: =IF(AJ14=statistics!$D$3,AB13+AH14-AG14,) -> 0 | AC14: =IF(AND(ROW(AC14)>=statistics!$C$55,ROW(AC14)<=statistics!$D$55),AC13+AH14-AG14,) -> 0 | AD14: =IF(AND(statistics!$C$55<=ROW(A14),ROW(A14)<=statistics!$D$55)=TRUE,AH14-AG14+AA13-INDEX(AA:AA,statistics!$C$55),"") ->  | AG14: 0 | AH14: 0 | AI14: 0 | AK14: =IF(statistics!$D$3<>0,IF(AJ14=statistics!$D$3,AG14,""),IF(B14<>"",AG14,"")) ->  | AL14: =IF(statistics!$D$3<>0,IF(AJ14=statistics!$D$3,IF(AH14=0,"",AH14),""),IF(AH14<>0,AH14,"")) ->  | AM14: =IF(statistics!$D$3<>0,IF(AJ14=statistics!$D$3,IF(A14=0,"",1),""),IF(A14=0,"",1)) ->  | AX14: 0 | BG14: 0 | BK14: 13
S15: 14 | U15: =IF(A16=0,IF(B16="",IF(B15=0,"",SUM($AG$1:AG15)-SUM($U$1:U14)),""),SUM($AG$1:AG15)-SUM($U$1:U14)) ->  | AA15: 0 | AB15: =IF(AJ15=statistics!$D$3,AB14+AH15-AG15,) -> 0 | AC15: =IF(AND(ROW(AC15)>=statistics!$C$55,ROW(AC15)<=statistics!$D$55),AC14+AH15-AG15,) -> 0 | AD15: =IF(AND(statistics!$C$55<=ROW(A15),ROW(A15)<=statistics!$D$55)=TRUE,AH15-AG15+AA14-INDEX(AA:AA,statistics!$C$55),"") ->  | AG15: 0 | AH15: 0 | AI15: 0 | AK15: =IF(statistics!$D$3<>0,IF(AJ15=statistics!$D$3,AG15,""),IF(B15<>"",AG15,"")) ->  | AL15: =IF(statistics!$D$3<>0,IF(AJ15=statistics!$D$3,IF(AH15=0,"",AH15),""),IF(AH15<>0,AH15,"")) ->  | AM15: =IF(statistics!$D$3<>0,IF(AJ15=statistics!$D$3,IF(A15=0,"",1),""),IF(A15=0,"",1)) ->  | AX15: 0 | BG15: 0 | BK15: 14
G16: =IF(A17=0,IF(B17="",IF(B16=0,"",U16/S16),""),U16/S16) ->  | H16: =IF(A17=0,IF(B17="",IF(B16=0,"",U16),""),U16) ->  | I16: =IF(A17=0,IF(B17="",IF(B16=0,"",S16),""),S16) ->  | S16: 15 | U16: =IF(A17=0,IF(B17="",IF(B16=0,"",SUM($AG$1:AG16)-SUM($U$1:U15)),""),SUM($AG$1:AG16)-SUM($U$1:U15)) ->  | AA16: 0 | AB16: =IF(AJ16=statistics!$D$3,AB15+AH16-AG16,) -> 0 | AC16: =IF(AND(ROW(AC16)>=statistics!$C$55,ROW(AC16)<=statistics!$D$55),AC15+AH16-AG16,) -> 0 | AD16: =IF(AND(statistics!$C$55<=ROW(A16),ROW(A16)<=statistics!$D$55)=TRUE,AH16-AG16+AA15-INDEX(AA:AA,statistics!$C$55),"") ->  | AG16: 0 | AH16: 0 | AI16: 0 | AK16: =IF(statistics!$D$3<>0,IF(AJ16=statistics!$D$3,AG16,""),IF(B16<>"",AG16,"")) ->  | AL16: =IF(statistics!$D$3<>0,IF(AJ16=statistics!$D$3,IF(AH16=0,"",AH16),""),IF(AH16<>0,AH16,"")) ->  | AM16: =IF(statistics!$D$3<>0,IF(AJ16=statistics!$D$3,IF(A16=0,"",1),""),IF(A16=0,"",1)) ->  | AX16: 0 | BG16: 0 | BK16: 15
G17: =IF(A18=0,IF(B18="",IF(B17=0,"",U17/S17),""),U17/S17) ->  | S17: 16 | U17: =IF(A18=0,IF(B18="",IF(B17=0,"",SUM($AG$1:AG17)-SUM($U$1:U16)),""),SUM($AG$1:AG17)-SUM($U$1:U16)) ->  | AA17: 0 | AB17: =IF(AJ17=statistics!$D$3,AB16+AH17-AG17,) -> 0 | AC17: =IF(AND(ROW(AC17)>=statistics!$C$55,ROW(AC17)<=statistics!$D$55),AC16+AH17-AG17,) -> 0 | AD17: =IF(AND(statistics!$C$55<=ROW(A17),ROW(A17)<=statistics!$D$55)=TRUE,AH17-AG17+AA16-INDEX(AA:AA,statistics!$C$55),"") ->  | AG17: 0 | AH17: 0 | AI17: 0 | AK17: =IF(statistics!$D$3<>0,IF(AJ17=statistics!$D$3,AG17,""),IF(B17<>"",AG17,"")) ->  | AL17: =IF(statistics!$D$3<>0,IF(AJ17=statistics!$D$3,IF(AH17=0,"",AH17),""),IF(AH17<>0,AH17,"")) ->  | AM17: =IF(statistics!$D$3<>0,IF(AJ17=statistics!$D$3,IF(A17=0,"",1),""),IF(A17=0,"",1)) ->  | AX17: 0 | BG17: 0 | BK17: 16
S18: 17 | U18: =IF(A19=0,IF(B19="",IF(B18=0,"",SUM($AG$1:AG18)-SUM($U$1:U17)),""),SUM($AG$1:AG18)-SUM($U$1:U17)) ->  | AA18: 0 | AB18: =IF(AJ18=statistics!$D$3,AB17+AH18-AG18,) -> 0 | AC18: =IF(AND(ROW(AC18)>=statistics!$C$55,ROW(AC18)<=statistics!$D$55),AC17+AH18-AG18,) -> 0 | AD18: =IF(AND(statistics!$C$55<=ROW(A18),ROW(A18)<=statistics!$D$55)=TRUE,AH18-AG18+AA17-INDEX(AA:AA,statistics!$C$55),"") ->  | AG18: 0 | AH18: 0 | AI18: 0 | AK18: =IF(statistics!$D$3<>0,IF(AJ18=statistics!$D$3,AG18,""),IF(B18<>"",AG18,"")) ->  | AL18: =IF(statistics!$D$3<>0,IF(AJ18=statistics!$D$3,IF(AH18=0,"",AH18),""),IF(AH18<>0,AH18,"")) ->  | AM18: =IF(statistics!$D$3<>0,IF(AJ18=statistics!$D$3,IF(A18=0,"",1),""),IF(A18=0,"",1)) ->  | AX18: 0 | BG18: 0 | BK18: 17
S19: 18 | U19: =IF(A20=0,IF(B20="",IF(B19=0,"",SUM($AG$1:AG19)-SUM($U$1:U18)),""),SUM($AG$1:AG19)-SUM($U$1:U18)) ->  | AA19: 0 | AB19: =IF(AJ19=statistics!$D$3,AB18+AH19-AG19,) -> 0 | AC19: =IF(AND(ROW(AC19)>=statistics!$C$55,ROW(AC19)<=statistics!$D$55),AC18+AH19-AG19,) -> 0 | AD19: =IF(AND(statistics!$C$55<=ROW(A19),ROW(A19)<=statistics!$D$55)=TRUE,AH19-AG19+AA18-INDEX(AA:AA,statistics!$C$55),"") ->  | AG19: 0 | AH19: 0 | AI19: 0 | AK19: =IF(statistics!$D$3<>0,IF(AJ19=statistics!$D$3,AG19,""),IF(B19<>"",AG19,"")) ->  | AL19: =IF(statistics!$D$3<>0,IF(AJ19=statistics!$D$3,IF(AH19=0,"",AH19),""),IF(AH19<>0,AH19,"")) ->  | AM19: =IF(statistics!$D$3<>0,IF(AJ19=statistics!$D$3,IF(A19=0,"",1),""),IF(A19=0,"",1)) ->  | AX19: 0 | BG19: 0 | BK19: 18
S20: 19 | U20: =IF(A21=0,IF(B21="",IF(B20=0,"",SUM($AG$1:AG20)-SUM($U$1:U19)),""),SUM($AG$1:AG20)-SUM($U$1:U19)) ->  | AA20: 0 | AB20: =IF(AJ20=statistics!$D$3,AB19+AH20-AG20,) -> 0 | AC20: =IF(AND(ROW(AC20)>=statistics!$C$55,ROW(AC20)<=statistics!$D$55),AC19+AH20-AG20,) -> 0 | AD20: =IF(AND(statistics!$C$55<=ROW(A20),ROW(A20)<=statistics!$D$55)=TRUE,AH20-AG20+AA19-INDEX(AA:AA,statistics!$C$55),"") ->  | AG20: 0 | AH20: 0 | AI20: 0 | AK20: =IF(statistics!$D$3<>0,IF(AJ20=statistics!$D$3,AG20,""),IF(B20<>"",AG20,"")) ->  | AL20: =IF(statistics!$D$3<>0,IF(AJ20=statistics!$D$3,IF(AH20=0,"",AH20),""),IF(AH20<>0,AH20,"")) ->  | AM20: =IF(statistics!$D$3<>0,IF(AJ20=statistics!$D$3,IF(A20=0,"",1),""),IF(A20=0,"",1)) ->  | AX20: 0 | BG20: 0 | BK20: 19
S21: 20 | U21: =IF(A22=0,IF(B22="",IF(B21=0,"",SUM($AG$1:AG21)-SUM($U$1:U20)),""),SUM($AG$1:AG21)-SUM($U$1:U20)) ->  | AA21: 0 | AB21: =IF(AJ21=statistics!$D$3,AB20+AH21-AG21,) -> 0 | AC21: =IF(AND(ROW(AC21)>=statistics!$C$55,ROW(AC21)<=statistics!$D$55),AC20+AH21-AG21,) -> 0 | AD21: =IF(AND(statistics!$C$55<=ROW(A21),ROW(A21)<=statistics!$D$55)=TRUE,AH21-AG21+AA20-INDEX(AA:AA,statistics!$C$55),"") ->  | AG21: 0 | AH21: 0 | AI21: 0 | AK21: =IF(statistics!$D$3<>0,IF(AJ21=statistics!$D$3,AG21,""),IF(B21<>"",AG21,"")) ->  | AL21: =IF(statistics!$D$3<>0,IF(AJ21=statistics!$D$3,IF(AH21=0,"",AH21),""),IF(AH21<>0,AH21,"")) ->  | AM21: =IF(statistics!$D$3<>0,IF(AJ21=statistics!$D$3,IF(A21=0,"",1),""),IF(A21=0,"",1)) ->  | AX21: 0 | BG21: 0 | BK21: 20
S22: 21 | U22: =IF(A23=0,IF(B23="",IF(B22=0,"",SUM($AG$1:AG22)-SUM($U$1:U21)),""),SUM($AG$1:AG22)-SUM($U$1:U21)) ->  | AA22: 0 | AB22: =IF(AJ22=statistics!$D$3,AB21+AH22-AG22,) -> 0 | AC22: =IF(AND(ROW(AC22)>=statistics!$C$55,ROW(AC22)<=statistics!$D$55),AC21+AH22-AG22,) -> 0 | AD22: =IF(AND(statistics!$C$55<=ROW(A22),ROW(A22)<=statistics!$D$55)=TRUE,AH22-AG22+AA21-INDEX(AA:AA,statistics!$C$55),"") ->  | AG22: 0 | AH22: 0 | AI22: 0 | AK22: =IF(statistics!$D$3<>0,IF(AJ22=statistics!$D$3,AG22,""),IF(B22<>"",AG22,"")) ->  | AL22: =IF(statistics!$D$3<>0,IF(AJ22=statistics!$D$3,IF(AH22=0,"",AH22),""),IF(AH22<>0,AH22,"")) ->  | AM22: =IF(statistics!$D$3<>0,IF(AJ22=statistics!$D$3,IF(A22=0,"",1),""),IF(A22=0,"",1)) ->  | AX22: 0 | BG22: 0 | BK22: 21
S23: 22 | U23: =IF(A24=0,IF(B24="",IF(B23=0,"",SUM($AG$1:AG23)-SUM($U$1:U22)),""),SUM($AG$1:AG23)-SUM($U$1:U22)) ->  | AA23: 0 | AB23: =IF(AJ23=statistics!$D$3,AB22+AH23-AG23,) -> 0 | AC23: =IF(AND(ROW(AC23)>=statistics!$C$55,ROW(AC23)<=statistics!$D$55),AC22+AH23-AG23,) -> 0 | AD23: =IF(AND(statistics!$C$55<=ROW(A23),ROW(A23)<=statistics!$D$55)=TRUE,AH23-AG23+AA22-INDEX(AA:AA,statistics!$C$55),"") ->  | AG23: 0 | AH23: 0 | AI23: 0 | AK23: =IF(statistics!$D$3<>0,IF(AJ23=statistics!$D$3,AG23,""),IF(B23<>"",AG23,"")) ->  | AL23: =IF(statistics!$D$3<>0,IF(AJ23=statistics!$D$3,IF(AH23=0,"",AH23),""),IF(AH23<>0,AH23,"")) ->  | AM23: =IF(statistics!$D$3<>0,IF(AJ23=statistics!$D$3,IF(A23=0,"",1),""),IF(A23=0,"",1)) ->  | AX23: 0 | BG23: 0 | BK23: 22
S24: 23 | U24: =IF(A25=0,IF(B25="",IF(B24=0,"",SUM($AG$1:AG24)-SUM($U$1:U23)),""),SUM($AG$1:AG24)-SUM($U$1:U23)) ->  | AA24: 0 | AB24: =IF(AJ24=statistics!$D$3,AB23+AH24-AG24,) -> 0 | AC24: =IF(AND(ROW(AC24)>=statistics!$C$55,ROW(AC24)<=statistics!$D$55),AC23+AH24-AG24,) -> 0 | AD24: =IF(AND(statistics!$C$55<=ROW(A24),ROW(A24)<=statistics!$D$55)=TRUE,AH24-AG24+AA23-INDEX(AA:AA,statistics!$C$55),"") ->  | AG24: 0 | AH24: 0 | AI24: 0 | AK24: =IF(statistics!$D$3<>0,IF(AJ24=statistics!$D$3,AG24,""),IF(B24<>"",AG24,"")) ->  | AL24: =IF(statistics!$D$3<>0,IF(AJ24=statistics!$D$3,IF(AH24=0,"",AH24),""),IF(AH24<>0,AH24,"")) ->  | AM24: =IF(statistics!$D$3<>0,IF(AJ24=statistics!$D$3,IF(A24=0,"",1),""),IF(A24=0,"",1)) ->  | AX24: 0 | BG24: 0 | BK24: 23
S25: 24 | U25: =IF(A26=0,IF(B26="",IF(B25=0,"",SUM($AG$1:AG25)-SUM($U$1:U24)),""),SUM($AG$1:AG25)-SUM($U$1:U24)) ->  | AA25: 0 | AB25: =IF(AJ25=statistics!$D$3,AB24+AH25-AG25,) -> 0 | AC25: =IF(AND(ROW(AC25)>=statistics!$C$55,ROW(AC25)<=statistics!$D$55),AC24+AH25-AG25,) -> 0 | AD25: =IF(AND(statistics!$C$55<=ROW(A25),ROW(A25)<=statistics!$D$55)=TRUE,AH25-AG25+AA24-INDEX(AA:AA,statistics!$C$55),"") -> 0 | AG25: 0 | AH25: 0 | AI25: 0 | AK25: =IF(statistics!$D$3<>0,IF(AJ25=statistics!$D$3,AG25,""),IF(B25<>"",AG25,"")) ->  | AL25: =IF(statistics!$D$3<>0,IF(AJ25=statistics!$D$3,IF(AH25=0,"",AH25),""),IF(AH25<>0,AH25,"")) ->  | AM25: =IF(statistics!$D$3<>0,IF(AJ25=statistics!$D$3,IF(A25=0,"",1),""),IF(A25=0,"",1)) ->  | AX25: 0 | BG25: 0 | BK25: 24
S26: 25 | U26: =IF(A27=0,IF(B27="",IF(B26=0,"",SUM($AG$1:AG26)-SUM($U$1:U25)),""),SUM($AG$1:AG26)-SUM($U$1:U25)) ->  | AA26: 0 | AB26: =IF(AJ26=statistics!$D$3,AB25+AH26-AG26,) -> 0 | AC26: =IF(AND(ROW(AC26)>=statistics!$C$55,ROW(AC26)<=statistics!$D$55),AC25+AH26-AG26,) -> 0 | AD26: =IF(AND(statistics!$C$55<=ROW(A26),ROW(A26)<=statistics!$D$55)=TRUE,AH26-AG26+AA25-INDEX(AA:AA,statistics!$C$55),"") -> 0 | AG26: 0 | AH26: 0 | AI26: 0 | AK26: =IF(statistics!$D$3<>0,IF(AJ26=statistics!$D$3,AG26,""),IF(B26<>"",AG26,"")) ->  | AL26: =IF(statistics!$D$3<>0,IF(AJ26=statistics!$D$3,IF(AH26=0,"",AH26),""),IF(AH26<>0,AH26,"")) ->  | AM26: =IF(statistics!$D$3<>0,IF(AJ26=statistics!$D$3,IF(A26=0,"",1),""),IF(A26=0,"",1)) ->  | AX26: 0 | BG26: 0 | BK26: 25
S27: 26 | U27: =IF(A28=0,IF(B28="",IF(B27=0,"",SUM($AG$1:AG27)-SUM($U$1:U26)),""),SUM($AG$1:AG27)-SUM($U$1:U26)) ->  | AA27: 0 | AB27: =IF(AJ27=statistics!$D$3,AB26+AH27-AG27,) -> 0 | AC27: =IF(AND(ROW(AC27)>=statistics!$C$55,ROW(AC27)<=statistics!$D$55),AC26+AH27-AG27,) -> 0 | AD27: =IF(AND(statistics!$C$55<=ROW(A27),ROW(A27)<=statistics!$D$55)=TRUE,AH27-AG27+AA26-INDEX(AA:AA,statistics!$C$55),"") -> 0 | AG27: 0 | AH27: 0 | AI27: 0 | AK27: =IF(statistics!$D$3<>0,IF(AJ27=statistics!$D$3,AG27,""),IF(B27<>"",AG27,"")) ->  | AL27: =IF(statistics!$D$3<>0,IF(AJ27=statistics!$D$3,IF(AH27=0,"",AH27),""),IF(AH27<>0,AH27,"")) ->  | AM27: =IF(statistics!$D$3<>0,IF(AJ27=statistics!$D$3,IF(A27=0,"",1),""),IF(A27=0,"",1)) ->  | AX27: 0 | BG27: 0 | BK27: 26
S28: 27 | U28: =IF(A29=0,IF(B29="",IF(B28=0,"",SUM($AG$1:AG28)-SUM($U$1:U27)),""),SUM($AG$1:AG28)-SUM($U$1:U27)) ->  | AA28: 0 | AB28: =IF(AJ28=statistics!$D$3,AB27+AH28-AG28,) -> 0 | AC28: =IF(AND(ROW(AC28)>=statistics!$C$55,ROW(AC28)<=statistics!$D$55),AC27+AH28-AG28,) -> 0 | AD28: =IF(AND(statistics!$C$55<=ROW(A28),ROW(A28)<=statistics!$D$55)=TRUE,AH28-AG28+AA27-INDEX(AA:AA,statistics!$C$55),"") -> 0 | AG28: 0 | AH28: 0 | AI28: 0 | AK28: =IF(statistics!$D$3<>0,IF(AJ28=statistics!$D$3,AG28,""),IF(B28<>"",AG28,"")) ->  | AL28: =IF(statistics!$D$3<>0,IF(AJ28=statistics!$D$3,IF(AH28=0,"",AH28),""),IF(AH28<>0,AH28,"")) ->  | AM28: =IF(statistics!$D$3<>0,IF(AJ28=statistics!$D$3,IF(A28=0,"",1),""),IF(A28=0,"",1)) ->  | AX28: 0 | BG28: 0 | BK28: 27
S29: 28 | U29: =IF(A30=0,IF(B30="",IF(B29=0,"",SUM($AG$1:AG29)-SUM($U$1:U28)),""),SUM($AG$1:AG29)-SUM($U$1:U28)) ->  | AA29: 0 | AB29: =IF(AJ29=statistics!$D$3,AB28+AH29-AG29,) -> 0 | AC29: =IF(AND(ROW(AC29)>=statistics!$C$55,ROW(AC29)<=statistics!$D$55),AC28+AH29-AG29,) -> 0 | AD29: =IF(AND(statistics!$C$55<=ROW(A29),ROW(A29)<=statistics!$D$55)=TRUE,AH29-AG29+AA28-INDEX(AA:AA,statistics!$C$55),"") -> 0 | AG29: 0 | AH29: 0 | AI29: 0 | AK29: =IF(statistics!$D$3<>0,IF(AJ29=statistics!$D$3,AG29,""),IF(B29<>"",AG29,"")) ->  | AL29: =IF(statistics!$D$3<>0,IF(AJ29=statistics!$D$3,IF(AH29=0,"",AH29),""),IF(AH29<>0,AH29,"")) ->  | AM29: =IF(statistics!$D$3<>0,IF(AJ29=statistics!$D$3,IF(A29=0,"",1),""),IF(A29=0,"",1)) ->  | AX29: 0 | BG29: 0 | BK29: 28
S30: 29 | U30: =IF(A31=0,IF(B31="",IF(B30=0,"",SUM($AG$1:AG30)-SUM($U$1:U29)),""),SUM($AG$1:AG30)-SUM($U$1:U29)) ->  | AA30: 0 | AB30: =IF(AJ30=statistics!$D$3,AB29+AH30-AG30,) -> 0 | AC30: =IF(AND(ROW(AC30)>=statistics!$C$55,ROW(AC30)<=statistics!$D$55),AC29+AH30-AG30,) -> 0 | AD30: =IF(AND(statistics!$C$55<=ROW(A30),ROW(A30)<=statistics!$D$55)=TRUE,AH30-AG30+AA29-INDEX(AA:AA,statistics!$C$55),"") -> 0 | AG30: 0 | AH30: 0 | AI30: 0 | AK30: =IF(statistics!$D$3<>0,IF(AJ30=statistics!$D$3,AG30,""),IF(B30<>"",AG30,"")) ->  | AL30: =IF(statistics!$D$3<>0,IF(AJ30=statistics!$D$3,IF(AH30=0,"",AH30),""),IF(AH30<>0,AH30,"")) ->  | AM30: =IF(statistics!$D$3<>0,IF(AJ30=statistics!$D$3,IF(A30=0,"",1),""),IF(A30=0,"",1)) ->  | AX30: 0 | BG30: 0 | BK30: 29
S31: 30 | U31: =IF(A32=0,IF(B32="",IF(B31=0,"",SUM($AG$1:AG31)-SUM($U$1:U30)),""),SUM($AG$1:AG31)-SUM($U$1:U30)) ->  | AA31: 0 | AB31: =IF(AJ31=statistics!$D$3,AB30+AH31-AG31,) -> 0 | AC31: =IF(AND(ROW(AC31)>=statistics!$C$55,ROW(AC31)<=statistics!$D$55),AC30+AH31-AG31,) -> 0 | AD31: =IF(AND(statistics!$C$55<=ROW(A31),ROW(A31)<=statistics!$D$55)=TRUE,AH31-AG31+AA30-INDEX(AA:AA,statistics!$C$55),"") -> 0 | AG31: 0 | AH31: 0 | AI31: 0 | AK31: =IF(statistics!$D$3<>0,IF(AJ31=statistics!$D$3,AG31,""),IF(B31<>"",AG31,"")) ->  | AL31: =IF(statistics!$D$3<>0,IF(AJ31=statistics!$D$3,IF(AH31=0,"",AH31),""),IF(AH31<>0,AH31,"")) ->  | AM31: =IF(statistics!$D$3<>0,IF(AJ31=statistics!$D$3,IF(A31=0,"",1),""),IF(A31=0,"",1)) ->  | AX31: 0 | BG31: 0 | BK31: 30
S32: 31 | U32: =IF(A33=0,IF(B33="",IF(B32=0,"",SUM($AG$1:AG32)-SUM($U$1:U31)),""),SUM($AG$1:AG32)-SUM($U$1:U31)) ->  | AA32: 0 | AB32: =IF(AJ32=statistics!$D$3,AB31+AH32-AG32,) -> 0 | AC32: =IF(AND(ROW(AC32)>=statistics!$C$55,ROW(AC32)<=statistics!$D$55),AC31+AH32-AG32,) -> 0 | AD32: =IF(AND(statistics!$C$55<=ROW(A32),ROW(A32)<=statistics!$D$55)=TRUE,AH32-AG32+AA31-INDEX(AA:AA,statistics!$C$55),"") -> 0 | AG32: 0 | AH32: 0 | AI32: 0 | AK32: =IF(statistics!$D$3<>0,IF(AJ32=statistics!$D$3,AG32,""),IF(B32<>"",AG32,"")) ->  | AL32: =IF(statistics!$D$3<>0,IF(AJ32=statistics!$D$3,IF(AH32=0,"",AH32),""),IF(AH32<>0,AH32,"")) ->  | AM32: =IF(statistics!$D$3<>0,IF(AJ32=statistics!$D$3,IF(A32=0,"",1),""),IF(A32=0,"",1)) ->  | AX32: 0 | BG32: 0 | BK32: 31
S33: 32 | U33: =IF(A34=0,IF(B34="",IF(B33=0,"",SUM($AG$1:AG33)-SUM($U$1:U32)),""),SUM($AG$1:AG33)-SUM($U$1:U32)) ->  | AA33: 0 | AB33: =IF(AJ33=statistics!$D$3,AB32+AH33-AG33,) -> 0 | AC33: =IF(AND(ROW(AC33)>=statistics!$C$55,ROW(AC33)<=statistics!$D$55),AC32+AH33-AG33,) -> 0 | AD33: =IF(AND(statistics!$C$55<=ROW(A33),ROW(A33)<=statistics!$D$55)=TRUE,AH33-AG33+AA32-INDEX(AA:AA,statistics!$C$55),"") -> 0 | AG33: 0 | AH33: 0 | AI33: 0 | AK33: =IF(statistics!$D$3<>0,IF(AJ33=statistics!$D$3,AG33,""),IF(B33<>"",AG33,"")) ->  | AL33: =IF(statistics!$D$3<>0,IF(AJ33=statistics!$D$3,IF(AH33=0,"",AH33),""),IF(AH33<>0,AH33,"")) ->  | AM33: =IF(statistics!$D$3<>0,IF(AJ33=statistics!$D$3,IF(A33=0,"",1),""),IF(A33=0,"",1)) ->  | AX33: 0 | BG33: 0 | BK33: 32
S34: 33 | U34: =IF(A35=0,IF(B35="",IF(B34=0,"",SUM($AG$1:AG34)-SUM($U$1:U33)),""),SUM($AG$1:AG34)-SUM($U$1:U33)) ->  | AA34: 0 | AB34: =IF(AJ34=statistics!$D$3,AB33+AH34-AG34,) -> 0 | AC34: =IF(AND(ROW(AC34)>=statistics!$C$55,ROW(AC34)<=statistics!$D$55),AC33+AH34-AG34,) -> 0 | AD34: =IF(AND(statistics!$C$55<=ROW(A34),ROW(A34)<=statistics!$D$55)=TRUE,AH34-AG34+AA33-INDEX(AA:AA,statistics!$C$55),"") -> 0 | AG34: 0 | AH34: 0 | AI34: 0 | AK34: =IF(statistics!$D$3<>0,IF(AJ34=statistics!$D$3,AG34,""),IF(B34<>"",AG34,"")) ->  | AL34: =IF(statistics!$D$3<>0,IF(AJ34=statistics!$D$3,IF(AH34=0,"",AH34),""),IF(AH34<>0,AH34,"")) ->  | AM34: =IF(statistics!$D$3<>0,IF(AJ34=statistics!$D$3,IF(A34=0,"",1),""),IF(A34=0,"",1)) ->  | AX34: 0 | BG34: 0 | BK34: 33
S35: 34 | U35: =IF(A36=0,IF(B36="",IF(B35=0,"",SUM($AG$1:AG35)-SUM($U$1:U34)),""),SUM($AG$1:AG35)-SUM($U$1:U34)) ->  | AA35: 0 | AB35: =IF(AJ35=statistics!$D$3,AB34+AH35-AG35,) -> 0 | AC35: =IF(AND(ROW(AC35)>=statistics!$C$55,ROW(AC35)<=statistics!$D$55),AC34+AH35-AG35,) -> 0 | AD35: =IF(AND(statistics!$C$55<=ROW(A35),ROW(A35)<=statistics!$D$55)=TRUE,AH35-AG35+AA34-INDEX(AA:AA,statistics!$C$55),"") -> 0 | AG35: 0 | AH35: 0 | AI35: 0 | AK35: =IF(statistics!$D$3<>0,IF(AJ35=statistics!$D$3,AG35,""),IF(B35<>"",AG35,"")) ->  | AL35: =IF(statistics!$D$3<>0,IF(AJ35=statistics!$D$3,IF(AH35=0,"",AH35),""),IF(AH35<>0,AH35,"")) ->  | AM35: =IF(statistics!$D$3<>0,IF(AJ35=statistics!$D$3,IF(A35=0,"",1),""),IF(A35=0,"",1)) ->  | AX35: 0 | BG35: 0 | BK35: 34
S36: 35 | U36: =IF(A37=0,IF(B37="",IF(B36=0,"",SUM($AG$1:AG36)-SUM($U$1:U35)),""),SUM($AG$1:AG36)-SUM($U$1:U35)) ->  | AA36: 0 | AB36: =IF(AJ36=statistics!$D$3,AB35+AH36-AG36,) -> 0 | AC36: =IF(AND(ROW(AC36)>=statistics!$C$55,ROW(AC36)<=statistics!$D$55),AC35+AH36-AG36,) -> 0 | AD36: =IF(AND(statistics!$C$55<=ROW(A36),ROW(A36)<=statistics!$D$55)=TRUE,AH36-AG36+AA35-INDEX(AA:AA,statistics!$C$55),"") -> 0 | AG36: 0 | AH36: 0 | AI36: 0 | AK36: =IF(statistics!$D$3<>0,IF(AJ36=statistics!$D$3,AG36,""),IF(B36<>"",AG36,"")) ->  | AL36: =IF(statistics!$D$3<>0,IF(AJ36=statistics!$D$3,IF(AH36=0,"",AH36),""),IF(AH36<>0,AH36,"")) ->  | AM36: =IF(statistics!$D$3<>0,IF(AJ36=statistics!$D$3,IF(A36=0,"",1),""),IF(A36=0,"",1)) ->  | AX36: 0 | BG36: 0 | BK36: 35
S37: 36 | U37: =IF(A38=0,IF(B38="",IF(B37=0,"",SUM($AG$1:AG37)-SUM($U$1:U36)),""),SUM($AG$1:AG37)-SUM($U$1:U36)) ->  | AA37: 0 | AB37: =IF(AJ37=statistics!$D$3,AB36+AH37-AG37,) -> 0 | AC37: =IF(AND(ROW(AC37)>=statistics!$C$55,ROW(AC37)<=statistics!$D$55),AC36+AH37-AG37,) -> 0 | AD37: =IF(AND(statistics!$C$55<=ROW(A37),ROW(A37)<=statistics!$D$55)=TRUE,AH37-AG37+AA36-INDEX(AA:AA,statistics!$C$55),"") -> 0 | AG37: 0 | AH37: 0 | AI37: 0 | AK37: =IF(statistics!$D$3<>0,IF(AJ37=statistics!$D$3,AG37,""),IF(B37<>"",AG37,"")) ->  | AL37: =IF(statistics!$D$3<>0,IF(AJ37=statistics!$D$3,IF(AH37=0,"",AH37),""),IF(AH37<>0,AH37,"")) ->  | AM37: =IF(statistics!$D$3<>0,IF(AJ37=statistics!$D$3,IF(A37=0,"",1),""),IF(A37=0,"",1)) ->  | AX37: 0 | BG37: 0 | BK37: 36
S38: 37 | U38: =IF(A39=0,IF(B39="",IF(B38=0,"",SUM($AG$1:AG38)-SUM($U$1:U37)),""),SUM($AG$1:AG38)-SUM($U$1:U37)) ->  | AA38: 0 | AB38: =IF(AJ38=statistics!$D$3,AB37+AH38-AG38,) -> 0 | AC38: =IF(AND(ROW(AC38)>=statistics!$C$55,ROW(AC38)<=statistics!$D$55),AC37+AH38-AG38,) -> 0 | AD38: =IF(AND(statistics!$C$55<=ROW(A38),ROW(A38)<=statistics!$D$55)=TRUE,AH38-AG38+AA37-INDEX(AA:AA,statistics!$C$55),"") -> 0 | AG38: 0 | AH38: 0 | AI38: 0 | AK38: =IF(statistics!$D$3<>0,IF(AJ38=statistics!$D$3,AG38,""),IF(B38<>"",AG38,"")) ->  | AL38: =IF(statistics!$D$3<>0,IF(AJ38=statistics!$D$3,IF(AH38=0,"",AH38),""),IF(AH38<>0,AH38,"")) ->  | AM38: =IF(statistics!$D$3<>0,IF(AJ38=statistics!$D$3,IF(A38=0,"",1),""),IF(A38=0,"",1)) ->  | AX38: 0 | BG38: 0 | BK38: 37
S39: 38 | U39: =IF(A40=0,IF(B40="",IF(B39=0,"",SUM($AG$1:AG39)-SUM($U$1:U38)),""),SUM($AG$1:AG39)-SUM($U$1:U38)) ->  | AA39: 0 | AB39: =IF(AJ39=statistics!$D$3,AB38+AH39-AG39,) -> 0 | AC39: =IF(AND(ROW(AC39)>=statistics!$C$55,ROW(AC39)<=statistics!$D$55),AC38+AH39-AG39,) -> 0 | AD39: =IF(AND(statistics!$C$55<=ROW(A39),ROW(A39)<=statistics!$D$55)=TRUE,AH39-AG39+AA38-INDEX(AA:AA,statistics!$C$55),"") -> 0 | AG39: 0 | AH39: 0 | AI39: 0 | AK39: =IF(statistics!$D$3<>0,IF(AJ39=statistics!$D$3,AG39,""),IF(B39<>"",AG39,"")) ->  | AL39: =IF(statistics!$D$3<>0,IF(AJ39=statistics!$D$3,IF(AH39=0,"",AH39),""),IF(AH39<>0,AH39,"")) ->  | AM39: =IF(statistics!$D$3<>0,IF(AJ39=statistics!$D$3,IF(A39=0,"",1),""),IF(A39=0,"",1)) ->  | AX39: 0 | BG39: 0 | BK39: 38
S40: 39 | U40: =IF(A41=0,IF(B41="",IF(B40=0,"",SUM($AG$1:AG40)-SUM($U$1:U39)),""),SUM($AG$1:AG40)-SUM($U$1:U39)) ->  | AA40: 0 | AB40: =IF(AJ40=statistics!$D$3,AB39+AH40-AG40,) -> 0 | AC40: =IF(AND(ROW(AC40)>=statistics!$C$55,ROW(AC40)<=statistics!$D$55),AC39+AH40-AG40,) -> 0 | AD40: =IF(AND(statistics!$C$55<=ROW(A40),ROW(A40)<=statistics!$D$55)=TRUE,AH40-AG40+AA39-INDEX(AA:AA,statistics!$C$55),"") -> 0 | AG40: 0 | AH40: 0 | AI40: 0 | AK40: =IF(statistics!$D$3<>0,IF(AJ40=statistics!$D$3,AG40,""),IF(B40<>"",AG40,"")) ->  | AL40: =IF(statistics!$D$3<>0,IF(AJ40=statistics!$D$3,IF(AH40=0,"",AH40),""),IF(AH40<>0,AH40,"")) ->  | AM40: =IF(statistics!$D$3<>0,IF(AJ40=statistics!$D$3,IF(A40=0,"",1),""),IF(A40=0,"",1)) ->  | AX40: 0 | BG40: 0 | BK40: 39
S41: 40 | U41: =IF(A42=0,IF(B42="",IF(B41=0,"",SUM($AG$1:AG41)-SUM($U$1:U40)),""),SUM($AG$1:AG41)-SUM($U$1:U40)) ->  | AA41: 0 | AB41: =IF(AJ41=statistics!$D$3,AB40+AH41-AG41,) -> 0 | AC41: =IF(AND(ROW(AC41)>=statistics!$C$55,ROW(AC41)<=statistics!$D$55),AC40+AH41-AG41,) -> 0 | AD41: =IF(AND(statistics!$C$55<=ROW(A41),ROW(A41)<=statistics!$D$55)=TRUE,AH41-AG41+AA40-INDEX(AA:AA,statistics!$C$55),"") -> 0 | AG41: 0 | AH41: 0 | AI41: 0 | AK41: =IF(statistics!$D$3<>0,IF(AJ41=statistics!$D$3,AG41,""),IF(B41<>"",AG41,"")) ->  | AL41: =IF(statistics!$D$3<>0,IF(AJ41=statistics!$D$3,IF(AH41=0,"",AH41),""),IF(AH41<>0,AH41,"")) ->  | AM41: =IF(statistics!$D$3<>0,IF(AJ41=statistics!$D$3,IF(A41=0,"",1),""),IF(A41=0,"",1)) ->  | AX41: 0 | BG41: 0 | BK41: 40
S42: 41 | U42: =IF(A43=0,IF(B43="",IF(B42=0,"",SUM($AG$1:AG42)-SUM($U$1:U41)),""),SUM($AG$1:AG42)-SUM($U$1:U41)) ->  | AA42: 0 | AB42: =IF(AJ42=statistics!$D$3,AB41+AH42-AG42,) -> 0 | AC42: =IF(AND(ROW(AC42)>=statistics!$C$55,ROW(AC42)<=statistics!$D$55),AC41+AH42-AG42,) -> 0 | AD42: =IF(AND(statistics!$C$55<=ROW(A42),ROW(A42)<=statistics!$D$55)=TRUE,AH42-AG42+AA41-INDEX(AA:AA,statistics!$C$55),"") -> 0 | AG42: 0 | AH42: 0 | AI42: 0 | AK42: =IF(statistics!$D$3<>0,IF(AJ42=statistics!$D$3,AG42,""),IF(B42<>"",AG42,"")) ->  | AL42: =IF(statistics!$D$3<>0,IF(AJ42=statistics!$D$3,IF(AH42=0,"",AH42),""),IF(AH42<>0,AH42,"")) ->  | AM42: =IF(statistics!$D$3<>0,IF(AJ42=statistics!$D$3,IF(A42=0,"",1),""),IF(A42=0,"",1)) ->  | AX42: 0 | BG42: 0 | BK42: 41
S43: 42 | U43: =IF(A44=0,IF(B44="",IF(B43=0,"",SUM($AG$1:AG43)-SUM($U$1:U42)),""),SUM($AG$1:AG43)-SUM($U$1:U42)) ->  | AA43: 0 | AB43: =IF(AJ43=statistics!$D$3,AB42+AH43-AG43,) -> 0 | AC43: =IF(AND(ROW(AC43)>=statistics!$C$55,ROW(AC43)<=statistics!$D$55),AC42+AH43-AG43,) -> 0 | AD43: =IF(AND(statistics!$C$55<=ROW(A43),ROW(A43)<=statistics!$D$55)=TRUE,AH43-AG43+AA42-INDEX(AA:AA,statistics!$C$55),"") -> 0 | AG43: 0 | AH43: 0 | AI43: 0 | AK43: =IF(statistics!$D$3<>0,IF(AJ43=statistics!$D$3,AG43,""),IF(B43<>"",AG43,"")) ->  | AL43: =IF(statistics!$D$3<>0,IF(AJ43=statistics!$D$3,IF(AH43=0,"",AH43),""),IF(AH43<>0,AH43,"")) ->  | AM43: =IF(statistics!$D$3<>0,IF(AJ43=statistics!$D$3,IF(A43=0,"",1),""),IF(A43=0,"",1)) ->  | AX43: 0 | BG43: 0 | BK43: 42
S44: 43 | U44: =IF(A45=0,IF(B45="",IF(B44=0,"",SUM($AG$1:AG44)-SUM($U$1:U43)),""),SUM($AG$1:AG44)-SUM($U$1:U43)) ->  | AA44: 0 | AB44: =IF(AJ44=statistics!$D$3,AB43+AH44-AG44,) -> 0 | AC44: =IF(AND(ROW(AC44)>=statistics!$C$55,ROW(AC44)<=statistics!$D$55),AC43+AH44-AG44,) -> 0 | AD44: =IF(AND(statistics!$C$55<=ROW(A44),ROW(A44)<=statistics!$D$55)=TRUE,AH44-AG44+AA43-INDEX(AA:AA,statistics!$C$55),"") -> 0 | AG44: 0 | AH44: 0 | AI44: 0 | AK44: =IF(statistics!$D$3<>0,IF(AJ44=statistics!$D$3,AG44,""),IF(B44<>"",AG44,"")) ->  | AL44: =IF(statistics!$D$3<>0,IF(AJ44=statistics!$D$3,IF(AH44=0,"",AH44),""),IF(AH44<>0,AH44,"")) ->  | AM44: =IF(statistics!$D$3<>0,IF(AJ44=statistics!$D$3,IF(A44=0,"",1),""),IF(A44=0,"",1)) ->  | AX44: 0 | BG44: 0 | BK44: 43
S45: 44 | U45: =IF(A46=0,IF(B46="",IF(B45=0,"",SUM($AG$1:AG45)-SUM($U$1:U44)),""),SUM($AG$1:AG45)-SUM($U$1:U44)) ->  | AA45: 0 | AB45: =IF(AJ45=statistics!$D$3,AB44+AH45-AG45,) -> 0 | AC45: =IF(AND(ROW(AC45)>=statistics!$C$55,ROW(AC45)<=statistics!$D$55),AC44+AH45-AG45,) -> 0 | AD45: =IF(AND(statistics!$C$55<=ROW(A45),ROW(A45)<=statistics!$D$55)=TRUE,AH45-AG45+AA44-INDEX(AA:AA,statistics!$C$55),"") -> 0 | AG45: 0 | AH45: 0 | AI45: 0 | AK45: =IF(statistics!$D$3<>0,IF(AJ45=statistics!$D$3,AG45,""),IF(B45<>"",AG45,"")) ->  | AL45: =IF(statistics!$D$3<>0,IF(AJ45=statistics!$D$3,IF(AH45=0,"",AH45),""),IF(AH45<>0,AH45,"")) ->  | AM45: =IF(statistics!$D$3<>0,IF(AJ45=statistics!$D$3,IF(A45=0,"",1),""),IF(A45=0,"",1)) ->  | AX45: 0 | BG45: 0 | BK45: 44
S46: 45 | U46: =IF(A47=0,IF(B47="",IF(B46=0,"",SUM($AG$1:AG46)-SUM($U$1:U45)),""),SUM($AG$1:AG46)-SUM($U$1:U45)) ->  | AA46: 0 | AB46: =IF(AJ46=statistics!$D$3,AB45+AH46-AG46,) -> 0 | AC46: =IF(AND(ROW(AC46)>=statistics!$C$55,ROW(AC46)<=statistics!$D$55),AC45+AH46-AG46,) -> 0 | AD46: =IF(AND(statistics!$C$55<=ROW(A46),ROW(A46)<=statistics!$D$55)=TRUE,AH46-AG46+AA45-INDEX(AA:AA,statistics!$C$55),"") -> 0 | AG46: 0 | AH46: 0 | AI46: 0 | AK46: =IF(statistics!$D$3<>0,IF(AJ46=statistics!$D$3,AG46,""),IF(B46<>"",AG46,"")) ->  | AL46: =IF(statistics!$D$3<>0,IF(AJ46=statistics!$D$3,IF(AH46=0,"",AH46),""),IF(AH46<>0,AH46,"")) ->  | AM46: =IF(statistics!$D$3<>0,IF(AJ46=statistics!$D$3,IF(A46=0,"",1),""),IF(A46=0,"",1)) ->  | AX46: 0 | BG46: 0 | BK46: 45
S47: 46 | U47: =IF(A48=0,IF(B48="",IF(B47=0,"",SUM($AG$1:AG47)-SUM($U$1:U46)),""),SUM($AG$1:AG47)-SUM($U$1:U46)) ->  | AA47: 0 | AB47: =IF(AJ47=statistics!$D$3,AB46+AH47-AG47,) -> 0 | AC47: =IF(AND(ROW(AC47)>=statistics!$C$55,ROW(AC47)<=statistics!$D$55),AC46+AH47-AG47,) -> 0 | AD47: =IF(AND(statistics!$C$55<=ROW(A47),ROW(A47)<=statistics!$D$55)=TRUE,AH47-AG47+AA46-INDEX(AA:AA,statistics!$C$55),"") -> 0 | AG47: 0 | AH47: 0 | AI47: 0 | AK47: =IF(statistics!$D$3<>0,IF(AJ47=statistics!$D$3,AG47,""),IF(B47<>"",AG47,"")) ->  | AL47: =IF(statistics!$D$3<>0,IF(AJ47=statistics!$D$3,IF(AH47=0,"",AH47),""),IF(AH47<>0,AH47,"")) ->  | AM47: =IF(statistics!$D$3<>0,IF(AJ47=statistics!$D$3,IF(A47=0,"",1),""),IF(A47=0,"",1)) ->  | AX47: 0 | BG47: 0 | BK47: 46
S48: 47 | U48: =IF(A49=0,IF(B49="",IF(B48=0,"",SUM($AG$1:AG48)-SUM($U$1:U47)),""),SUM($AG$1:AG48)-SUM($U$1:U47)) ->  | AA48: 0 | AB48: =IF(AJ48=statistics!$D$3,AB47+AH48-AG48,) -> 0 | AC48: =IF(AND(ROW(AC48)>=statistics!$C$55,ROW(AC48)<=statistics!$D$55),AC47+AH48-AG48,) -> 0 | AD48: =IF(AND(statistics!$C$55<=ROW(A48),ROW(A48)<=statistics!$D$55)=TRUE,AH48-AG48+AA47-INDEX(AA:AA,statistics!$C$55),"") -> 0 | AG48: 0 | AH48: 0 | AI48: 0 | AK48: =IF(statistics!$D$3<>0,IF(AJ48=statistics!$D$3,AG48,""),IF(B48<>"",AG48,"")) ->  | AL48: =IF(statistics!$D$3<>0,IF(AJ48=statistics!$D$3,IF(AH48=0,"",AH48),""),IF(AH48<>0,AH48,"")) ->  | AM48: =IF(statistics!$D$3<>0,IF(AJ48=statistics!$D$3,IF(A48=0,"",1),""),IF(A48=0,"",1)) ->  | AX48: 0 | BG48: 0 | BK48: 47
S49: 48 | U49: =IF(A50=0,IF(B50="",IF(B49=0,"",SUM($AG$1:AG49)-SUM($U$1:U48)),""),SUM($AG$1:AG49)-SUM($U$1:U48)) ->  | AA49: 0 | AB49: =IF(AJ49=statistics!$D$3,AB48+AH49-AG49,) -> 0 | AC49: =IF(AND(ROW(AC49)>=statistics!$C$55,ROW(AC49)<=statistics!$D$55),AC48+AH49-AG49,) -> 0 | AD49: =IF(AND(statistics!$C$55<=ROW(A49),ROW(A49)<=statistics!$D$55)=TRUE,AH49-AG49+AA48-INDEX(AA:AA,statistics!$C$55),"") -> 0 | AG49: 0 | AH49: 0 | AI49: 0 | AK49: =IF(statistics!$D$3<>0,IF(AJ49=statistics!$D$3,AG49,""),IF(B49<>"",AG49,"")) ->  | AL49: =IF(statistics!$D$3<>0,IF(AJ49=statistics!$D$3,IF(AH49=0,"",AH49),""),IF(AH49<>0,AH49,"")) ->  | AM49: =IF(statistics!$D$3<>0,IF(AJ49=statistics!$D$3,IF(A49=0,"",1),""),IF(A49=0,"",1)) ->  | AX49: 0 | BG49: 0 | BK49: 48
S50: 49 | U50: =IF(A51=0,IF(B51="",IF(B50=0,"",SUM($AG$1:AG50)-SUM($U$1:U49)),""),SUM($AG$1:AG50)-SUM($U$1:U49)) ->  | AA50: 0 | AB50: =IF(AJ50=statistics!$D$3,AB49+AH50-AG50,) -> 0 | AC50: =IF(AND(ROW(AC50)>=statistics!$C$55,ROW(AC50)<=statistics!$D$55),AC49+AH50-AG50,) -> 0 | AD50: =IF(AND(statistics!$C$55<=ROW(A50),ROW(A50)<=statistics!$D$55)=TRUE,AH50-AG50+AA49-INDEX(AA:AA,statistics!$C$55),"") -> 0 | AG50: 0 | AH50: 0 | AI50: 0 | AK50: =IF(statistics!$D$3<>0,IF(AJ50=statistics!$D$3,AG50,""),IF(B50<>"",AG50,"")) ->  | AL50: =IF(statistics!$D$3<>0,IF(AJ50=statistics!$D$3,IF(AH50=0,"",AH50),""),IF(AH50<>0,AH50,"")) ->  | AM50: =IF(statistics!$D$3<>0,IF(AJ50=statistics!$D$3,IF(A50=0,"",1),""),IF(A50=0,"",1)) ->  | AX50: 0 | BG50: 0 | BK50: 49
S51: 50 | U51: =IF(A52=0,IF(B52="",IF(B51=0,"",SUM($AG$1:AG51)-SUM($U$1:U50)),""),SUM($AG$1:AG51)-SUM($U$1:U50)) ->  | AA51: 0 | AB51: =IF(AJ51=statistics!$D$3,AB50+AH51-AG51,) -> 0 | AC51: =IF(AND(ROW(AC51)>=statistics!$C$55,ROW(AC51)<=statistics!$D$55),AC50+AH51-AG51,) -> 0 | AD51: =IF(AND(statistics!$C$55<=ROW(A51),ROW(A51)<=statistics!$D$55)=TRUE,AH51-AG51+AA50-INDEX(AA:AA,statistics!$C$55),"") ->  | AG51: 0 | AH51: 0 | AI51: 0 | AK51: =IF(statistics!$D$3<>0,IF(AJ51=statistics!$D$3,AG51,""),IF(B51<>"",AG51,"")) ->  | AL51: =IF(statistics!$D$3<>0,IF(AJ51=statistics!$D$3,IF(AH51=0,"",AH51),""),IF(AH51<>0,AH51,"")) ->  | AM51: =IF(statistics!$D$3<>0,IF(AJ51=statistics!$D$3,IF(A51=0,"",1),""),IF(A51=0,"",1)) ->  | AX51: 0 | BG51: 0 | BK51: 50
S52: 51 | U52: =IF(A53=0,IF(B53="",IF(B52=0,"",SUM($AG$1:AG52)-SUM($U$1:U51)),""),SUM($AG$1:AG52)-SUM($U$1:U51)) ->  | AA52: 0 | AB52: =IF(AJ52=statistics!$D$3,AB51+AH52-AG52,) -> 0 | AC52: =IF(AND(ROW(AC52)>=statistics!$C$55,ROW(AC52)<=statistics!$D$55),AC51+AH52-AG52,) -> 0 | AD52: =IF(AND(statistics!$C$55<=ROW(A52),ROW(A52)<=statistics!$D$55)=TRUE,AH52-AG52+AA51-INDEX(AA:AA,statistics!$C$55),"") ->  | AG52: 0 | AH52: 0 | AI52: 0 | AK52: =IF(statistics!$D$3<>0,IF(AJ52=statistics!$D$3,AG52,""),IF(B52<>"",AG52,"")) ->  | AL52: =IF(statistics!$D$3<>0,IF(AJ52=statistics!$D$3,IF(AH52=0,"",AH52),""),IF(AH52<>0,AH52,"")) ->  | AM52: =IF(statistics!$D$3<>0,IF(AJ52=statistics!$D$3,IF(A52=0,"",1),""),IF(A52=0,"",1)) ->  | AX52: 0 | BG52: 0 | BK52: 51
S53: 52 | U53: =IF(A54=0,IF(B54="",IF(B53=0,"",SUM($AG$1:AG53)-SUM($U$1:U52)),""),SUM($AG$1:AG53)-SUM($U$1:U52)) ->  | AA53: 0 | AB53: =IF(AJ53=statistics!$D$3,AB52+AH53-AG53,) -> 0 | AC53: =IF(AND(ROW(AC53)>=statistics!$C$55,ROW(AC53)<=statistics!$D$55),AC52+AH53-AG53,) -> 0 | AD53: =IF(AND(statistics!$C$55<=ROW(A53),ROW(A53)<=statistics!$D$55)=TRUE,AH53-AG53+AA52-INDEX(AA:AA,statistics!$C$55),"") ->  | AG53: 0 | AH53: 0 | AI53: 0 | AK53: =IF(statistics!$D$3<>0,IF(AJ53=statistics!$D$3,AG53,""),IF(B53<>"",AG53,"")) ->  | AL53: =IF(statistics!$D$3<>0,IF(AJ53=statistics!$D$3,IF(AH53=0,"",AH53),""),IF(AH53<>0,AH53,"")) ->  | AM53: =IF(statistics!$D$3<>0,IF(AJ53=statistics!$D$3,IF(A53=0,"",1),""),IF(A53=0,"",1)) ->  | AX53: 0 | BG53: 0 | BK53: 52
S54: 53 | U54: =IF(A55=0,IF(B55="",IF(B54=0,"",SUM($AG$1:AG54)-SUM($U$1:U53)),""),SUM($AG$1:AG54)-SUM($U$1:U53)) ->  | AA54: 0 | AB54: =IF(AJ54=statistics!$D$3,AB53+AH54-AG54,) -> 0 | AC54: =IF(AND(ROW(AC54)>=statistics!$C$55,ROW(AC54)<=statistics!$D$55),AC53+AH54-AG54,) -> 0 | AD54: =IF(AND(statistics!$C$55<=ROW(A54),ROW(A54)<=statistics!$D$55)=TRUE,AH54-AG54+AA53-INDEX(AA:AA,statistics!$C$55),"") ->  | AG54: 0 | AH54: 0 | AI54: 0 | AK54: =IF(statistics!$D$3<>0,IF(AJ54=statistics!$D$3,AG54,""),IF(B54<>"",AG54,"")) ->  | AL54: =IF(statistics!$D$3<>0,IF(AJ54=statistics!$D$3,IF(AH54=0,"",AH54),""),IF(AH54<>0,AH54,"")) ->  | AM54: =IF(statistics!$D$3<>0,IF(AJ54=statistics!$D$3,IF(A54=0,"",1),""),IF(A54=0,"",1)) ->  | AX54: 0 | BG54: 0 | BK54: 53
S55: 54 | U55: =IF(A56=0,IF(B56="",IF(B55=0,"",SUM($AG$1:AG55)-SUM($U$1:U54)),""),SUM($AG$1:AG55)-SUM($U$1:U54)) ->  | AA55: 0 | AB55: =IF(AJ55=statistics!$D$3,AB54+AH55-AG55,) -> 0 | AC55: =IF(AND(ROW(AC55)>=statistics!$C$55,ROW(AC55)<=statistics!$D$55),AC54+AH55-AG55,) -> 0 | AD55: =IF(AND(statistics!$C$55<=ROW(A55),ROW(A55)<=statistics!$D$55)=TRUE,AH55-AG55+AA54-INDEX(AA:AA,statistics!$C$55),"") ->  | AG55: 0 | AH55: 0 | AI55: 0 | AK55: =IF(statistics!$D$3<>0,IF(AJ55=statistics!$D$3,AG55,""),IF(B55<>"",AG55,"")) ->  | AL55: =IF(statistics!$D$3<>0,IF(AJ55=statistics!$D$3,IF(AH55=0,"",AH55),""),IF(AH55<>0,AH55,"")) ->  | AM55: =IF(statistics!$D$3<>0,IF(AJ55=statistics!$D$3,IF(A55=0,"",1),""),IF(A55=0,"",1)) ->  | AX55: 0 | BG55: 0 | BK55: 54
S56: 55 | U56: =IF(A57=0,IF(B57="",IF(B56=0,"",SUM($AG$1:AG56)-SUM($U$1:U55)),""),SUM($AG$1:AG56)-SUM($U$1:U55)) ->  | AA56: 0 | AB56: =IF(AJ56=statistics!$D$3,AB55+AH56-AG56,) -> 0 | AC56: =IF(AND(ROW(AC56)>=statistics!$C$55,ROW(AC56)<=statistics!$D$55),AC55+AH56-AG56,) -> 0 | AD56: =IF(AND(statistics!$C$55<=ROW(A56),ROW(A56)<=statistics!$D$55)=TRUE,AH56-AG56+AA55-INDEX(AA:AA,statistics!$C$55),"") ->  | AG56: 0 | AH56: 0 | AI56: 0 | AK56: =IF(statistics!$D$3<>0,IF(AJ56=statistics!$D$3,AG56,""),IF(B56<>"",AG56,"")) ->  | AL56: =IF(statistics!$D$3<>0,IF(AJ56=statistics!$D$3,IF(AH56=0,"",AH56),""),IF(AH56<>0,AH56,"")) ->  | AM56: =IF(statistics!$D$3<>0,IF(AJ56=statistics!$D$3,IF(A56=0,"",1),""),IF(A56=0,"",1)) ->  | AX56: 0 | BG56: 0 | BK56: 55
S57: 56 | U57: =IF(A58=0,IF(B58="",IF(B57=0,"",SUM($AG$1:AG57)-SUM($U$1:U56)),""),SUM($AG$1:AG57)-SUM($U$1:U56)) ->  | AA57: 0 | AB57: =IF(AJ57=statistics!$D$3,AB56+AH57-AG57,) -> 0 | AC57: =IF(AND(ROW(AC57)>=statistics!$C$55,ROW(AC57)<=statistics!$D$55),AC56+AH57-AG57,) -> 0 | AD57: =IF(AND(statistics!$C$55<=ROW(A57),ROW(A57)<=statistics!$D$55)=TRUE,AH57-AG57+AA56-INDEX(AA:AA,statistics!$C$55),"") ->  | AG57: 0 | AH57: 0 | AI57: 0 | AK57: =IF(statistics!$D$3<>0,IF(AJ57=statistics!$D$3,AG57,""),IF(B57<>"",AG57,"")) ->  | AL57: =IF(statistics!$D$3<>0,IF(AJ57=statistics!$D$3,IF(AH57=0,"",AH57),""),IF(AH57<>0,AH57,"")) ->  | AM57: =IF(statistics!$D$3<>0,IF(AJ57=statistics!$D$3,IF(A57=0,"",1),""),IF(A57=0,"",1)) ->  | AX57: 0 | BG57: 0 | BK57: 56
S58: 57 | U58: =IF(A59=0,IF(B59="",IF(B58=0,"",SUM($AG$1:AG58)-SUM($U$1:U57)),""),SUM($AG$1:AG58)-SUM($U$1:U57)) ->  | AA58: 0 | AB58: =IF(AJ58=statistics!$D$3,AB57+AH58-AG58,) -> 0 | AC58: =IF(AND(ROW(AC58)>=statistics!$C$55,ROW(AC58)<=statistics!$D$55),AC57+AH58-AG58,) -> 0 | AD58: =IF(AND(statistics!$C$55<=ROW(A58),ROW(A58)<=statistics!$D$55)=TRUE,AH58-AG58+AA57-INDEX(AA:AA,statistics!$C$55),"") ->  | AG58: 0 | AH58: 0 | AI58: 0 | AK58: =IF(statistics!$D$3<>0,IF(AJ58=statistics!$D$3,AG58,""),IF(B58<>"",AG58,"")) ->  | AL58: =IF(statistics!$D$3<>0,IF(AJ58=statistics!$D$3,IF(AH58=0,"",AH58),""),IF(AH58<>0,AH58,"")) ->  | AM58: =IF(statistics!$D$3<>0,IF(AJ58=statistics!$D$3,IF(A58=0,"",1),""),IF(A58=0,"",1)) ->  | AX58: 0 | BG58: 0 | BK58: 57
S59: 58 | U59: =IF(A60=0,IF(B60="",IF(B59=0,"",SUM($AG$1:AG59)-SUM($U$1:U58)),""),SUM($AG$1:AG59)-SUM($U$1:U58)) ->  | AA59: 0 | AB59: =IF(AJ59=statistics!$D$3,AB58+AH59-AG59,) -> 0 | AC59: =IF(AND(ROW(AC59)>=statistics!$C$55,ROW(AC59)<=statistics!$D$55),AC58+AH59-AG59,) -> 0 | AD59: =IF(AND(statistics!$C$55<=ROW(A59),ROW(A59)<=statistics!$D$55)=TRUE,AH59-AG59+AA58-INDEX(AA:AA,statistics!$C$55),"") ->  | AG59: 0 | AH59: 0 | AI59: 0 | AK59: =IF(statistics!$D$3<>0,IF(AJ59=statistics!$D$3,AG59,""),IF(B59<>"",AG59,"")) ->  | AL59: =IF(statistics!$D$3<>0,IF(AJ59=statistics!$D$3,IF(AH59=0,"",AH59),""),IF(AH59<>0,AH59,"")) ->  | AM59: =IF(statistics!$D$3<>0,IF(AJ59=statistics!$D$3,IF(A59=0,"",1),""),IF(A59=0,"",1)) ->  | AX59: 0 | BG59: 0 | BK59: 58
S60: 59 | U60: =IF(A61=0,IF(B61="",IF(B60=0,"",SUM($AG$1:AG60)-SUM($U$1:U59)),""),SUM($AG$1:AG60)-SUM($U$1:U59)) ->  | AA60: 0 | AB60: =IF(AJ60=statistics!$D$3,AB59+AH60-AG60,) -> 0 | AC60: =IF(AND(ROW(AC60)>=statistics!$C$55,ROW(AC60)<=statistics!$D$55),AC59+AH60-AG60,) -> 0 | AD60: =IF(AND(statistics!$C$55<=ROW(A60),ROW(A60)<=statistics!$D$55)=TRUE,AH60-AG60+AA59-INDEX(AA:AA,statistics!$C$55),"") ->  | AG60: 0 | AH60: 0 | AI60: 0 | AK60: =IF(statistics!$D$3<>0,IF(AJ60=statistics!$D$3,AG60,""),IF(B60<>"",AG60,"")) ->  | AL60: =IF(statistics!$D$3<>0,IF(AJ60=statistics!$D$3,IF(AH60=0,"",AH60),""),IF(AH60<>0,AH60,"")) ->  | AM60: =IF(statistics!$D$3<>0,IF(AJ60=statistics!$D$3,IF(A60=0,"",1),""),IF(A60=0,"",1)) ->  | AX60: 0 | BG60: 0 | BK60: 59
S61: 60 | U61: =IF(A62=0,IF(B62="",IF(B61=0,"",SUM($AG$1:AG61)-SUM($U$1:U60)),""),SUM($AG$1:AG61)-SUM($U$1:U60)) ->  | AA61: 0 | AB61: =IF(AJ61=statistics!$D$3,AB60+AH61-AG61,) -> 0 | AC61: =IF(AND(ROW(AC61)>=statistics!$C$55,ROW(AC61)<=statistics!$D$55),AC60+AH61-AG61,) -> 0 | AD61: =IF(AND(statistics!$C$55<=ROW(A61),ROW(A61)<=statistics!$D$55)=TRUE,AH61-AG61+AA60-INDEX(AA:AA,statistics!$C$55),"") ->  | AG61: 0 | AH61: 0 | AI61: 0 | AK61: =IF(statistics!$D$3<>0,IF(AJ61=statistics!$D$3,AG61,""),IF(B61<>"",AG61,"")) ->  | AL61: =IF(statistics!$D$3<>0,IF(AJ61=statistics!$D$3,IF(AH61=0,"",AH61),""),IF(AH61<>0,AH61,"")) ->  | AM61: =IF(statistics!$D$3<>0,IF(AJ61=statistics!$D$3,IF(A61=0,"",1),""),IF(A61=0,"",1)) ->  | AX61: 0 | BG61: 0 | BK61: 60
S62: 61 | U62: =IF(A63=0,IF(B63="",IF(B62=0,"",SUM($AG$1:AG62)-SUM($U$1:U61)),""),SUM($AG$1:AG62)-SUM($U$1:U61)) ->  | AA62: 0 | AB62: =IF(AJ62=statistics!$D$3,AB61+AH62-AG62,) -> 0 | AC62: =IF(AND(ROW(AC62)>=statistics!$C$55,ROW(AC62)<=statistics!$D$55),AC61+AH62-AG62,) -> 0 | AD62: =IF(AND(statistics!$C$55<=ROW(A62),ROW(A62)<=statistics!$D$55)=TRUE,AH62-AG62+AA61-INDEX(AA:AA,statistics!$C$55),"") ->  | AG62: 0 | AH62: 0 | AI62: 0 | AK62: =IF(statistics!$D$3<>0,IF(AJ62=statistics!$D$3,AG62,""),IF(B62<>"",AG62,"")) ->  | AL62: =IF(statistics!$D$3<>0,IF(AJ62=statistics!$D$3,IF(AH62=0,"",AH62),""),IF(AH62<>0,AH62,"")) ->  | AM62: =IF(statistics!$D$3<>0,IF(AJ62=statistics!$D$3,IF(A62=0,"",1),""),IF(A62=0,"",1)) ->  | AX62: 0 | BG62: 0 | BK62: 61
S63: 62 | U63: =IF(A64=0,IF(B64="",IF(B63=0,"",SUM($AG$1:AG63)-SUM($U$1:U62)),""),SUM($AG$1:AG63)-SUM($U$1:U62)) ->  | AA63: 0 | AB63: =IF(AJ63=statistics!$D$3,AB62+AH63-AG63,) -> 0 | AC63: =IF(AND(ROW(AC63)>=statistics!$C$55,ROW(AC63)<=statistics!$D$55),AC62+AH63-AG63,) -> 0 | AD63: =IF(AND(statistics!$C$55<=ROW(A63),ROW(A63)<=statistics!$D$55)=TRUE,AH63-AG63+AA62-INDEX(AA:AA,statistics!$C$55),"") ->  | AG63: 0 | AH63: 0 | AI63: 0 | AK63: =IF(statistics!$D$3<>0,IF(AJ63=statistics!$D$3,AG63,""),IF(B63<>"",AG63,"")) ->  | AL63: =IF(statistics!$D$3<>0,IF(AJ63=statistics!$D$3,IF(AH63=0,"",AH63),""),IF(AH63<>0,AH63,"")) ->  | AM63: =IF(statistics!$D$3<>0,IF(AJ63=statistics!$D$3,IF(A63=0,"",1),""),IF(A63=0,"",1)) ->  | AX63: 0 | BG63: 0 | BK63: 62
S64: 63 | U64: =IF(A65=0,IF(B65="",IF(B64=0,"",SUM($AG$1:AG64)-SUM($U$1:U63)),""),SUM($AG$1:AG64)-SUM($U$1:U63)) ->  | AA64: 0 | AB64: =IF(AJ64=statistics!$D$3,AB63+AH64-AG64,) -> 0 | AC64: =IF(AND(ROW(AC64)>=statistics!$C$55,ROW(AC64)<=statistics!$D$55),AC63+AH64-AG64,) -> 0 | AD64: =IF(AND(statistics!$C$55<=ROW(A64),ROW(A64)<=statistics!$D$55)=TRUE,AH64-AG64+AA63-INDEX(AA:AA,statistics!$C$55),"") ->  | AG64: 0 | AH64: 0 | AI64: 0 | AK64: =IF(statistics!$D$3<>0,IF(AJ64=statistics!$D$3,AG64,""),IF(B64<>"",AG64,"")) ->  | AL64: =IF(statistics!$D$3<>0,IF(AJ64=statistics!$D$3,IF(AH64=0,"",AH64),""),IF(AH64<>0,AH64,"")) ->  | AM64: =IF(statistics!$D$3<>0,IF(AJ64=statistics!$D$3,IF(A64=0,"",1),""),IF(A64=0,"",1)) ->  | AX64: 0 | BG64: 0 | BK64: 63
S65: 64 | U65: =IF(A66=0,IF(B66="",IF(B65=0,"",SUM($AG$1:AG65)-SUM($U$1:U64)),""),SUM($AG$1:AG65)-SUM($U$1:U64)) ->  | AA65: 0 | AB65: =IF(AJ65=statistics!$D$3,AB64+AH65-AG65,) -> 0 | AC65: =IF(AND(ROW(AC65)>=statistics!$C$55,ROW(AC65)<=statistics!$D$55),AC64+AH65-AG65,) -> 0 | AD65: =IF(AND(statistics!$C$55<=ROW(A65),ROW(A65)<=statistics!$D$55)=TRUE,AH65-AG65+AA64-INDEX(AA:AA,statistics!$C$55),"") ->  | AG65: 0 | AH65: 0 | AI65: 0 | AK65: =IF(statistics!$D$3<>0,IF(AJ65=statistics!$D$3,AG65,""),IF(B65<>"",AG65,"")) ->  | AL65: =IF(statistics!$D$3<>0,IF(AJ65=statistics!$D$3,IF(AH65=0,"",AH65),""),IF(AH65<>0,AH65,"")) ->  | AM65: =IF(statistics!$D$3<>0,IF(AJ65=statistics!$D$3,IF(A65=0,"",1),""),IF(A65=0,"",1)) ->  | AX65: 0 | BG65: 0 | BK65: 64
F66: =IF(A66=0,"",IF(T66=0,"",E66/T66)) ->  | H66: =IF(A67=0,IF(B67="",IF(B66=0,"",U66),""),U66) ->  | I66: =IF(A67=0,IF(B67="",IF(B66=0,"",S66),""),S66) ->  | S66: =IF(A66=0,S65+1,1) -> 65 | U66: =IF(A67=0,IF(B67="",IF(B66=0,"",SUM($AG$1:AG66)-SUM($U$1:U65)),""),SUM($AG$1:AG66)-SUM($U$1:U65)) ->  | AA66: 0 | AB66: =IF(AJ66=statistics!$D$3,AB65+AH66-AG66,) -> 0 | AC66: =IF(AND(ROW(AC66)>=statistics!$C$55,ROW(AC66)<=statistics!$D$55),AC65+AH66-AG66,) -> 0 | AD66: =IF(AND(statistics!$C$55<=ROW(A66),ROW(A66)<=statistics!$D$55)=TRUE,AH66-AG66+AA65-INDEX(AA:AA,statistics!$C$55),"") ->  | AG66: 0 | AH66: 0 | AI66: 0 | AJ66: =IF(A66<>0,MONTH(A66),IF(B66="","",AJ65)) ->  | AK66: =IF(statistics!$D$3<>0,IF(AJ66=statistics!$D$3,AG66,""),IF(B66<>"",AG66,"")) ->  | AL66: =IF(statistics!$D$3<>0,IF(AJ66=statistics!$D$3,IF(AH66=0,"",AH66),""),IF(AH66<>0,AH66,"")) ->  | AM66: =IF(statistics!$D$3<>0,IF(AJ66=statistics!$D$3,IF(A66=0,"",1),""),IF(A66=0,"",1)) ->  | AX66: 0 | BG66: 0 | BK66: 65
E67: =IF(A67=0,"",IF(B67<>"",SUM(AH67:AH10065)-SUM(AG67:AG10065)-SUM(E68:E10065),"")) ->  | L67: =IF(A67=0,"",SUM(AI67:AI10065)-SUM(L68:L10065)) ->  | S67: 66 | T67: =IF(A67=0,"",SUM(AG67:AG10065)-SUM(T68:T10065)) ->  | U67: =IF(A68=0,IF(B68="",IF(B67=0,"",SUM($AG$1:AG67)-SUM($U$1:U66)),""),SUM($AG$1:AG67)-SUM($U$1:U66)) ->  | AA67: =AA66+AH67-AG67 -> 0 | AB67: =IF(AJ67=statistics!$D$3,AB66+AH67-AG67,) -> 0 | AC67: =IF(AND(ROW(AC67)>=statistics!$C$55,ROW(AC67)<=statistics!$D$55),AC66+AH67-AG67,) -> 0 | AD67: =IF(AND(statistics!$C$55<=ROW(A67),ROW(A67)<=statistics!$D$55)=TRUE,AH67-AG67+AA66-INDEX(AA:AA,statistics!$C$55),"") ->  | AG67: 0 | AH67: 0 | AI67: =IF(J67=0,,D67*J67) -> 0 | AK67: =IF(statistics!$D$3<>0,IF(AJ67=statistics!$D$3,AG67,""),IF(B67<>"",AG67,"")) ->  | AL67: =IF(statistics!$D$3<>0,IF(AJ67=statistics!$D$3,IF(AH67=0,"",AH67),""),IF(AH67<>0,AH67,"")) ->  | AM67: =IF(statistics!$D$3<>0,IF(AJ67=statistics!$D$3,IF(A67=0,"",1),""),IF(A67=0,"",1)) ->  | AQ67: =IF(B67=0,"",IF(D67=0,IF(D66=0,AQ66+1,1),"")) ->  | AX67: =J67*D67-J67*K67*(B67+C67) -> 0 | BB67: =IF(B67=$BA$2,ROW(),"") ->  | BE67: =IF(B67=$BA$2,INDEX(D:D,SMALL(BB:BB,CELL("содержимое",BG67)))-INDEX(B:B,SMALL(BB:BB,CELL("содержимое",BG67)))-INDEX(C:C,SMALL(BB:BB,CELL("содержимое",BG67))),"") ->  | BG67: =IF($BA$2=B67,BG66+1,BG66) -> 0 | BI67: =INDEX(BE:BE,SMALL(BB:BB,CELL("содержимое",BK67))) ->  | BJ67: =BJ66+BI67 ->  | BK67: =BK66+1 -> 66
S68: 67 | U68: =IF(A69=0,IF(B69="",IF(B68=0,"",SUM($AG$1:AG68)-SUM($U$1:U67)),""),SUM($AG$1:AG68)-SUM($U$1:U67)) ->  | AA68: 0 | AB68: =IF(AJ68=statistics!$D$3,AB67+AH68-AG68,) -> 0 | AC68: =IF(AND(ROW(AC68)>=statistics!$C$55,ROW(AC68)<=statistics!$D$55),AC67+AH68-AG68,) -> 0 | AD68: =IF(AND(statistics!$C$55<=ROW(A68),ROW(A68)<=statistics!$D$55)=TRUE,AH68-AG68+AA67-INDEX(AA:AA,statistics!$C$55),"") ->  | AG68: 0 | AH68: 0 | AI68: 0 | AK68: =IF(statistics!$D$3<>0,IF(AJ68=statistics!$D$3,AG68,""),IF(B68<>"",AG68,"")) ->  | AL68: =IF(statistics!$D$3<>0,IF(AJ68=statistics!$D$3,IF(AH68=0,"",AH68),""),IF(AH68<>0,AH68,"")) ->  | AM68: =IF(statistics!$D$3<>0,IF(AJ68=statistics!$D$3,IF(A68=0,"",1),""),IF(A68=0,"",1)) ->  | AN68: =IF(AK68<>"",IF(AK67=0,ROW(AK68),ROW(AK68)),"") ->  | AO68: =IF(A68<>0,IF(MONTH(A68)=AJ67,"",MONTH(A68)),"") ->  | AX68: 0 | BG68: 0 | BK68: 67
S69: 68 | U69: =IF(A70=0,IF(B70="",IF(B69=0,"",SUM($AG$1:AG69)-SUM($U$1:U68)),""),SUM($AG$1:AG69)-SUM($U$1:U68)) ->  | AA69: 0 | AB69: =IF(AJ69=statistics!$D$3,AB68+AH69-AG69,) -> 0 | AC69: =IF(AND(ROW(AC69)>=statistics!$C$55,ROW(AC69)<=statistics!$D$55),AC68+AH69-AG69,) -> 0 | AD69: =IF(AND(statistics!$C$55<=ROW(A69),ROW(A69)<=statistics!$D$55)=TRUE,AH69-AG69+AA68-INDEX(AA:AA,statistics!$C$55),"") ->  | AG69: =IF(J69=0,B69+C69,(B69+C69)-(B69+C69)*J69*K69) -> 0 | AH69: =IF(J69=0,D69,D69*(1-J69)) -> 0 | AI69: 0 | AK69: =IF(statistics!$D$3<>0,IF(AJ69=statistics!$D$3,AG69,""),IF(B69<>"",AG69,"")) ->  | AL69: =IF(statistics!$D$3<>0,IF(AJ69=statistics!$D$3,IF(AH69=0,"",AH69),""),IF(AH69<>0,AH69,"")) ->  | AM69: =IF(statistics!$D$3<>0,IF(AJ69=statistics!$D$3,IF(A69=0,"",1),""),IF(A69=0,"",1)) ->  | AX69: 0 | BG69: 0 | BK69: 68
S70: 69 | U70: =IF(A71=0,IF(B71="",IF(B70=0,"",SUM($AG$1:AG70)-SUM($U$1:U69)),""),SUM($AG$1:AG70)-SUM($U$1:U69)) ->  | AA70: 0 | AB70: =IF(AJ70=statistics!$D$3,AB69+AH70-AG70,) -> 0 | AC70: =IF(AND(ROW(AC70)>=statistics!$C$55,ROW(AC70)<=statistics!$D$55),AC69+AH70-AG70,) -> 0 | AD70: =IF(AND(statistics!$C$55<=ROW(A70),ROW(A70)<=statistics!$D$55)=TRUE,AH70-AG70+AA69-INDEX(AA:AA,statistics!$C$55),"") ->  | AG70: 0 | AH70: 0 | AI70: 0 | AK70: =IF(statistics!$D$3<>0,IF(AJ70=statistics!$D$3,AG70,""),IF(B70<>"",AG70,"")) ->  | AL70: =IF(statistics!$D$3<>0,IF(AJ70=statistics!$D$3,IF(AH70=0,"",AH70),""),IF(AH70<>0,AH70,"")) ->  | AM70: =IF(statistics!$D$3<>0,IF(AJ70=statistics!$D$3,IF(A70=0,"",1),""),IF(A70=0,"",1)) ->  | AX70: 0 | BG70: 0 | BK70: 69
S71: 70 | U71: =IF(A72=0,IF(B72="",IF(B71=0,"",SUM($AG$1:AG71)-SUM($U$1:U70)),""),SUM($AG$1:AG71)-SUM($U$1:U70)) ->  | AA71: 0 | AB71: =IF(AJ71=statistics!$D$3,AB70+AH71-AG71,) -> 0 | AC71: =IF(AND(ROW(AC71)>=statistics!$C$55,ROW(AC71)<=statistics!$D$55),AC70+AH71-AG71,) -> 0 | AD71: =IF(AND(statistics!$C$55<=ROW(A71),ROW(A71)<=statistics!$D$55)=TRUE,AH71-AG71+AA70-INDEX(AA:AA,statistics!$C$55),"") ->  | AG71: 0 | AH71: 0 | AI71: 0 | AK71: =IF(statistics!$D$3<>0,IF(AJ71=statistics!$D$3,AG71,""),IF(B71<>"",AG71,"")) ->  | AL71: =IF(statistics!$D$3<>0,IF(AJ71=statistics!$D$3,IF(AH71=0,"",AH71),""),IF(AH71<>0,AH71,"")) ->  | AM71: =IF(statistics!$D$3<>0,IF(AJ71=statistics!$D$3,IF(A71=0,"",1),""),IF(A71=0,"",1)) ->  | AX71: 0 | BG71: 0 | BK71: 70
S72: 71 | U72: =IF(A73=0,IF(B73="",IF(B72=0,"",SUM($AG$1:AG72)-SUM($U$1:U71)),""),SUM($AG$1:AG72)-SUM($U$1:U71)) ->  | AA72: 0 | AB72: =IF(AJ72=statistics!$D$3,AB71+AH72-AG72,) -> 0 | AC72: =IF(AND(ROW(AC72)>=statistics!$C$55,ROW(AC72)<=statistics!$D$55),AC71+AH72-AG72,) -> 0 | AD72: =IF(AND(statistics!$C$55<=ROW(A72),ROW(A72)<=statistics!$D$55)=TRUE,AH72-AG72+AA71-INDEX(AA:AA,statistics!$C$55),"") ->  | AG72: 0 | AH72: 0 | AI72: 0 | AK72: =IF(statistics!$D$3<>0,IF(AJ72=statistics!$D$3,AG72,""),IF(B72<>"",AG72,"")) ->  | AL72: =IF(statistics!$D$3<>0,IF(AJ72=statistics!$D$3,IF(AH72=0,"",AH72),""),IF(AH72<>0,AH72,"")) ->  | AM72: =IF(statistics!$D$3<>0,IF(AJ72=statistics!$D$3,IF(A72=0,"",1),""),IF(A72=0,"",1)) ->  | AX72: 0 | BG72: 0 | BK72: 71
S73: 72 | U73: =IF(A74=0,IF(B74="",IF(B73=0,"",SUM($AG$1:AG73)-SUM($U$1:U72)),""),SUM($AG$1:AG73)-SUM($U$1:U72)) ->  | AA73: 0 | AB73: =IF(AJ73=statistics!$D$3,AB72+AH73-AG73,) -> 0 | AC73: =IF(AND(ROW(AC73)>=statistics!$C$55,ROW(AC73)<=statistics!$D$55),AC72+AH73-AG73,) -> 0 | AD73: =IF(AND(statistics!$C$55<=ROW(A73),ROW(A73)<=statistics!$D$55)=TRUE,AH73-AG73+AA72-INDEX(AA:AA,statistics!$C$55),"") ->  | AG73: 0 | AH73: 0 | AI73: 0 | AK73: =IF(statistics!$D$3<>0,IF(AJ73=statistics!$D$3,AG73,""),IF(B73<>"",AG73,"")) ->  | AL73: =IF(statistics!$D$3<>0,IF(AJ73=statistics!$D$3,IF(AH73=0,"",AH73),""),IF(AH73<>0,AH73,"")) ->  | AM73: =IF(statistics!$D$3<>0,IF(AJ73=statistics!$D$3,IF(A73=0,"",1),""),IF(A73=0,"",1)) ->  | AX73: 0 | BG73: 0 | BK73: 72
S74: 73 | U74: =IF(A75=0,IF(B75="",IF(B74=0,"",SUM($AG$1:AG74)-SUM($U$1:U73)),""),SUM($AG$1:AG74)-SUM($U$1:U73)) ->  | AA74: 0 | AB74: =IF(AJ74=statistics!$D$3,AB73+AH74-AG74,) -> 0 | AC74: =IF(AND(ROW(AC74)>=statistics!$C$55,ROW(AC74)<=statistics!$D$55),AC73+AH74-AG74,) -> 0 | AD74: =IF(AND(statistics!$C$55<=ROW(A74),ROW(A74)<=statistics!$D$55)=TRUE,AH74-AG74+AA73-INDEX(AA:AA,statistics!$C$55),"") ->  | AG74: 0 | AH74: 0 | AI74: 0 | AK74: =IF(statistics!$D$3<>0,IF(AJ74=statistics!$D$3,AG74,""),IF(B74<>"",AG74,"")) ->  | AL74: =IF(statistics!$D$3<>0,IF(AJ74=statistics!$D$3,IF(AH74=0,"",AH74),""),IF(AH74<>0,AH74,"")) ->  | AM74: =IF(statistics!$D$3<>0,IF(AJ74=statistics!$D$3,IF(A74=0,"",1),""),IF(A74=0,"",1)) ->  | AX74: 0 | BG74: 0 | BK74: 73
S75: 74 | U75: =IF(A76=0,IF(B76="",IF(B75=0,"",SUM($AG$1:AG75)-SUM($U$1:U74)),""),SUM($AG$1:AG75)-SUM($U$1:U74)) ->  | AA75: 0 | AB75: =IF(AJ75=statistics!$D$3,AB74+AH75-AG75,) -> 0 | AC75: =IF(AND(ROW(AC75)>=statistics!$C$55,ROW(AC75)<=statistics!$D$55),AC74+AH75-AG75,) -> 0 | AD75: =IF(AND(statistics!$C$55<=ROW(A75),ROW(A75)<=statistics!$D$55)=TRUE,AH75-AG75+AA74-INDEX(AA:AA,statistics!$C$55),"") ->  | AG75: 0 | AH75: 0 | AI75: 0 | AK75: =IF(statistics!$D$3<>0,IF(AJ75=statistics!$D$3,AG75,""),IF(B75<>"",AG75,"")) ->  | AL75: =IF(statistics!$D$3<>0,IF(AJ75=statistics!$D$3,IF(AH75=0,"",AH75),""),IF(AH75<>0,AH75,"")) ->  | AM75: =IF(statistics!$D$3<>0,IF(AJ75=statistics!$D$3,IF(A75=0,"",1),""),IF(A75=0,"",1)) ->  | AX75: 0 | BG75: 0 | BK75: 74
S76: 75 | U76: =IF(A77=0,IF(B77="",IF(B76=0,"",SUM($AG$1:AG76)-SUM($U$1:U75)),""),SUM($AG$1:AG76)-SUM($U$1:U75)) ->  | AA76: 0 | AB76: =IF(AJ76=statistics!$D$3,AB75+AH76-AG76,) -> 0 | AC76: =IF(AND(ROW(AC76)>=statistics!$C$55,ROW(AC76)<=statistics!$D$55),AC75+AH76-AG76,) -> 0 | AD76: =IF(AND(statistics!$C$55<=ROW(A76),ROW(A76)<=statistics!$D$55)=TRUE,AH76-AG76+AA75-INDEX(AA:AA,statistics!$C$55),"") ->  | AG76: 0 | AH76: 0 | AI76: 0 | AK76: =IF(statistics!$D$3<>0,IF(AJ76=statistics!$D$3,AG76,""),IF(B76<>"",AG76,"")) ->  | AL76: =IF(statistics!$D$3<>0,IF(AJ76=statistics!$D$3,IF(AH76=0,"",AH76),""),IF(AH76<>0,AH76,"")) ->  | AM76: =IF(statistics!$D$3<>0,IF(AJ76=statistics!$D$3,IF(A76=0,"",1),""),IF(A76=0,"",1)) ->  | AX76: 0 | BG76: 0 | BK76: 75
S77: 76 | U77: =IF(A78=0,IF(B78="",IF(B77=0,"",SUM($AG$1:AG77)-SUM($U$1:U76)),""),SUM($AG$1:AG77)-SUM($U$1:U76)) ->  | AA77: 0 | AB77: =IF(AJ77=statistics!$D$3,AB76+AH77-AG77,) -> 0 | AC77: =IF(AND(ROW(AC77)>=statistics!$C$55,ROW(AC77)<=statistics!$D$55),AC76+AH77-AG77,) -> 0 | AD77: =IF(AND(statistics!$C$55<=ROW(A77),ROW(A77)<=statistics!$D$55)=TRUE,AH77-AG77+AA76-INDEX(AA:AA,statistics!$C$55),"") ->  | AG77: 0 | AH77: 0 | AI77: 0 | AK77: =IF(statistics!$D$3<>0,IF(AJ77=statistics!$D$3,AG77,""),IF(B77<>"",AG77,"")) ->  | AL77: =IF(statistics!$D$3<>0,IF(AJ77=statistics!$D$3,IF(AH77=0,"",AH77),""),IF(AH77<>0,AH77,"")) ->  | AM77: =IF(statistics!$D$3<>0,IF(AJ77=statistics!$D$3,IF(A77=0,"",1),""),IF(A77=0,"",1)) ->  | AX77: 0 | BG77: 0 | BK77: 76
S78: 77 | U78: =IF(A79=0,IF(B79="",IF(B78=0,"",SUM($AG$1:AG78)-SUM($U$1:U77)),""),SUM($AG$1:AG78)-SUM($U$1:U77)) ->  | AA78: 0 | AB78: =IF(AJ78=statistics!$D$3,AB77+AH78-AG78,) -> 0 | AC78: =IF(AND(ROW(AC78)>=statistics!$C$55,ROW(AC78)<=statistics!$D$55),AC77+AH78-AG78,) -> 0 | AD78: =IF(AND(statistics!$C$55<=ROW(A78),ROW(A78)<=statistics!$D$55)=TRUE,AH78-AG78+AA77-INDEX(AA:AA,statistics!$C$55),"") ->  | AG78: 0 | AH78: 0 | AI78: 0 | AK78: =IF(statistics!$D$3<>0,IF(AJ78=statistics!$D$3,AG78,""),IF(B78<>"",AG78,"")) ->  | AL78: =IF(statistics!$D$3<>0,IF(AJ78=statistics!$D$3,IF(AH78=0,"",AH78),""),IF(AH78<>0,AH78,"")) ->  | AM78: =IF(statistics!$D$3<>0,IF(AJ78=statistics!$D$3,IF(A78=0,"",1),""),IF(A78=0,"",1)) ->  | AX78: 0 | BG78: 0 | BK78: 77
S79: 78 | U79: =IF(A80=0,IF(B80="",IF(B79=0,"",SUM($AG$1:AG79)-SUM($U$1:U78)),""),SUM($AG$1:AG79)-SUM($U$1:U78)) ->  | AA79: 0 | AB79: =IF(AJ79=statistics!$D$3,AB78+AH79-AG79,) -> 0 | AC79: =IF(AND(ROW(AC79)>=statistics!$C$55,ROW(AC79)<=statistics!$D$55),AC78+AH79-AG79,) -> 0 | AD79: =IF(AND(statistics!$C$55<=ROW(A79),ROW(A79)<=statistics!$D$55)=TRUE,AH79-AG79+AA78-INDEX(AA:AA,statistics!$C$55),"") ->  | AG79: 0 | AH79: 0 | AI79: 0 | AK79: =IF(statistics!$D$3<>0,IF(AJ79=statistics!$D$3,AG79,""),IF(B79<>"",AG79,"")) ->  | AL79: =IF(statistics!$D$3<>0,IF(AJ79=statistics!$D$3,IF(AH79=0,"",AH79),""),IF(AH79<>0,AH79,"")) ->  | AM79: =IF(statistics!$D$3<>0,IF(AJ79=statistics!$D$3,IF(A79=0,"",1),""),IF(A79=0,"",1)) ->  | AX79: 0 | BG79: 0 | BK79: 78
S80: 79 | U80: =IF(A81=0,IF(B81="",IF(B80=0,"",SUM($AG$1:AG80)-SUM($U$1:U79)),""),SUM($AG$1:AG80)-SUM($U$1:U79)) ->  | AA80: 0 | AB80: =IF(AJ80=statistics!$D$3,AB79+AH80-AG80,) -> 0 | AC80: =IF(AND(ROW(AC80)>=statistics!$C$55,ROW(AC80)<=statistics!$D$55),AC79+AH80-AG80,) -> 0 | AD80: =IF(AND(statistics!$C$55<=ROW(A80),ROW(A80)<=statistics!$D$55)=TRUE,AH80-AG80+AA79-INDEX(AA:AA,statistics!$C$55),"") ->  | AG80: 0 | AH80: 0 | AI80: 0 | AK80: =IF(statistics!$D$3<>0,IF(AJ80=statistics!$D$3,AG80,""),IF(B80<>"",AG80,"")) ->  | AL80: =IF(statistics!$D$3<>0,IF(AJ80=statistics!$D$3,IF(AH80=0,"",AH80),""),IF(AH80<>0,AH80,"")) ->  | AM80: =IF(statistics!$D$3<>0,IF(AJ80=statistics!$D$3,IF(A80=0,"",1),""),IF(A80=0,"",1)) ->  | AX80: 0 | BG80: 0 | BK80: 79
G81: =IF(A82=0,IF(B82="",IF(B81=0,"",U81/S81),""),U81/S81) ->  | S81: 80 | U81: =IF(A82=0,IF(B82="",IF(B81=0,"",SUM($AG$1:AG81)-SUM($U$1:U80)),""),SUM($AG$1:AG81)-SUM($U$1:U80)) ->  | AA81: 0 | AB81: =IF(AJ81=statistics!$D$3,AB80+AH81-AG81,) -> 0 | AC81: =IF(AND(ROW(AC81)>=statistics!$C$55,ROW(AC81)<=statistics!$D$55),AC80+AH81-AG81,) -> 0 | AD81: =IF(AND(statistics!$C$55<=ROW(A81),ROW(A81)<=statistics!$D$55)=TRUE,AH81-AG81+AA80-INDEX(AA:AA,statistics!$C$55),"") ->  | AG81: 0 | AH81: 0 | AI81: 0 | AK81: =IF(statistics!$D$3<>0,IF(AJ81=statistics!$D$3,AG81,""),IF(B81<>"",AG81,"")) ->  | AL81: =IF(statistics!$D$3<>0,IF(AJ81=statistics!$D$3,IF(AH81=0,"",AH81),""),IF(AH81<>0,AH81,"")) ->  | AM81: =IF(statistics!$D$3<>0,IF(AJ81=statistics!$D$3,IF(A81=0,"",1),""),IF(A81=0,"",1)) ->  | AX81: 0 | BG81: 0 | BK81: 80
S82: 81 | U82: =IF(A83=0,IF(B83="",IF(B82=0,"",SUM($AG$1:AG82)-SUM($U$1:U81)),""),SUM($AG$1:AG82)-SUM($U$1:U81)) ->  | AA82: 0 | AB82: =IF(AJ82=statistics!$D$3,AB81+AH82-AG82,) -> 0 | AC82: =IF(AND(ROW(AC82)>=statistics!$C$55,ROW(AC82)<=statistics!$D$55),AC81+AH82-AG82,) -> 0 | AD82: =IF(AND(statistics!$C$55<=ROW(A82),ROW(A82)<=statistics!$D$55)=TRUE,AH82-AG82+AA81-INDEX(AA:AA,statistics!$C$55),"") ->  | AG82: 0 | AH82: 0 | AI82: 0 | AK82: =IF(statistics!$D$3<>0,IF(AJ82=statistics!$D$3,AG82,""),IF(B82<>"",AG82,"")) ->  | AL82: =IF(statistics!$D$3<>0,IF(AJ82=statistics!$D$3,IF(AH82=0,"",AH82),""),IF(AH82<>0,AH82,"")) ->  | AM82: =IF(statistics!$D$3<>0,IF(AJ82=statistics!$D$3,IF(A82=0,"",1),""),IF(A82=0,"",1)) ->  | AX82: 0 | BG82: 0 | BK82: 81
S83: 82 | U83: =IF(A84=0,IF(B84="",IF(B83=0,"",SUM($AG$1:AG83)-SUM($U$1:U82)),""),SUM($AG$1:AG83)-SUM($U$1:U82)) ->  | AA83: 0 | AB83: =IF(AJ83=statistics!$D$3,AB82+AH83-AG83,) -> 0 | AC83: =IF(AND(ROW(AC83)>=statistics!$C$55,ROW(AC83)<=statistics!$D$55),AC82+AH83-AG83,) -> 0 | AD83: =IF(AND(statistics!$C$55<=ROW(A83),ROW(A83)<=statistics!$D$55)=TRUE,AH83-AG83+AA82-INDEX(AA:AA,statistics!$C$55),"") ->  | AG83: 0 | AH83: 0 | AI83: 0 | AJ83: =IF(A83<>0,MONTH(A83),IF(B83="","",AJ82)) ->  | AK83: =IF(statistics!$D$3<>0,IF(AJ83=statistics!$D$3,AG83,""),IF(B83<>"",AG83,"")) ->  | AL83: =IF(statistics!$D$3<>0,IF(AJ83=statistics!$D$3,IF(AH83=0,"",AH83),""),IF(AH83<>0,AH83,"")) ->  | AM83: =IF(statistics!$D$3<>0,IF(AJ83=statistics!$D$3,IF(A83=0,"",1),""),IF(A83=0,"",1)) ->  | AX83: 0 | BG83: 0 | BK83: 82
S84: 83 | U84: =IF(A85=0,IF(B85="",IF(B84=0,"",SUM($AG$1:AG84)-SUM($U$1:U83)),""),SUM($AG$1:AG84)-SUM($U$1:U83)) ->  | AA84: 0 | AB84: =IF(AJ84=statistics!$D$3,AB83+AH84-AG84,) -> 0 | AC84: =IF(AND(ROW(AC84)>=statistics!$C$55,ROW(AC84)<=statistics!$D$55),AC83+AH84-AG84,) -> 0 | AD84: =IF(AND(statistics!$C$55<=ROW(A84),ROW(A84)<=statistics!$D$55)=TRUE,AH84-AG84+AA83-INDEX(AA:AA,statistics!$C$55),"") ->  | AG84: 0 | AH84: 0 | AI84: 0 | AJ84: =IF(A84<>0,MONTH(A84),IF(B84="","",AJ83)) ->  | AK84: =IF(statistics!$D$3<>0,IF(AJ84=statistics!$D$3,AG84,""),IF(B84<>"",AG84,"")) ->  | AL84: =IF(statistics!$D$3<>0,IF(AJ84=statistics!$D$3,IF(AH84=0,"",AH84),""),IF(AH84<>0,AH84,"")) ->  | AM84: =IF(statistics!$D$3<>0,IF(AJ84=statistics!$D$3,IF(A84=0,"",1),""),IF(A84=0,"",1)) ->  | AX84: 0 | BG84: 0 | BK84: 83
S85: 84 | U85: =IF(A86=0,IF(B86="",IF(B85=0,"",SUM($AG$1:AG85)-SUM($U$1:U84)),""),SUM($AG$1:AG85)-SUM($U$1:U84)) ->  | AA85: 0 | AB85: =IF(AJ85=statistics!$D$3,AB84+AH85-AG85,) -> 0 | AC85: =IF(AND(ROW(AC85)>=statistics!$C$55,ROW(AC85)<=statistics!$D$55),AC84+AH85-AG85,) -> 0 | AD85: =IF(AND(statistics!$C$55<=ROW(A85),ROW(A85)<=statistics!$D$55)=TRUE,AH85-AG85+AA84-INDEX(AA:AA,statistics!$C$55),"") ->  | AG85: 0 | AH85: 0 | AI85: 0 | AK85: =IF(statistics!$D$3<>0,IF(AJ85=statistics!$D$3,AG85,""),IF(B85<>"",AG85,"")) ->  | AL85: =IF(statistics!$D$3<>0,IF(AJ85=statistics!$D$3,IF(AH85=0,"",AH85),""),IF(AH85<>0,AH85,"")) ->  | AM85: =IF(statistics!$D$3<>0,IF(AJ85=statistics!$D$3,IF(A85=0,"",1),""),IF(A85=0,"",1)) ->  | AX85: 0 | BG85: 0 | BK85: 84
S86: 85 | U86: =IF(A87=0,IF(B87="",IF(B86=0,"",SUM($AG$1:AG86)-SUM($U$1:U85)),""),SUM($AG$1:AG86)-SUM($U$1:U85)) ->  | AA86: 0 | AB86: =IF(AJ86=statistics!$D$3,AB85+AH86-AG86,) -> 0 | AC86: =IF(AND(ROW(AC86)>=statistics!$C$55,ROW(AC86)<=statistics!$D$55),AC85+AH86-AG86,) -> 0 | AD86: =IF(AND(statistics!$C$55<=ROW(A86),ROW(A86)<=statistics!$D$55)=TRUE,AH86-AG86+AA85-INDEX(AA:AA,statistics!$C$55),"") ->  | AG86: 0 | AH86: 0 | AI86: 0 | AK86: =IF(statistics!$D$3<>0,IF(AJ86=statistics!$D$3,AG86,""),IF(B86<>"",AG86,"")) ->  | AL86: =IF(statistics!$D$3<>0,IF(AJ86=statistics!$D$3,IF(AH86=0,"",AH86),""),IF(AH86<>0,AH86,"")) ->  | AM86: =IF(statistics!$D$3<>0,IF(AJ86=statistics!$D$3,IF(A86=0,"",1),""),IF(A86=0,"",1)) ->  | AX86: 0 | BG86: 0 | BK86: 85
S87: 86 | U87: =IF(A88=0,IF(B88="",IF(B87=0,"",SUM($AG$1:AG87)-SUM($U$1:U86)),""),SUM($AG$1:AG87)-SUM($U$1:U86)) ->  | AA87: 0 | AB87: =IF(AJ87=statistics!$D$3,AB86+AH87-AG87,) -> 0 | AC87: =IF(AND(ROW(AC87)>=statistics!$C$55,ROW(AC87)<=statistics!$D$55),AC86+AH87-AG87,) -> 0 | AD87: =IF(AND(statistics!$C$55<=ROW(A87),ROW(A87)<=statistics!$D$55)=TRUE,AH87-AG87+AA86-INDEX(AA:AA,statistics!$C$55),"") ->  | AG87: 0 | AH87: 0 | AI87: 0 | AK87: =IF(statistics!$D$3<>0,IF(AJ87=statistics!$D$3,AG87,""),IF(B87<>"",AG87,"")) ->  | AL87: =IF(statistics!$D$3<>0,IF(AJ87=statistics!$D$3,IF(AH87=0,"",AH87),""),IF(AH87<>0,AH87,"")) ->  | AM87: =IF(statistics!$D$3<>0,IF(AJ87=statistics!$D$3,IF(A87=0,"",1),""),IF(A87=0,"",1)) ->  | AX87: 0 | BG87: 0 | BK87: 86
S88: 87 | U88: =IF(A89=0,IF(B89="",IF(B88=0,"",SUM($AG$1:AG88)-SUM($U$1:U87)),""),SUM($AG$1:AG88)-SUM($U$1:U87)) ->  | AA88: 0 | AB88: =IF(AJ88=statistics!$D$3,AB87+AH88-AG88,) -> 0 | AC88: =IF(AND(ROW(AC88)>=statistics!$C$55,ROW(AC88)<=statistics!$D$55),AC87+AH88-AG88,) -> 0 | AD88: =IF(AND(statistics!$C$55<=ROW(A88),ROW(A88)<=statistics!$D$55)=TRUE,AH88-AG88+AA87-INDEX(AA:AA,statistics!$C$55),"") ->  | AG88: 0 | AH88: 0 | AI88: 0 | AK88: =IF(statistics!$D$3<>0,IF(AJ88=statistics!$D$3,AG88,""),IF(B88<>"",AG88,"")) ->  | AL88: =IF(statistics!$D$3<>0,IF(AJ88=statistics!$D$3,IF(AH88=0,"",AH88),""),IF(AH88<>0,AH88,"")) ->  | AM88: =IF(statistics!$D$3<>0,IF(AJ88=statistics!$D$3,IF(A88=0,"",1),""),IF(A88=0,"",1)) ->  | AX88: 0 | BG88: 0 | BK88: 87
S89: 88 | U89: =IF(A90=0,IF(B90="",IF(B89=0,"",SUM($AG$1:AG89)-SUM($U$1:U88)),""),SUM($AG$1:AG89)-SUM($U$1:U88)) ->  | AA89: 0 | AB89: =IF(AJ89=statistics!$D$3,AB88+AH89-AG89,) -> 0 | AC89: =IF(AND(ROW(AC89)>=statistics!$C$55,ROW(AC89)<=statistics!$D$55),AC88+AH89-AG89,) -> 0 | AD89: =IF(AND(statistics!$C$55<=ROW(A89),ROW(A89)<=statistics!$D$55)=TRUE,AH89-AG89+AA88-INDEX(AA:AA,statistics!$C$55),"") ->  | AG89: 0 | AH89: 0 | AI89: 0 | AK89: =IF(statistics!$D$3<>0,IF(AJ89=statistics!$D$3,AG89,""),IF(B89<>"",AG89,"")) ->  | AL89: =IF(statistics!$D$3<>0,IF(AJ89=statistics!$D$3,IF(AH89=0,"",AH89),""),IF(AH89<>0,AH89,"")) ->  | AM89: =IF(statistics!$D$3<>0,IF(AJ89=statistics!$D$3,IF(A89=0,"",1),""),IF(A89=0,"",1)) ->  | AX89: 0 | BG89: 0 | BK89: 88
S90: 89 | U90: =IF(A91=0,IF(B91="",IF(B90=0,"",SUM($AG$1:AG90)-SUM($U$1:U89)),""),SUM($AG$1:AG90)-SUM($U$1:U89)) ->  | AA90: 0 | AB90: =IF(AJ90=statistics!$D$3,AB89+AH90-AG90,) -> 0 | AC90: =IF(AND(ROW(AC90)>=statistics!$C$55,ROW(AC90)<=statistics!$D$55),AC89+AH90-AG90,) -> 0 | AD90: =IF(AND(statistics!$C$55<=ROW(A90),ROW(A90)<=statistics!$D$55)=TRUE,AH90-AG90+AA89-INDEX(AA:AA,statistics!$C$55),"") ->  | AG90: 0 | AH90: 0 | AI90: 0 | AK90: =IF(statistics!$D$3<>0,IF(AJ90=statistics!$D$3,AG90,""),IF(B90<>"",AG90,"")) ->  | AL90: =IF(statistics!$D$3<>0,IF(AJ90=statistics!$D$3,IF(AH90=0,"",AH90),""),IF(AH90<>0,AH90,"")) ->  | AM90: =IF(statistics!$D$3<>0,IF(AJ90=statistics!$D$3,IF(A90=0,"",1),""),IF(A90=0,"",1)) ->  | AX90: 0 | BG90: 0 | BK90: 89
S91: 90 | U91: =IF(A92=0,IF(B92="",IF(B91=0,"",SUM($AG$1:AG91)-SUM($U$1:U90)),""),SUM($AG$1:AG91)-SUM($U$1:U90)) ->  | AA91: 0 | AB91: =IF(AJ91=statistics!$D$3,AB90+AH91-AG91,) -> 0 | AC91: =IF(AND(ROW(AC91)>=statistics!$C$55,ROW(AC91)<=statistics!$D$55),AC90+AH91-AG91,) -> 0 | AD91: =IF(AND(statistics!$C$55<=ROW(A91),ROW(A91)<=statistics!$D$55)=TRUE,AH91-AG91+AA90-INDEX(AA:AA,statistics!$C$55),"") ->  | AG91: 0 | AH91: 0 | AI91: 0 | AK91: =IF(statistics!$D$3<>0,IF(AJ91=statistics!$D$3,AG91,""),IF(B91<>"",AG91,"")) ->  | AL91: =IF(statistics!$D$3<>0,IF(AJ91=statistics!$D$3,IF(AH91=0,"",AH91),""),IF(AH91<>0,AH91,"")) ->  | AM91: =IF(statistics!$D$3<>0,IF(AJ91=statistics!$D$3,IF(A91=0,"",1),""),IF(A91=0,"",1)) ->  | AX91: 0 | BG91: 0 | BK91: 90
S92: 91 | U92: =IF(A93=0,IF(B93="",IF(B92=0,"",SUM($AG$1:AG92)-SUM($U$1:U91)),""),SUM($AG$1:AG92)-SUM($U$1:U91)) ->  | AA92: 0 | AB92: =IF(AJ92=statistics!$D$3,AB91+AH92-AG92,) -> 0 | AC92: =IF(AND(ROW(AC92)>=statistics!$C$55,ROW(AC92)<=statistics!$D$55),AC91+AH92-AG92,) -> 0 | AD92: =IF(AND(statistics!$C$55<=ROW(A92),ROW(A92)<=statistics!$D$55)=TRUE,AH92-AG92+AA91-INDEX(AA:AA,statistics!$C$55),"") ->  | AG92: 0 | AH92: 0 | AI92: 0 | AK92: =IF(statistics!$D$3<>0,IF(AJ92=statistics!$D$3,AG92,""),IF(B92<>"",AG92,"")) ->  | AL92: =IF(statistics!$D$3<>0,IF(AJ92=statistics!$D$3,IF(AH92=0,"",AH92),""),IF(AH92<>0,AH92,"")) ->  | AM92: =IF(statistics!$D$3<>0,IF(AJ92=statistics!$D$3,IF(A92=0,"",1),""),IF(A92=0,"",1)) ->  | AX92: 0 | BG92: 0 | BK92: 91
S93: 92 | U93: =IF(A94=0,IF(B94="",IF(B93=0,"",SUM($AG$1:AG93)-SUM($U$1:U92)),""),SUM($AG$1:AG93)-SUM($U$1:U92)) ->  | AA93: 0 | AB93: =IF(AJ93=statistics!$D$3,AB92+AH93-AG93,) -> 0 | AC93: =IF(AND(ROW(AC93)>=statistics!$C$55,ROW(AC93)<=statistics!$D$55),AC92+AH93-AG93,) -> 0 | AD93: =IF(AND(statistics!$C$55<=ROW(A93),ROW(A93)<=statistics!$D$55)=TRUE,AH93-AG93+AA92-INDEX(AA:AA,statistics!$C$55),"") ->  | AG93: 0 | AH93: 0 | AI93: 0 | AK93: =IF(statistics!$D$3<>0,IF(AJ93=statistics!$D$3,AG93,""),IF(B93<>"",AG93,"")) ->  | AL93: =IF(statistics!$D$3<>0,IF(AJ93=statistics!$D$3,IF(AH93=0,"",AH93),""),IF(AH93<>0,AH93,"")) ->  | AM93: =IF(statistics!$D$3<>0,IF(AJ93=statistics!$D$3,IF(A93=0,"",1),""),IF(A93=0,"",1)) ->  | AX93: 0 | BG93: 0 | BK93: 92
S94: 93 | U94: =IF(A95=0,IF(B95="",IF(B94=0,"",SUM($AG$1:AG94)-SUM($U$1:U93)),""),SUM($AG$1:AG94)-SUM($U$1:U93)) ->  | AA94: 0 | AB94: =IF(AJ94=statistics!$D$3,AB93+AH94-AG94,) -> 0 | AC94: =IF(AND(ROW(AC94)>=statistics!$C$55,ROW(AC94)<=statistics!$D$55),AC93+AH94-AG94,) -> 0 | AD94: =IF(AND(statistics!$C$55<=ROW(A94),ROW(A94)<=statistics!$D$55)=TRUE,AH94-AG94+AA93-INDEX(AA:AA,statistics!$C$55),"") ->  | AG94: 0 | AH94: 0 | AI94: 0 | AK94: =IF(statistics!$D$3<>0,IF(AJ94=statistics!$D$3,AG94,""),IF(B94<>"",AG94,"")) ->  | AL94: =IF(statistics!$D$3<>0,IF(AJ94=statistics!$D$3,IF(AH94=0,"",AH94),""),IF(AH94<>0,AH94,"")) ->  | AM94: =IF(statistics!$D$3<>0,IF(AJ94=statistics!$D$3,IF(A94=0,"",1),""),IF(A94=0,"",1)) ->  | AX94: 0 | BG94: 0 | BK94: 93
S95: 94 | U95: =IF(A96=0,IF(B96="",IF(B95=0,"",SUM($AG$1:AG95)-SUM($U$1:U94)),""),SUM($AG$1:AG95)-SUM($U$1:U94)) ->  | AA95: 0 | AB95: =IF(AJ95=statistics!$D$3,AB94+AH95-AG95,) -> 0 | AC95: =IF(AND(ROW(AC95)>=statistics!$C$55,ROW(AC95)<=statistics!$D$55),AC94+AH95-AG95,) -> 0 | AD95: =IF(AND(statistics!$C$55<=ROW(A95),ROW(A95)<=statistics!$D$55)=TRUE,AH95-AG95+AA94-INDEX(AA:AA,statistics!$C$55),"") ->  | AG95: 0 | AH95: 0 | AI95: 0 | AK95: =IF(statistics!$D$3<>0,IF(AJ95=statistics!$D$3,AG95,""),IF(B95<>"",AG95,"")) ->  | AL95: =IF(statistics!$D$3<>0,IF(AJ95=statistics!$D$3,IF(AH95=0,"",AH95),""),IF(AH95<>0,AH95,"")) ->  | AM95: =IF(statistics!$D$3<>0,IF(AJ95=statistics!$D$3,IF(A95=0,"",1),""),IF(A95=0,"",1)) ->  | AX95: 0 | BG95: 0 | BK95: 94
S96: 95 | U96: =IF(A97=0,IF(B97="",IF(B96=0,"",SUM($AG$1:AG96)-SUM($U$1:U95)),""),SUM($AG$1:AG96)-SUM($U$1:U95)) ->  | AA96: 0 | AB96: =IF(AJ96=statistics!$D$3,AB95+AH96-AG96,) -> 0 | AC96: =IF(AND(ROW(AC96)>=statistics!$C$55,ROW(AC96)<=statistics!$D$55),AC95+AH96-AG96,) -> 0 | AD96: =IF(AND(statistics!$C$55<=ROW(A96),ROW(A96)<=statistics!$D$55)=TRUE,AH96-AG96+AA95-INDEX(AA:AA,statistics!$C$55),"") ->  | AG96: 0 | AH96: 0 | AI96: 0 | AK96: =IF(statistics!$D$3<>0,IF(AJ96=statistics!$D$3,AG96,""),IF(B96<>"",AG96,"")) ->  | AL96: =IF(statistics!$D$3<>0,IF(AJ96=statistics!$D$3,IF(AH96=0,"",AH96),""),IF(AH96<>0,AH96,"")) ->  | AM96: =IF(statistics!$D$3<>0,IF(AJ96=statistics!$D$3,IF(A96=0,"",1),""),IF(A96=0,"",1)) ->  | AX96: 0 | BG96: 0 | BK96: 95
S97: 96 | U97: =IF(A98=0,IF(B98="",IF(B97=0,"",SUM($AG$1:AG97)-SUM($U$1:U96)),""),SUM($AG$1:AG97)-SUM($U$1:U96)) ->  | AA97: 0 | AB97: =IF(AJ97=statistics!$D$3,AB96+AH97-AG97,) -> 0 | AC97: =IF(AND(ROW(AC97)>=statistics!$C$55,ROW(AC97)<=statistics!$D$55),AC96+AH97-AG97,) -> 0 | AD97: =IF(AND(statistics!$C$55<=ROW(A97),ROW(A97)<=statistics!$D$55)=TRUE,AH97-AG97+AA96-INDEX(AA:AA,statistics!$C$55),"") ->  | AG97: 0 | AH97: 0 | AI97: 0 | AK97: =IF(statistics!$D$3<>0,IF(AJ97=statistics!$D$3,AG97,""),IF(B97<>"",AG97,"")) ->  | AL97: =IF(statistics!$D$3<>0,IF(AJ97=statistics!$D$3,IF(AH97=0,"",AH97),""),IF(AH97<>0,AH97,"")) ->  | AM97: =IF(statistics!$D$3<>0,IF(AJ97=statistics!$D$3,IF(A97=0,"",1),""),IF(A97=0,"",1)) ->  | AX97: 0 | BG97: 0 | BK97: 96
S98: 97 | U98: =IF(A99=0,IF(B99="",IF(B98=0,"",SUM($AG$1:AG98)-SUM($U$1:U97)),""),SUM($AG$1:AG98)-SUM($U$1:U97)) ->  | AA98: 0 | AB98: =IF(AJ98=statistics!$D$3,AB97+AH98-AG98,) -> 0 | AC98: =IF(AND(ROW(AC98)>=statistics!$C$55,ROW(AC98)<=statistics!$D$55),AC97+AH98-AG98,) -> 0 | AD98: =IF(AND(statistics!$C$55<=ROW(A98),ROW(A98)<=statistics!$D$55)=TRUE,AH98-AG98+AA97-INDEX(AA:AA,statistics!$C$55),"") ->  | AG98: 0 | AH98: 0 | AI98: 0 | AK98: =IF(statistics!$D$3<>0,IF(AJ98=statistics!$D$3,AG98,""),IF(B98<>"",AG98,"")) ->  | AL98: =IF(statistics!$D$3<>0,IF(AJ98=statistics!$D$3,IF(AH98=0,"",AH98),""),IF(AH98<>0,AH98,"")) ->  | AM98: =IF(statistics!$D$3<>0,IF(AJ98=statistics!$D$3,IF(A98=0,"",1),""),IF(A98=0,"",1)) ->  | AX98: 0 | BG98: 0 | BK98: 97
S99: 98 | U99: =IF(A100=0,IF(B100="",IF(B99=0,"",SUM($AG$1:AG99)-SUM($U$1:U98)),""),SUM($AG$1:AG99)-SUM($U$1:U98)) ->  | AA99: 0 | AB99: =IF(AJ99=statistics!$D$3,AB98+AH99-AG99,) -> 0 | AC99: =IF(AND(ROW(AC99)>=statistics!$C$55,ROW(AC99)<=statistics!$D$55),AC98+AH99-AG99,) -> 0 | AD99: =IF(AND(statistics!$C$55<=ROW(A99),ROW(A99)<=statistics!$D$55)=TRUE,AH99-AG99+AA98-INDEX(AA:AA,statistics!$C$55),"") ->  | AG99: 0 | AH99: 0 | AI99: 0 | AK99: =IF(statistics!$D$3<>0,IF(AJ99=statistics!$D$3,AG99,""),IF(B99<>"",AG99,"")) ->  | AL99: =IF(statistics!$D$3<>0,IF(AJ99=statistics!$D$3,IF(AH99=0,"",AH99),""),IF(AH99<>0,AH99,"")) ->  | AM99: =IF(statistics!$D$3<>0,IF(AJ99=statistics!$D$3,IF(A99=0,"",1),""),IF(A99=0,"",1)) ->  | AX99: 0 | BG99: 0 | BK99: 98
S100: 99 | U100: =IF(A101=0,IF(B101="",IF(B100=0,"",SUM($AG$1:AG100)-SUM($U$1:U99)),""),SUM($AG$1:AG100)-SUM($U$1:U99)) ->  | AA100: 0 | AB100: =IF(AJ100=statistics!$D$3,AB99+AH100-AG100,) -> 0 | AC100: =IF(AND(ROW(AC100)>=statistics!$C$55,ROW(AC100)<=statistics!$D$55),AC99+AH100-AG100,) -> 0 | AD100: =IF(AND(statistics!$C$55<=ROW(A100),ROW(A100)<=statistics!$D$55)=TRUE,AH100-AG100+AA99-INDEX(AA:AA,statistics!$C$55),"") ->  | AG100: 0 | AH100: 0 | AI100: 0 | AK100: =IF(statistics!$D$3<>0,IF(AJ100=statistics!$D$3,AG100,""),IF(B100<>"",AG100,"")) ->  | AL100: =IF(statistics!$D$3<>0,IF(AJ100=statistics!$D$3,IF(AH100=0,"",AH100),""),IF(AH100<>0,AH100,"")) ->  | AM100: =IF(statistics!$D$3<>0,IF(AJ100=statistics!$D$3,IF(A100=0,"",1),""),IF(A100=0,"",1)) ->  | AX100: 0 | BG100: 0 | BK100: 99
S101: 100 | U101: =IF(A102=0,IF(B102="",IF(B101=0,"",SUM($AG$1:AG101)-SUM($U$1:U100)),""),SUM($AG$1:AG101)-SUM($U$1:U100)) ->  | AA101: 0 | AB101: =IF(AJ101=statistics!$D$3,AB100+AH101-AG101,) -> 0 | AC101: =IF(AND(ROW(AC101)>=statistics!$C$55,ROW(AC101)<=statistics!$D$55),AC100+AH101-AG101,) -> 0 | AD101: =IF(AND(statistics!$C$55<=ROW(A101),ROW(A101)<=statistics!$D$55)=TRUE,AH101-AG101+AA100-INDEX(AA:AA,statistics!$C$55),"") ->  | AG101: 0 | AH101: 0 | AI101: 0 | AK101: =IF(statistics!$D$3<>0,IF(AJ101=statistics!$D$3,AG101,""),IF(B101<>"",AG101,"")) ->  | AL101: =IF(statistics!$D$3<>0,IF(AJ101=statistics!$D$3,IF(AH101=0,"",AH101),""),IF(AH101<>0,AH101,"")) ->  | AM101: =IF(statistics!$D$3<>0,IF(AJ101=statistics!$D$3,IF(A101=0,"",1),""),IF(A101=0,"",1)) ->  | AX101: 0 | BG101: 0 | BK101: 100
S102: 101 | U102: =IF(A103=0,IF(B103="",IF(B102=0,"",SUM($AG$1:AG102)-SUM($U$1:U101)),""),SUM($AG$1:AG102)-SUM($U$1:U101)) ->  | AA102: 0 | AB102: =IF(AJ102=statistics!$D$3,AB101+AH102-AG102,) -> 0 | AC102: =IF(AND(ROW(AC102)>=statistics!$C$55,ROW(AC102)<=statistics!$D$55),AC101+AH102-AG102,) -> 0 | AD102: =IF(AND(statistics!$C$55<=ROW(A102),ROW(A102)<=statistics!$D$55)=TRUE,AH102-AG102+AA101-INDEX(AA:AA,statistics!$C$55),"") ->  | AG102: 0 | AH102: 0 | AI102: 0 | AK102: =IF(statistics!$D$3<>0,IF(AJ102=statistics!$D$3,AG102,""),IF(B102<>"",AG102,"")) ->  | AL102: =IF(statistics!$D$3<>0,IF(AJ102=statistics!$D$3,IF(AH102=0,"",AH102),""),IF(AH102<>0,AH102,"")) ->  | AM102: =IF(statistics!$D$3<>0,IF(AJ102=statistics!$D$3,IF(A102=0,"",1),""),IF(A102=0,"",1)) ->  | AX102: 0 | BG102: 0 | BK102: 101
S103: 102 | U103: =IF(A104=0,IF(B104="",IF(B103=0,"",SUM($AG$1:AG103)-SUM($U$1:U102)),""),SUM($AG$1:AG103)-SUM($U$1:U102)) ->  | AA103: 0 | AB103: =IF(AJ103=statistics!$D$3,AB102+AH103-AG103,) -> 0 | AC103: =IF(AND(ROW(AC103)>=statistics!$C$55,ROW(AC103)<=statistics!$D$55),AC102+AH103-AG103,) -> 0 | AD103: =IF(AND(statistics!$C$55<=ROW(A103),ROW(A103)<=statistics!$D$55)=TRUE,AH103-AG103+AA102-INDEX(AA:AA,statistics!$C$55),"") ->  | AG103: 0 | AH103: 0 | AI103: 0 | AK103: =IF(statistics!$D$3<>0,IF(AJ103=statistics!$D$3,AG103,""),IF(B103<>"",AG103,"")) ->  | AL103: =IF(statistics!$D$3<>0,IF(AJ103=statistics!$D$3,IF(AH103=0,"",AH103),""),IF(AH103<>0,AH103,"")) ->  | AM103: =IF(statistics!$D$3<>0,IF(AJ103=statistics!$D$3,IF(A103=0,"",1),""),IF(A103=0,"",1)) ->  | AX103: 0 | BG103: 0 | BK103: 102
S104: 103 | U104: =IF(A105=0,IF(B105="",IF(B104=0,"",SUM($AG$1:AG104)-SUM($U$1:U103)),""),SUM($AG$1:AG104)-SUM($U$1:U103)) ->  | AA104: 0 | AB104: =IF(AJ104=statistics!$D$3,AB103+AH104-AG104,) -> 0 | AC104: =IF(AND(ROW(AC104)>=statistics!$C$55,ROW(AC104)<=statistics!$D$55),AC103+AH104-AG104,) -> 0 | AD104: =IF(AND(statistics!$C$55<=ROW(A104),ROW(A104)<=statistics!$D$55)=TRUE,AH104-AG104+AA103-INDEX(AA:AA,statistics!$C$55),"") ->  | AG104: 0 | AH104: 0 | AI104: 0 | AK104: =IF(statistics!$D$3<>0,IF(AJ104=statistics!$D$3,AG104,""),IF(B104<>"",AG104,"")) ->  | AL104: =IF(statistics!$D$3<>0,IF(AJ104=statistics!$D$3,IF(AH104=0,"",AH104),""),IF(AH104<>0,AH104,"")) ->  | AM104: =IF(statistics!$D$3<>0,IF(AJ104=statistics!$D$3,IF(A104=0,"",1),""),IF(A104=0,"",1)) ->  | AX104: 0 | BG104: 0 | BK104: 103
S105: 104 | U105: =IF(A106=0,IF(B106="",IF(B105=0,"",SUM($AG$1:AG105)-SUM($U$1:U104)),""),SUM($AG$1:AG105)-SUM($U$1:U104)) ->  | AA105: 0 | AB105: =IF(AJ105=statistics!$D$3,AB104+AH105-AG105,) -> 0 | AC105: =IF(AND(ROW(AC105)>=statistics!$C$55,ROW(AC105)<=statistics!$D$55),AC104+AH105-AG105,) -> 0 | AD105: =IF(AND(statistics!$C$55<=ROW(A105),ROW(A105)<=statistics!$D$55)=TRUE,AH105-AG105+AA104-INDEX(AA:AA,statistics!$C$55),"") ->  | AG105: 0 | AH105: 0 | AI105: 0 | AK105: =IF(statistics!$D$3<>0,IF(AJ105=statistics!$D$3,AG105,""),IF(B105<>"",AG105,"")) ->  | AL105: =IF(statistics!$D$3<>0,IF(AJ105=statistics!$D$3,IF(AH105=0,"",AH105),""),IF(AH105<>0,AH105,"")) ->  | AM105: =IF(statistics!$D$3<>0,IF(AJ105=statistics!$D$3,IF(A105=0,"",1),""),IF(A105=0,"",1)) ->  | AX105: 0 | BG105: 0 | BK105: 104
S106: 105 | U106: =IF(A107=0,IF(B107="",IF(B106=0,"",SUM($AG$1:AG106)-SUM($U$1:U105)),""),SUM($AG$1:AG106)-SUM($U$1:U105)) ->  | AA106: 0 | AB106: =IF(AJ106=statistics!$D$3,AB105+AH106-AG106,) -> 0 | AC106: =IF(AND(ROW(AC106)>=statistics!$C$55,ROW(AC106)<=statistics!$D$55),AC105+AH106-AG106,) -> 0 | AD106: =IF(AND(statistics!$C$55<=ROW(A106),ROW(A106)<=statistics!$D$55)=TRUE,AH106-AG106+AA105-INDEX(AA:AA,statistics!$C$55),"") ->  | AG106: 0 | AH106: 0 | AI106: 0 | AK106: =IF(statistics!$D$3<>0,IF(AJ106=statistics!$D$3,AG106,""),IF(B106<>"",AG106,"")) ->  | AL106: =IF(statistics!$D$3<>0,IF(AJ106=statistics!$D$3,IF(AH106=0,"",AH106),""),IF(AH106<>0,AH106,"")) ->  | AM106: =IF(statistics!$D$3<>0,IF(AJ106=statistics!$D$3,IF(A106=0,"",1),""),IF(A106=0,"",1)) ->  | AX106: 0 | BG106: 0 | BK106: 105
S107: 106 | U107: =IF(A108=0,IF(B108="",IF(B107=0,"",SUM($AG$1:AG107)-SUM($U$1:U106)),""),SUM($AG$1:AG107)-SUM($U$1:U106)) ->  | AA107: 0 | AB107: =IF(AJ107=statistics!$D$3,AB106+AH107-AG107,) -> 0 | AC107: =IF(AND(ROW(AC107)>=statistics!$C$55,ROW(AC107)<=statistics!$D$55),AC106+AH107-AG107,) -> 0 | AD107: =IF(AND(statistics!$C$55<=ROW(A107),ROW(A107)<=statistics!$D$55)=TRUE,AH107-AG107+AA106-INDEX(AA:AA,statistics!$C$55),"") ->  | AG107: 0 | AH107: 0 | AI107: 0 | AK107: =IF(statistics!$D$3<>0,IF(AJ107=statistics!$D$3,AG107,""),IF(B107<>"",AG107,"")) ->  | AL107: =IF(statistics!$D$3<>0,IF(AJ107=statistics!$D$3,IF(AH107=0,"",AH107),""),IF(AH107<>0,AH107,"")) ->  | AM107: =IF(statistics!$D$3<>0,IF(AJ107=statistics!$D$3,IF(A107=0,"",1),""),IF(A107=0,"",1)) ->  | AX107: 0 | BG107: 0 | BK107: 106
S108: 107 | U108: =IF(A109=0,IF(B109="",IF(B108=0,"",SUM($AG$1:AG108)-SUM($U$1:U107)),""),SUM($AG$1:AG108)-SUM($U$1:U107)) ->  | AA108: 0 | AB108: =IF(AJ108=statistics!$D$3,AB107+AH108-AG108,) -> 0 | AC108: =IF(AND(ROW(AC108)>=statistics!$C$55,ROW(AC108)<=statistics!$D$55),AC107+AH108-AG108,) -> 0 | AD108: =IF(AND(statistics!$C$55<=ROW(A108),ROW(A108)<=statistics!$D$55)=TRUE,AH108-AG108+AA107-INDEX(AA:AA,statistics!$C$55),"") ->  | AG108: 0 | AH108: 0 | AI108: 0 | AK108: =IF(statistics!$D$3<>0,IF(AJ108=statistics!$D$3,AG108,""),IF(B108<>"",AG108,"")) ->  | AL108: =IF(statistics!$D$3<>0,IF(AJ108=statistics!$D$3,IF(AH108=0,"",AH108),""),IF(AH108<>0,AH108,"")) ->  | AM108: =IF(statistics!$D$3<>0,IF(AJ108=statistics!$D$3,IF(A108=0,"",1),""),IF(A108=0,"",1)) ->  | AX108: 0 | BG108: 0 | BK108: 107
S109: 108 | U109: =IF(A110=0,IF(B110="",IF(B109=0,"",SUM($AG$1:AG109)-SUM($U$1:U108)),""),SUM($AG$1:AG109)-SUM($U$1:U108)) ->  | AA109: 0 | AB109: =IF(AJ109=statistics!$D$3,AB108+AH109-AG109,) -> 0 | AC109: =IF(AND(ROW(AC109)>=statistics!$C$55,ROW(AC109)<=statistics!$D$55),AC108+AH109-AG109,) -> 0 | AD109: =IF(AND(statistics!$C$55<=ROW(A109),ROW(A109)<=statistics!$D$55)=TRUE,AH109-AG109+AA108-INDEX(AA:AA,statistics!$C$55),"") ->  | AG109: 0 | AH109: 0 | AI109: 0 | AK109: =IF(statistics!$D$3<>0,IF(AJ109=statistics!$D$3,AG109,""),IF(B109<>"",AG109,"")) ->  | AL109: =IF(statistics!$D$3<>0,IF(AJ109=statistics!$D$3,IF(AH109=0,"",AH109),""),IF(AH109<>0,AH109,"")) ->  | AM109: =IF(statistics!$D$3<>0,IF(AJ109=statistics!$D$3,IF(A109=0,"",1),""),IF(A109=0,"",1)) ->  | AX109: 0 | BG109: 0 | BK109: 108
S110: 109 | U110: =IF(A111=0,IF(B111="",IF(B110=0,"",SUM($AG$1:AG110)-SUM($U$1:U109)),""),SUM($AG$1:AG110)-SUM($U$1:U109)) ->  | AA110: 0 | AB110: =IF(AJ110=statistics!$D$3,AB109+AH110-AG110,) -> 0 | AC110: =IF(AND(ROW(AC110)>=statistics!$C$55,ROW(AC110)<=statistics!$D$55),AC109+AH110-AG110,) -> 0 | AD110: =IF(AND(statistics!$C$55<=ROW(A110),ROW(A110)<=statistics!$D$55)=TRUE,AH110-AG110+AA109-INDEX(AA:AA,statistics!$C$55),"") ->  | AG110: 0 | AH110: 0 | AI110: 0 | AK110: =IF(statistics!$D$3<>0,IF(AJ110=statistics!$D$3,AG110,""),IF(B110<>"",AG110,"")) ->  | AL110: =IF(statistics!$D$3<>0,IF(AJ110=statistics!$D$3,IF(AH110=0,"",AH110),""),IF(AH110<>0,AH110,"")) ->  | AM110: =IF(statistics!$D$3<>0,IF(AJ110=statistics!$D$3,IF(A110=0,"",1),""),IF(A110=0,"",1)) ->  | AX110: 0 | BG110: 0 | BK110: 109
S111: 110 | U111: =IF(A112=0,IF(B112="",IF(B111=0,"",SUM($AG$1:AG111)-SUM($U$1:U110)),""),SUM($AG$1:AG111)-SUM($U$1:U110)) ->  | AA111: 0 | AB111: =IF(AJ111=statistics!$D$3,AB110+AH111-AG111,) -> 0 | AC111: =IF(AND(ROW(AC111)>=statistics!$C$55,ROW(AC111)<=statistics!$D$55),AC110+AH111-AG111,) -> 0 | AD111: =IF(AND(statistics!$C$55<=ROW(A111),ROW(A111)<=statistics!$D$55)=TRUE,AH111-AG111+AA110-INDEX(AA:AA,statistics!$C$55),"") ->  | AG111: 0 | AH111: 0 | AI111: 0 | AK111: =IF(statistics!$D$3<>0,IF(AJ111=statistics!$D$3,AG111,""),IF(B111<>"",AG111,"")) ->  | AL111: =IF(statistics!$D$3<>0,IF(AJ111=statistics!$D$3,IF(AH111=0,"",AH111),""),IF(AH111<>0,AH111,"")) ->  | AM111: =IF(statistics!$D$3<>0,IF(AJ111=statistics!$D$3,IF(A111=0,"",1),""),IF(A111=0,"",1)) ->  | AX111: 0 | BG111: 0 | BK111: 110
S112: 111 | U112: =IF(A113=0,IF(B113="",IF(B112=0,"",SUM($AG$1:AG112)-SUM($U$1:U111)),""),SUM($AG$1:AG112)-SUM($U$1:U111)) ->  | AA112: 0 | AB112: =IF(AJ112=statistics!$D$3,AB111+AH112-AG112,) -> 0 | AC112: =IF(AND(ROW(AC112)>=statistics!$C$55,ROW(AC112)<=statistics!$D$55),AC111+AH112-AG112,) -> 0 | AD112: =IF(AND(statistics!$C$55<=ROW(A112),ROW(A112)<=statistics!$D$55)=TRUE,AH112-AG112+AA111-INDEX(AA:AA,statistics!$C$55),"") ->  | AG112: 0 | AH112: 0 | AI112: 0 | AK112: =IF(statistics!$D$3<>0,IF(AJ112=statistics!$D$3,AG112,""),IF(B112<>"",AG112,"")) ->  | AL112: =IF(statistics!$D$3<>0,IF(AJ112=statistics!$D$3,IF(AH112=0,"",AH112),""),IF(AH112<>0,AH112,"")) ->  | AM112: =IF(statistics!$D$3<>0,IF(AJ112=statistics!$D$3,IF(A112=0,"",1),""),IF(A112=0,"",1)) ->  | AX112: 0 | BG112: 0 | BK112: 111
S113: 112 | U113: =IF(A114=0,IF(B114="",IF(B113=0,"",SUM($AG$1:AG113)-SUM($U$1:U112)),""),SUM($AG$1:AG113)-SUM($U$1:U112)) ->  | AA113: 0 | AB113: =IF(AJ113=statistics!$D$3,AB112+AH113-AG113,) -> 0 | AC113: =IF(AND(ROW(AC113)>=statistics!$C$55,ROW(AC113)<=statistics!$D$55),AC112+AH113-AG113,) -> 0 | AD113: =IF(AND(statistics!$C$55<=ROW(A113),ROW(A113)<=statistics!$D$55)=TRUE,AH113-AG113+AA112-INDEX(AA:AA,statistics!$C$55),"") ->  | AG113: 0 | AH113: 0 | AI113: 0 | AK113: =IF(statistics!$D$3<>0,IF(AJ113=statistics!$D$3,AG113,""),IF(B113<>"",AG113,"")) ->  | AL113: =IF(statistics!$D$3<>0,IF(AJ113=statistics!$D$3,IF(AH113=0,"",AH113),""),IF(AH113<>0,AH113,"")) ->  | AM113: =IF(statistics!$D$3<>0,IF(AJ113=statistics!$D$3,IF(A113=0,"",1),""),IF(A113=0,"",1)) ->  | AX113: 0 | BG113: 0 | BK113: 112
S114: 113 | U114: =IF(A115=0,IF(B115="",IF(B114=0,"",SUM($AG$1:AG114)-SUM($U$1:U113)),""),SUM($AG$1:AG114)-SUM($U$1:U113)) ->  | AA114: 0 | AB114: =IF(AJ114=statistics!$D$3,AB113+AH114-AG114,) -> 0 | AC114: =IF(AND(ROW(AC114)>=statistics!$C$55,ROW(AC114)<=statistics!$D$55),AC113+AH114-AG114,) -> 0 | AD114: =IF(AND(statistics!$C$55<=ROW(A114),ROW(A114)<=statistics!$D$55)=TRUE,AH114-AG114+AA113-INDEX(AA:AA,statistics!$C$55),"") ->  | AG114: 0 | AH114: 0 | AI114: 0 | AK114: =IF(statistics!$D$3<>0,IF(AJ114=statistics!$D$3,AG114,""),IF(B114<>"",AG114,"")) ->  | AL114: =IF(statistics!$D$3<>0,IF(AJ114=statistics!$D$3,IF(AH114=0,"",AH114),""),IF(AH114<>0,AH114,"")) ->  | AM114: =IF(statistics!$D$3<>0,IF(AJ114=statistics!$D$3,IF(A114=0,"",1),""),IF(A114=0,"",1)) ->  | AX114: 0 | BG114: 0 | BK114: 113
S115: 114 | U115: =IF(A116=0,IF(B116="",IF(B115=0,"",SUM($AG$1:AG115)-SUM($U$1:U114)),""),SUM($AG$1:AG115)-SUM($U$1:U114)) ->  | AA115: 0 | AB115: =IF(AJ115=statistics!$D$3,AB114+AH115-AG115,) -> 0 | AC115: =IF(AND(ROW(AC115)>=statistics!$C$55,ROW(AC115)<=statistics!$D$55),AC114+AH115-AG115,) -> 0 | AD115: =IF(AND(statistics!$C$55<=ROW(A115),ROW(A115)<=statistics!$D$55)=TRUE,AH115-AG115+AA114-INDEX(AA:AA,statistics!$C$55),"") ->  | AG115: 0 | AH115: 0 | AI115: 0 | AK115: =IF(statistics!$D$3<>0,IF(AJ115=statistics!$D$3,AG115,""),IF(B115<>"",AG115,"")) ->  | AL115: =IF(statistics!$D$3<>0,IF(AJ115=statistics!$D$3,IF(AH115=0,"",AH115),""),IF(AH115<>0,AH115,"")) ->  | AM115: =IF(statistics!$D$3<>0,IF(AJ115=statistics!$D$3,IF(A115=0,"",1),""),IF(A115=0,"",1)) ->  | AX115: 0 | BG115: 0 | BK115: 114
S116: 115 | U116: =IF(A117=0,IF(B117="",IF(B116=0,"",SUM($AG$1:AG116)-SUM($U$1:U115)),""),SUM($AG$1:AG116)-SUM($U$1:U115)) ->  | AA116: 0 | AB116: =IF(AJ116=statistics!$D$3,AB115+AH116-AG116,) -> 0 | AC116: =IF(AND(ROW(AC116)>=statistics!$C$55,ROW(AC116)<=statistics!$D$55),AC115+AH116-AG116,) -> 0 | AD116: =IF(AND(statistics!$C$55<=ROW(A116),ROW(A116)<=statistics!$D$55)=TRUE,AH116-AG116+AA115-INDEX(AA:AA,statistics!$C$55),"") ->  | AG116: 0 | AH116: 0 | AI116: 0 | AK116: =IF(statistics!$D$3<>0,IF(AJ116=statistics!$D$3,AG116,""),IF(B116<>"",AG116,"")) ->  | AL116: =IF(statistics!$D$3<>0,IF(AJ116=statistics!$D$3,IF(AH116=0,"",AH116),""),IF(AH116<>0,AH116,"")) ->  | AM116: =IF(statistics!$D$3<>0,IF(AJ116=statistics!$D$3,IF(A116=0,"",1),""),IF(A116=0,"",1)) ->  | AX116: 0 | BG116: 0 | BK116: 115
S117: 116 | U117: =IF(A118=0,IF(B118="",IF(B117=0,"",SUM($AG$1:AG117)-SUM($U$1:U116)),""),SUM($AG$1:AG117)-SUM($U$1:U116)) ->  | AA117: 0 | AB117: =IF(AJ117=statistics!$D$3,AB116+AH117-AG117,) -> 0 | AC117: =IF(AND(ROW(AC117)>=statistics!$C$55,ROW(AC117)<=statistics!$D$55),AC116+AH117-AG117,) -> 0 | AD117: =IF(AND(statistics!$C$55<=ROW(A117),ROW(A117)<=statistics!$D$55)=TRUE,AH117-AG117+AA116-INDEX(AA:AA,statistics!$C$55),"") ->  | AG117: 0 | AH117: 0 | AI117: 0 | AK117: =IF(statistics!$D$3<>0,IF(AJ117=statistics!$D$3,AG117,""),IF(B117<>"",AG117,"")) ->  | AL117: =IF(statistics!$D$3<>0,IF(AJ117=statistics!$D$3,IF(AH117=0,"",AH117),""),IF(AH117<>0,AH117,"")) ->  | AM117: =IF(statistics!$D$3<>0,IF(AJ117=statistics!$D$3,IF(A117=0,"",1),""),IF(A117=0,"",1)) ->  | AX117: 0 | BG117: 0 | BK117: 116
S118: 117 | U118: =IF(A119=0,IF(B119="",IF(B118=0,"",SUM($AG$1:AG118)-SUM($U$1:U117)),""),SUM($AG$1:AG118)-SUM($U$1:U117)) ->  | AA118: 0 | AB118: =IF(AJ118=statistics!$D$3,AB117+AH118-AG118,) -> 0 | AC118: =IF(AND(ROW(AC118)>=statistics!$C$55,ROW(AC118)<=statistics!$D$55),AC117+AH118-AG118,) -> 0 | AD118: =IF(AND(statistics!$C$55<=ROW(A118),ROW(A118)<=statistics!$D$55)=TRUE,AH118-AG118+AA117-INDEX(AA:AA,statistics!$C$55),"") ->  | AG118: 0 | AH118: 0 | AI118: 0 | AK118: =IF(statistics!$D$3<>0,IF(AJ118=statistics!$D$3,AG118,""),IF(B118<>"",AG118,"")) ->  | AL118: =IF(statistics!$D$3<>0,IF(AJ118=statistics!$D$3,IF(AH118=0,"",AH118),""),IF(AH118<>0,AH118,"")) ->  | AM118: =IF(statistics!$D$3<>0,IF(AJ118=statistics!$D$3,IF(A118=0,"",1),""),IF(A118=0,"",1)) ->  | AX118: 0 | BG118: 0 | BK118: 117
S119: 118 | U119: =IF(A120=0,IF(B120="",IF(B119=0,"",SUM($AG$1:AG119)-SUM($U$1:U118)),""),SUM($AG$1:AG119)-SUM($U$1:U118)) ->  | AA119: 0 | AB119: =IF(AJ119=statistics!$D$3,AB118+AH119-AG119,) -> 0 | AC119: =IF(AND(ROW(AC119)>=statistics!$C$55,ROW(AC119)<=statistics!$D$55),AC118+AH119-AG119,) -> 0 | AD119: =IF(AND(statistics!$C$55<=ROW(A119),ROW(A119)<=statistics!$D$55)=TRUE,AH119-AG119+AA118-INDEX(AA:AA,statistics!$C$55),"") ->  | AG119: 0 | AH119: 0 | AI119: 0 | AK119: =IF(statistics!$D$3<>0,IF(AJ119=statistics!$D$3,AG119,""),IF(B119<>"",AG119,"")) ->  | AL119: =IF(statistics!$D$3<>0,IF(AJ119=statistics!$D$3,IF(AH119=0,"",AH119),""),IF(AH119<>0,AH119,"")) ->  | AM119: =IF(statistics!$D$3<>0,IF(AJ119=statistics!$D$3,IF(A119=0,"",1),""),IF(A119=0,"",1)) ->  | AX119: 0 | BG119: 0 | BK119: 118
S120: 119 | U120: =IF(A121=0,IF(B121="",IF(B120=0,"",SUM($AG$1:AG120)-SUM($U$1:U119)),""),SUM($AG$1:AG120)-SUM($U$1:U119)) ->  | AA120: 0 | AB120: =IF(AJ120=statistics!$D$3,AB119+AH120-AG120,) -> 0 | AC120: =IF(AND(ROW(AC120)>=statistics!$C$55,ROW(AC120)<=statistics!$D$55),AC119+AH120-AG120,) -> 0 | AD120: =IF(AND(statistics!$C$55<=ROW(A120),ROW(A120)<=statistics!$D$55)=TRUE,AH120-AG120+AA119-INDEX(AA:AA,statistics!$C$55),"") ->  | AG120: 0 | AH120: 0 | AI120: 0 | AK120: =IF(statistics!$D$3<>0,IF(AJ120=statistics!$D$3,AG120,""),IF(B120<>"",AG120,"")) ->  | AL120: =IF(statistics!$D$3<>0,IF(AJ120=statistics!$D$3,IF(AH120=0,"",AH120),""),IF(AH120<>0,AH120,"")) ->  | AM120: =IF(statistics!$D$3<>0,IF(AJ120=statistics!$D$3,IF(A120=0,"",1),""),IF(A120=0,"",1)) ->  | AX120: 0 | BG120: 0 | BK120: 119
S121: 120 | U121: =IF(A122=0,IF(B122="",IF(B121=0,"",SUM($AG$1:AG121)-SUM($U$1:U120)),""),SUM($AG$1:AG121)-SUM($U$1:U120)) ->  | AA121: 0 | AB121: =IF(AJ121=statistics!$D$3,AB120+AH121-AG121,) -> 0 | AC121: =IF(AND(ROW(AC121)>=statistics!$C$55,ROW(AC121)<=statistics!$D$55),AC120+AH121-AG121,) -> 0 | AD121: =IF(AND(statistics!$C$55<=ROW(A121),ROW(A121)<=statistics!$D$55)=TRUE,AH121-AG121+AA120-INDEX(AA:AA,statistics!$C$55),"") ->  | AG121: 0 | AH121: 0 | AI121: 0 | AK121: =IF(statistics!$D$3<>0,IF(AJ121=statistics!$D$3,AG121,""),IF(B121<>"",AG121,"")) ->  | AL121: =IF(statistics!$D$3<>0,IF(AJ121=statistics!$D$3,IF(AH121=0,"",AH121),""),IF(AH121<>0,AH121,"")) ->  | AM121: =IF(statistics!$D$3<>0,IF(AJ121=statistics!$D$3,IF(A121=0,"",1),""),IF(A121=0,"",1)) ->  | AX121: 0 | BG121: 0 | BK121: 120
S122: 121 | U122: =IF(A123=0,IF(B123="",IF(B122=0,"",SUM($AG$1:AG122)-SUM($U$1:U121)),""),SUM($AG$1:AG122)-SUM($U$1:U121)) ->  | AA122: 0 | AB122: =IF(AJ122=statistics!$D$3,AB121+AH122-AG122,) -> 0 | AC122: =IF(AND(ROW(AC122)>=statistics!$C$55,ROW(AC122)<=statistics!$D$55),AC121+AH122-AG122,) -> 0 | AD122: =IF(AND(statistics!$C$55<=ROW(A122),ROW(A122)<=statistics!$D$55)=TRUE,AH122-AG122+AA121-INDEX(AA:AA,statistics!$C$55),"") ->  | AG122: 0 | AH122: 0 | AI122: 0 | AK122: =IF(statistics!$D$3<>0,IF(AJ122=statistics!$D$3,AG122,""),IF(B122<>"",AG122,"")) ->  | AL122: =IF(statistics!$D$3<>0,IF(AJ122=statistics!$D$3,IF(AH122=0,"",AH122),""),IF(AH122<>0,AH122,"")) ->  | AM122: =IF(statistics!$D$3<>0,IF(AJ122=statistics!$D$3,IF(A122=0,"",1),""),IF(A122=0,"",1)) ->  | AX122: 0 | BG122: 0 | BK122: 121
S123: 122 | U123: =IF(A124=0,IF(B124="",IF(B123=0,"",SUM($AG$1:AG123)-SUM($U$1:U122)),""),SUM($AG$1:AG123)-SUM($U$1:U122)) ->  | AA123: 0 | AB123: =IF(AJ123=statistics!$D$3,AB122+AH123-AG123,) -> 0 | AC123: =IF(AND(ROW(AC123)>=statistics!$C$55,ROW(AC123)<=statistics!$D$55),AC122+AH123-AG123,) -> 0 | AD123: =IF(AND(statistics!$C$55<=ROW(A123),ROW(A123)<=statistics!$D$55)=TRUE,AH123-AG123+AA122-INDEX(AA:AA,statistics!$C$55),"") ->  | AG123: 0 | AH123: 0 | AI123: 0 | AK123: =IF(statistics!$D$3<>0,IF(AJ123=statistics!$D$3,AG123,""),IF(B123<>"",AG123,"")) ->  | AL123: =IF(statistics!$D$3<>0,IF(AJ123=statistics!$D$3,IF(AH123=0,"",AH123),""),IF(AH123<>0,AH123,"")) ->  | AM123: =IF(statistics!$D$3<>0,IF(AJ123=statistics!$D$3,IF(A123=0,"",1),""),IF(A123=0,"",1)) ->  | AX123: 0 | BG123: 0 | BK123: 122
S124: 123 | U124: =IF(A125=0,IF(B125="",IF(B124=0,"",SUM($AG$1:AG124)-SUM($U$1:U123)),""),SUM($AG$1:AG124)-SUM($U$1:U123)) ->  | AA124: 0 | AB124: =IF(AJ124=statistics!$D$3,AB123+AH124-AG124,) -> 0 | AC124: =IF(AND(ROW(AC124)>=statistics!$C$55,ROW(AC124)<=statistics!$D$55),AC123+AH124-AG124,) -> 0 | AD124: =IF(AND(statistics!$C$55<=ROW(A124),ROW(A124)<=statistics!$D$55)=TRUE,AH124-AG124+AA123-INDEX(AA:AA,statistics!$C$55),"") ->  | AG124: 0 | AH124: 0 | AI124: 0 | AK124: =IF(statistics!$D$3<>0,IF(AJ124=statistics!$D$3,AG124,""),IF(B124<>"",AG124,"")) ->  | AL124: =IF(statistics!$D$3<>0,IF(AJ124=statistics!$D$3,IF(AH124=0,"",AH124),""),IF(AH124<>0,AH124,"")) ->  | AM124: =IF(statistics!$D$3<>0,IF(AJ124=statistics!$D$3,IF(A124=0,"",1),""),IF(A124=0,"",1)) ->  | AX124: 0 | BG124: 0 | BK124: 123
S125: 124 | U125: =IF(A126=0,IF(B126="",IF(B125=0,"",SUM($AG$1:AG125)-SUM($U$1:U124)),""),SUM($AG$1:AG125)-SUM($U$1:U124)) ->  | AA125: 0 | AB125: =IF(AJ125=statistics!$D$3,AB124+AH125-AG125,) -> 0 | AC125: =IF(AND(ROW(AC125)>=statistics!$C$55,ROW(AC125)<=statistics!$D$55),AC124+AH125-AG125,) -> 0 | AD125: =IF(AND(statistics!$C$55<=ROW(A125),ROW(A125)<=statistics!$D$55)=TRUE,AH125-AG125+AA124-INDEX(AA:AA,statistics!$C$55),"") ->  | AG125: 0 | AH125: 0 | AI125: 0 | AK125: =IF(statistics!$D$3<>0,IF(AJ125=statistics!$D$3,AG125,""),IF(B125<>"",AG125,"")) ->  | AL125: =IF(statistics!$D$3<>0,IF(AJ125=statistics!$D$3,IF(AH125=0,"",AH125),""),IF(AH125<>0,AH125,"")) ->  | AM125: =IF(statistics!$D$3<>0,IF(AJ125=statistics!$D$3,IF(A125=0,"",1),""),IF(A125=0,"",1)) ->  | AX125: 0 | BG125: 0 | BK125: 124
S126: 125 | U126: =IF(A127=0,IF(B127="",IF(B126=0,"",SUM($AG$1:AG126)-SUM($U$1:U125)),""),SUM($AG$1:AG126)-SUM($U$1:U125)) ->  | AA126: 0 | AB126: =IF(AJ126=statistics!$D$3,AB125+AH126-AG126,) -> 0 | AC126: =IF(AND(ROW(AC126)>=statistics!$C$55,ROW(AC126)<=statistics!$D$55),AC125+AH126-AG126,) -> 0 | AD126: =IF(AND(statistics!$C$55<=ROW(A126),ROW(A126)<=statistics!$D$55)=TRUE,AH126-AG126+AA125-INDEX(AA:AA,statistics!$C$55),"") ->  | AG126: 0 | AH126: 0 | AI126: 0 | AK126: =IF(statistics!$D$3<>0,IF(AJ126=statistics!$D$3,AG126,""),IF(B126<>"",AG126,"")) ->  | AL126: =IF(statistics!$D$3<>0,IF(AJ126=statistics!$D$3,IF(AH126=0,"",AH126),""),IF(AH126<>0,AH126,"")) ->  | AM126: =IF(statistics!$D$3<>0,IF(AJ126=statistics!$D$3,IF(A126=0,"",1),""),IF(A126=0,"",1)) ->  | AX126: 0 | BG126: 0 | BK126: 125
S127: 126 | U127: =IF(A128=0,IF(B128="",IF(B127=0,"",SUM($AG$1:AG127)-SUM($U$1:U126)),""),SUM($AG$1:AG127)-SUM($U$1:U126)) ->  | AA127: 0 | AB127: =IF(AJ127=statistics!$D$3,AB126+AH127-AG127,) -> 0 | AC127: =IF(AND(ROW(AC127)>=statistics!$C$55,ROW(AC127)<=statistics!$D$55),AC126+AH127-AG127,) -> 0 | AD127: =IF(AND(statistics!$C$55<=ROW(A127),ROW(A127)<=statistics!$D$55)=TRUE,AH127-AG127+AA126-INDEX(AA:AA,statistics!$C$55),"") ->  | AG127: 0 | AH127: 0 | AI127: 0 | AK127: =IF(statistics!$D$3<>0,IF(AJ127=statistics!$D$3,AG127,""),IF(B127<>"",AG127,"")) ->  | AL127: =IF(statistics!$D$3<>0,IF(AJ127=statistics!$D$3,IF(AH127=0,"",AH127),""),IF(AH127<>0,AH127,"")) ->  | AM127: =IF(statistics!$D$3<>0,IF(AJ127=statistics!$D$3,IF(A127=0,"",1),""),IF(A127=0,"",1)) ->  | AX127: 0 | BG127: 0 | BK127: 126
S128: 127 | U128: =IF(A129=0,IF(B129="",IF(B128=0,"",SUM($AG$1:AG128)-SUM($U$1:U127)),""),SUM($AG$1:AG128)-SUM($U$1:U127)) ->  | AA128: 0 | AB128: =IF(AJ128=statistics!$D$3,AB127+AH128-AG128,) -> 0 | AC128: =IF(AND(ROW(AC128)>=statistics!$C$55,ROW(AC128)<=statistics!$D$55),AC127+AH128-AG128,) -> 0 | AD128: =IF(AND(statistics!$C$55<=ROW(A128),ROW(A128)<=statistics!$D$55)=TRUE,AH128-AG128+AA127-INDEX(AA:AA,statistics!$C$55),"") ->  | AG128: 0 | AH128: 0 | AI128: 0 | AK128: =IF(statistics!$D$3<>0,IF(AJ128=statistics!$D$3,AG128,""),IF(B128<>"",AG128,"")) ->  | AL128: =IF(statistics!$D$3<>0,IF(AJ128=statistics!$D$3,IF(AH128=0,"",AH128),""),IF(AH128<>0,AH128,"")) ->  | AM128: =IF(statistics!$D$3<>0,IF(AJ128=statistics!$D$3,IF(A128=0,"",1),""),IF(A128=0,"",1)) ->  | AX128: 0 | BG128: 0 | BK128: 127
S129: 128 | U129: =IF(A130=0,IF(B130="",IF(B129=0,"",SUM($AG$1:AG129)-SUM($U$1:U128)),""),SUM($AG$1:AG129)-SUM($U$1:U128)) ->  | AA129: 0 | AB129: =IF(AJ129=statistics!$D$3,AB128+AH129-AG129,) -> 0 | AC129: =IF(AND(ROW(AC129)>=statistics!$C$55,ROW(AC129)<=statistics!$D$55),AC128+AH129-AG129,) -> 0 | AD129: =IF(AND(statistics!$C$55<=ROW(A129),ROW(A129)<=statistics!$D$55)=TRUE,AH129-AG129+AA128-INDEX(AA:AA,statistics!$C$55),"") ->  | AG129: 0 | AH129: 0 | AI129: 0 | AK129: =IF(statistics!$D$3<>0,IF(AJ129=statistics!$D$3,AG129,""),IF(B129<>"",AG129,"")) ->  | AL129: =IF(statistics!$D$3<>0,IF(AJ129=statistics!$D$3,IF(AH129=0,"",AH129),""),IF(AH129<>0,AH129,"")) ->  | AM129: =IF(statistics!$D$3<>0,IF(AJ129=statistics!$D$3,IF(A129=0,"",1),""),IF(A129=0,"",1)) ->  | AX129: 0 | BG129: 0 | BK129: 128
F130: =IF(A130=0,"",IF(T130=0,"",E130/T130)) ->  | H130: =IF(A131=0,IF(B131="",IF(B130=0,"",U130),""),U130) ->  | I130: =IF(A131=0,IF(B131="",IF(B130=0,"",S130),""),S130) ->  | S130: =IF(A130=0,S129+1,1) -> 129 | U130: =IF(A131=0,IF(B131="",IF(B130=0,"",SUM($AG$1:AG130)-SUM($U$1:U129)),""),SUM($AG$1:AG130)-SUM($U$1:U129)) ->  | AA130: 0 | AB130: =IF(AJ130=statistics!$D$3,AB129+AH130-AG130,) -> 0 | AC130: =IF(AND(ROW(AC130)>=statistics!$C$55,ROW(AC130)<=statistics!$D$55),AC129+AH130-AG130,) -> 0 | AD130: =IF(AND(statistics!$C$55<=ROW(A130),ROW(A130)<=statistics!$D$55)=TRUE,AH130-AG130+AA129-INDEX(AA:AA,statistics!$C$55),"") ->  | AG130: 0 | AH130: 0 | AI130: 0 | AK130: =IF(statistics!$D$3<>0,IF(AJ130=statistics!$D$3,AG130,""),IF(B130<>"",AG130,"")) ->  | AL130: =IF(statistics!$D$3<>0,IF(AJ130=statistics!$D$3,IF(AH130=0,"",AH130),""),IF(AH130<>0,AH130,"")) ->  | AM130: =IF(statistics!$D$3<>0,IF(AJ130=statistics!$D$3,IF(A130=0,"",1),""),IF(A130=0,"",1)) ->  | AX130: 0 | BG130: 0 | BK130: 129
E131: =IF(A131=0,"",IF(B131<>"",SUM(AH131:AH10129)-SUM(AG131:AG10129)-SUM(E132:E10129),"")) ->  | L131: =IF(A131=0,"",SUM(AI131:AI10129)-SUM(L132:L10129)) ->  | S131: 130 | T131: =IF(A131=0,"",SUM(AG131:AG10129)-SUM(T132:T10129)) ->  | U131: =IF(A132=0,IF(B132="",IF(B131=0,"",SUM($AG$1:AG131)-SUM($U$1:U130)),""),SUM($AG$1:AG131)-SUM($U$1:U130)) ->  | AA131: =AA130+AH131-AG131 -> 0 | AB131: =IF(AJ131=statistics!$D$3,AB130+AH131-AG131,) -> 0 | AC131: =IF(AND(ROW(AC131)>=statistics!$C$55,ROW(AC131)<=statistics!$D$55),AC130+AH131-AG131,) -> 0 | AD131: =IF(AND(statistics!$C$55<=ROW(A131),ROW(A131)<=statistics!$D$55)=TRUE,AH131-AG131+AA130-INDEX(AA:AA,statistics!$C$55),"") ->  | AG131: 0 | AH131: 0 | AI131: =IF(J131=0,,D131*J131) -> 0 | AK131: =IF(statistics!$D$3<>0,IF(AJ131=statistics!$D$3,AG131,""),IF(B131<>"",AG131,"")) ->  | AL131: =IF(statistics!$D$3<>0,IF(AJ131=statistics!$D$3,IF(AH131=0,"",AH131),""),IF(AH131<>0,AH131,"")) ->  | AM131: =IF(statistics!$D$3<>0,IF(AJ131=statistics!$D$3,IF(A131=0,"",1),""),IF(A131=0,"",1)) ->  | AQ131: =IF(B131=0,"",IF(D131=0,IF(D130=0,AQ130+1,1),"")) ->  | AX131: =J131*D131-J131*K131*(B131+C131) -> 0 | BB131: =IF(B131=$BA$2,ROW(),"") ->  | BE131: =IF(B131=$BA$2,INDEX(D:D,SMALL(BB:BB,CELL("содержимое",BG131)))-INDEX(B:B,SMALL(BB:BB,CELL("содержимое",BG131)))-INDEX(C:C,SMALL(BB:BB,CELL("содержимое",BG131))),"") ->  | BG131: =IF($BA$2=B131,BG130+1,BG130) -> 0 | BI131: =INDEX(BE:BE,SMALL(BB:BB,CELL("содержимое",BK131))) ->  | BJ131: =BJ130+BI131 ->  | BK131: =BK130+1 -> 130
S132: 131 | U132: =IF(A133=0,IF(B133="",IF(B132=0,"",SUM($AG$1:AG132)-SUM($U$1:U131)),""),SUM($AG$1:AG132)-SUM($U$1:U131)) ->  | AA132: 0 | AB132: =IF(AJ132=statistics!$D$3,AB131+AH132-AG132,) -> 0 | AC132: =IF(AND(ROW(AC132)>=statistics!$C$55,ROW(AC132)<=statistics!$D$55),AC131+AH132-AG132,) -> 0 | AD132: =IF(AND(statistics!$C$55<=ROW(A132),ROW(A132)<=statistics!$D$55)=TRUE,AH132-AG132+AA131-INDEX(AA:AA,statistics!$C$55),"") ->  | AG132: 0 | AH132: 0 | AI132: 0 | AK132: =IF(statistics!$D$3<>0,IF(AJ132=statistics!$D$3,AG132,""),IF(B132<>"",AG132,"")) ->  | AL132: =IF(statistics!$D$3<>0,IF(AJ132=statistics!$D$3,IF(AH132=0,"",AH132),""),IF(AH132<>0,AH132,"")) ->  | AM132: =IF(statistics!$D$3<>0,IF(AJ132=statistics!$D$3,IF(A132=0,"",1),""),IF(A132=0,"",1)) ->  | AN132: =IF(AK132<>"",IF(AK131=0,ROW(AK132),ROW(AK132)),"") ->  | AO132: =IF(A132<>0,IF(MONTH(A132)=AJ131,"",MONTH(A132)),"") ->  | AX132: 0 | BG132: 0 | BK132: 131
S133: 132 | U133: =IF(A134=0,IF(B134="",IF(B133=0,"",SUM($AG$1:AG133)-SUM($U$1:U132)),""),SUM($AG$1:AG133)-SUM($U$1:U132)) ->  | AA133: 0 | AB133: =IF(AJ133=statistics!$D$3,AB132+AH133-AG133,) -> 0 | AC133: =IF(AND(ROW(AC133)>=statistics!$C$55,ROW(AC133)<=statistics!$D$55),AC132+AH133-AG133,) -> 0 | AD133: =IF(AND(statistics!$C$55<=ROW(A133),ROW(A133)<=statistics!$D$55)=TRUE,AH133-AG133+AA132-INDEX(AA:AA,statistics!$C$55),"") ->  | AG133: =IF(J133=0,B133+C133,(B133+C133)-(B133+C133)*J133*K133) -> 0 | AH133: =IF(J133=0,D133,D133*(1-J133)) -> 0 | AI133: 0 | AK133: =IF(statistics!$D$3<>0,IF(AJ133=statistics!$D$3,AG133,""),IF(B133<>"",AG133,"")) ->  | AL133: =IF(statistics!$D$3<>0,IF(AJ133=statistics!$D$3,IF(AH133=0,"",AH133),""),IF(AH133<>0,AH133,"")) ->  | AM133: =IF(statistics!$D$3<>0,IF(AJ133=statistics!$D$3,IF(A133=0,"",1),""),IF(A133=0,"",1)) ->  | AX133: 0 | BG133: 0 | BK133: 132
S134: 133 | U134: =IF(A135=0,IF(B135="",IF(B134=0,"",SUM($AG$1:AG134)-SUM($U$1:U133)),""),SUM($AG$1:AG134)-SUM($U$1:U133)) ->  | AA134: 0 | AB134: =IF(AJ134=statistics!$D$3,AB133+AH134-AG134,) -> 0 | AC134: =IF(AND(ROW(AC134)>=statistics!$C$55,ROW(AC134)<=statistics!$D$55),AC133+AH134-AG134,) -> 0 | AD134: =IF(AND(statistics!$C$55<=ROW(A134),ROW(A134)<=statistics!$D$55)=TRUE,AH134-AG134+AA133-INDEX(AA:AA,statistics!$C$55),"") ->  | AG134: 0 | AH134: 0 | AI134: 0 | AK134: =IF(statistics!$D$3<>0,IF(AJ134=statistics!$D$3,AG134,""),IF(B134<>"",AG134,"")) ->  | AL134: =IF(statistics!$D$3<>0,IF(AJ134=statistics!$D$3,IF(AH134=0,"",AH134),""),IF(AH134<>0,AH134,"")) ->  | AM134: =IF(statistics!$D$3<>0,IF(AJ134=statistics!$D$3,IF(A134=0,"",1),""),IF(A134=0,"",1)) ->  | AX134: 0 | BG134: 0 | BK134: 133
S135: 134 | U135: =IF(A136=0,IF(B136="",IF(B135=0,"",SUM($AG$1:AG135)-SUM($U$1:U134)),""),SUM($AG$1:AG135)-SUM($U$1:U134)) ->  | AA135: 0 | AB135: =IF(AJ135=statistics!$D$3,AB134+AH135-AG135,) -> 0 | AC135: =IF(AND(ROW(AC135)>=statistics!$C$55,ROW(AC135)<=statistics!$D$55),AC134+AH135-AG135,) -> 0 | AD135: =IF(AND(statistics!$C$55<=ROW(A135),ROW(A135)<=statistics!$D$55)=TRUE,AH135-AG135+AA134-INDEX(AA:AA,statistics!$C$55),"") ->  | AG135: 0 | AH135: 0 | AI135: 0 | AK135: =IF(statistics!$D$3<>0,IF(AJ135=statistics!$D$3,AG135,""),IF(B135<>"",AG135,"")) ->  | AL135: =IF(statistics!$D$3<>0,IF(AJ135=statistics!$D$3,IF(AH135=0,"",AH135),""),IF(AH135<>0,AH135,"")) ->  | AM135: =IF(statistics!$D$3<>0,IF(AJ135=statistics!$D$3,IF(A135=0,"",1),""),IF(A135=0,"",1)) ->  | AX135: 0 | BG135: 0 | BK135: 134
S136: 135 | U136: =IF(A137=0,IF(B137="",IF(B136=0,"",SUM($AG$1:AG136)-SUM($U$1:U135)),""),SUM($AG$1:AG136)-SUM($U$1:U135)) ->  | AA136: 0 | AB136: =IF(AJ136=statistics!$D$3,AB135+AH136-AG136,) -> 0 | AC136: =IF(AND(ROW(AC136)>=statistics!$C$55,ROW(AC136)<=statistics!$D$55),AC135+AH136-AG136,) -> 0 | AD136: =IF(AND(statistics!$C$55<=ROW(A136),ROW(A136)<=statistics!$D$55)=TRUE,AH136-AG136+AA135-INDEX(AA:AA,statistics!$C$55),"") ->  | AG136: 0 | AH136: 0 | AI136: 0 | AK136: =IF(statistics!$D$3<>0,IF(AJ136=statistics!$D$3,AG136,""),IF(B136<>"",AG136,"")) ->  | AL136: =IF(statistics!$D$3<>0,IF(AJ136=statistics!$D$3,IF(AH136=0,"",AH136),""),IF(AH136<>0,AH136,"")) ->  | AM136: =IF(statistics!$D$3<>0,IF(AJ136=statistics!$D$3,IF(A136=0,"",1),""),IF(A136=0,"",1)) ->  | AX136: 0 | BG136: 0 | BK136: 135
S137: 136 | U137: =IF(A138=0,IF(B138="",IF(B137=0,"",SUM($AG$1:AG137)-SUM($U$1:U136)),""),SUM($AG$1:AG137)-SUM($U$1:U136)) ->  | AA137: 0 | AB137: =IF(AJ137=statistics!$D$3,AB136+AH137-AG137,) -> 0 | AC137: =IF(AND(ROW(AC137)>=statistics!$C$55,ROW(AC137)<=statistics!$D$55),AC136+AH137-AG137,) -> 0 | AD137: =IF(AND(statistics!$C$55<=ROW(A137),ROW(A137)<=statistics!$D$55)=TRUE,AH137-AG137+AA136-INDEX(AA:AA,statistics!$C$55),"") ->  | AG137: 0 | AH137: 0 | AI137: 0 | AK137: =IF(statistics!$D$3<>0,IF(AJ137=statistics!$D$3,AG137,""),IF(B137<>"",AG137,"")) ->  | AL137: =IF(statistics!$D$3<>0,IF(AJ137=statistics!$D$3,IF(AH137=0,"",AH137),""),IF(AH137<>0,AH137,"")) ->  | AM137: =IF(statistics!$D$3<>0,IF(AJ137=statistics!$D$3,IF(A137=0,"",1),""),IF(A137=0,"",1)) ->  | AX137: 0 | BG137: 0 | BK137: 136
S138: 137 | U138: =IF(A139=0,IF(B139="",IF(B138=0,"",SUM($AG$1:AG138)-SUM($U$1:U137)),""),SUM($AG$1:AG138)-SUM($U$1:U137)) ->  | AA138: 0 | AB138: =IF(AJ138=statistics!$D$3,AB137+AH138-AG138,) -> 0 | AC138: =IF(AND(ROW(AC138)>=statistics!$C$55,ROW(AC138)<=statistics!$D$55),AC137+AH138-AG138,) -> 0 | AD138: =IF(AND(statistics!$C$55<=ROW(A138),ROW(A138)<=statistics!$D$55)=TRUE,AH138-AG138+AA137-INDEX(AA:AA,statistics!$C$55),"") ->  | AG138: 0 | AH138: 0 | AI138: 0 | AK138: =IF(statistics!$D$3<>0,IF(AJ138=statistics!$D$3,AG138,""),IF(B138<>"",AG138,"")) ->  | AL138: =IF(statistics!$D$3<>0,IF(AJ138=statistics!$D$3,IF(AH138=0,"",AH138),""),IF(AH138<>0,AH138,"")) ->  | AM138: =IF(statistics!$D$3<>0,IF(AJ138=statistics!$D$3,IF(A138=0,"",1),""),IF(A138=0,"",1)) ->  | AX138: 0 | BG138: 0 | BK138: 137
S139: 138 | U139: =IF(A140=0,IF(B140="",IF(B139=0,"",SUM($AG$1:AG139)-SUM($U$1:U138)),""),SUM($AG$1:AG139)-SUM($U$1:U138)) ->  | AA139: 0 | AB139: =IF(AJ139=statistics!$D$3,AB138+AH139-AG139,) -> 0 | AC139: =IF(AND(ROW(AC139)>=statistics!$C$55,ROW(AC139)<=statistics!$D$55),AC138+AH139-AG139,) -> 0 | AD139: =IF(AND(statistics!$C$55<=ROW(A139),ROW(A139)<=statistics!$D$55)=TRUE,AH139-AG139+AA138-INDEX(AA:AA,statistics!$C$55),"") ->  | AG139: 0 | AH139: 0 | AI139: 0 | AK139: =IF(statistics!$D$3<>0,IF(AJ139=statistics!$D$3,AG139,""),IF(B139<>"",AG139,"")) ->  | AL139: =IF(statistics!$D$3<>0,IF(AJ139=statistics!$D$3,IF(AH139=0,"",AH139),""),IF(AH139<>0,AH139,"")) ->  | AM139: =IF(statistics!$D$3<>0,IF(AJ139=statistics!$D$3,IF(A139=0,"",1),""),IF(A139=0,"",1)) ->  | AX139: 0 | BG139: 0 | BK139: 138
S140: 139 | U140: =IF(A141=0,IF(B141="",IF(B140=0,"",SUM($AG$1:AG140)-SUM($U$1:U139)),""),SUM($AG$1:AG140)-SUM($U$1:U139)) ->  | AA140: 0 | AB140: =IF(AJ140=statistics!$D$3,AB139+AH140-AG140,) -> 0 | AC140: =IF(AND(ROW(AC140)>=statistics!$C$55,ROW(AC140)<=statistics!$D$55),AC139+AH140-AG140,) -> 0 | AD140: =IF(AND(statistics!$C$55<=ROW(A140),ROW(A140)<=statistics!$D$55)=TRUE,AH140-AG140+AA139-INDEX(AA:AA,statistics!$C$55),"") ->  | AG140: 0 | AH140: 0 | AI140: 0 | AK140: =IF(statistics!$D$3<>0,IF(AJ140=statistics!$D$3,AG140,""),IF(B140<>"",AG140,"")) ->  | AL140: =IF(statistics!$D$3<>0,IF(AJ140=statistics!$D$3,IF(AH140=0,"",AH140),""),IF(AH140<>0,AH140,"")) ->  | AM140: =IF(statistics!$D$3<>0,IF(AJ140=statistics!$D$3,IF(A140=0,"",1),""),IF(A140=0,"",1)) ->  | AX140: 0 | BG140: 0 | BK140: 139
S141: 140 | U141: =IF(A142=0,IF(B142="",IF(B141=0,"",SUM($AG$1:AG141)-SUM($U$1:U140)),""),SUM($AG$1:AG141)-SUM($U$1:U140)) ->  | AA141: 0 | AB141: =IF(AJ141=statistics!$D$3,AB140+AH141-AG141,) -> 0 | AC141: =IF(AND(ROW(AC141)>=statistics!$C$55,ROW(AC141)<=statistics!$D$55),AC140+AH141-AG141,) -> 0 | AD141: =IF(AND(statistics!$C$55<=ROW(A141),ROW(A141)<=statistics!$D$55)=TRUE,AH141-AG141+AA140-INDEX(AA:AA,statistics!$C$55),"") ->  | AG141: 0 | AH141: 0 | AI141: 0 | AK141: =IF(statistics!$D$3<>0,IF(AJ141=statistics!$D$3,AG141,""),IF(B141<>"",AG141,"")) ->  | AL141: =IF(statistics!$D$3<>0,IF(AJ141=statistics!$D$3,IF(AH141=0,"",AH141),""),IF(AH141<>0,AH141,"")) ->  | AM141: =IF(statistics!$D$3<>0,IF(AJ141=statistics!$D$3,IF(A141=0,"",1),""),IF(A141=0,"",1)) ->  | AX141: 0 | BG141: 0 | BK141: 140
S142: 141 | U142: =IF(A143=0,IF(B143="",IF(B142=0,"",SUM($AG$1:AG142)-SUM($U$1:U141)),""),SUM($AG$1:AG142)-SUM($U$1:U141)) ->  | AA142: 0 | AB142: =IF(AJ142=statistics!$D$3,AB141+AH142-AG142,) -> 0 | AC142: =IF(AND(ROW(AC142)>=statistics!$C$55,ROW(AC142)<=statistics!$D$55),AC141+AH142-AG142,) -> 0 | AD142: =IF(AND(statistics!$C$55<=ROW(A142),ROW(A142)<=statistics!$D$55)=TRUE,AH142-AG142+AA141-INDEX(AA:AA,statistics!$C$55),"") ->  | AG142: 0 | AH142: 0 | AI142: 0 | AK142: =IF(statistics!$D$3<>0,IF(AJ142=statistics!$D$3,AG142,""),IF(B142<>"",AG142,"")) ->  | AL142: =IF(statistics!$D$3<>0,IF(AJ142=statistics!$D$3,IF(AH142=0,"",AH142),""),IF(AH142<>0,AH142,"")) ->  | AM142: =IF(statistics!$D$3<>0,IF(AJ142=statistics!$D$3,IF(A142=0,"",1),""),IF(A142=0,"",1)) ->  | AX142: 0 | BG142: 0 | BK142: 141
S143: 142 | U143: =IF(A144=0,IF(B144="",IF(B143=0,"",SUM($AG$1:AG143)-SUM($U$1:U142)),""),SUM($AG$1:AG143)-SUM($U$1:U142)) ->  | AA143: 0 | AB143: =IF(AJ143=statistics!$D$3,AB142+AH143-AG143,) -> 0 | AC143: =IF(AND(ROW(AC143)>=statistics!$C$55,ROW(AC143)<=statistics!$D$55),AC142+AH143-AG143,) -> 0 | AD143: =IF(AND(statistics!$C$55<=ROW(A143),ROW(A143)<=statistics!$D$55)=TRUE,AH143-AG143+AA142-INDEX(AA:AA,statistics!$C$55),"") ->  | AG143: 0 | AH143: 0 | AI143: 0 | AK143: =IF(statistics!$D$3<>0,IF(AJ143=statistics!$D$3,AG143,""),IF(B143<>"",AG143,"")) ->  | AL143: =IF(statistics!$D$3<>0,IF(AJ143=statistics!$D$3,IF(AH143=0,"",AH143),""),IF(AH143<>0,AH143,"")) ->  | AM143: =IF(statistics!$D$3<>0,IF(AJ143=statistics!$D$3,IF(A143=0,"",1),""),IF(A143=0,"",1)) ->  | AX143: 0 | BG143: 0 | BK143: 142
S144: 143 | U144: =IF(A145=0,IF(B145="",IF(B144=0,"",SUM($AG$1:AG144)-SUM($U$1:U143)),""),SUM($AG$1:AG144)-SUM($U$1:U143)) ->  | AA144: 0 | AB144: =IF(AJ144=statistics!$D$3,AB143+AH144-AG144,) -> 0 | AC144: =IF(AND(ROW(AC144)>=statistics!$C$55,ROW(AC144)<=statistics!$D$55),AC143+AH144-AG144,) -> 0 | AD144: =IF(AND(statistics!$C$55<=ROW(A144),ROW(A144)<=statistics!$D$55)=TRUE,AH144-AG144+AA143-INDEX(AA:AA,statistics!$C$55),"") ->  | AG144: 0 | AH144: 0 | AI144: 0 | AK144: =IF(statistics!$D$3<>0,IF(AJ144=statistics!$D$3,AG144,""),IF(B144<>"",AG144,"")) ->  | AL144: =IF(statistics!$D$3<>0,IF(AJ144=statistics!$D$3,IF(AH144=0,"",AH144),""),IF(AH144<>0,AH144,"")) ->  | AM144: =IF(statistics!$D$3<>0,IF(AJ144=statistics!$D$3,IF(A144=0,"",1),""),IF(A144=0,"",1)) ->  | AX144: 0 | BG144: 0 | BK144: 143
G145: =IF(A146=0,IF(B146="",IF(B145=0,"",U145/S145),""),U145/S145) ->  | S145: 144 | U145: =IF(A146=0,IF(B146="",IF(B145=0,"",SUM($AG$1:AG145)-SUM($U$1:U144)),""),SUM($AG$1:AG145)-SUM($U$1:U144)) ->  | AA145: 0 | AB145: =IF(AJ145=statistics!$D$3,AB144+AH145-AG145,) -> 0 | AC145: =IF(AND(ROW(AC145)>=statistics!$C$55,ROW(AC145)<=statistics!$D$55),AC144+AH145-AG145,) -> 0 | AD145: =IF(AND(statistics!$C$55<=ROW(A145),ROW(A145)<=statistics!$D$55)=TRUE,AH145-AG145+AA144-INDEX(AA:AA,statistics!$C$55),"") ->  | AG145: 0 | AH145: 0 | AI145: 0 | AK145: =IF(statistics!$D$3<>0,IF(AJ145=statistics!$D$3,AG145,""),IF(B145<>"",AG145,"")) ->  | AL145: =IF(statistics!$D$3<>0,IF(AJ145=statistics!$D$3,IF(AH145=0,"",AH145),""),IF(AH145<>0,AH145,"")) ->  | AM145: =IF(statistics!$D$3<>0,IF(AJ145=statistics!$D$3,IF(A145=0,"",1),""),IF(A145=0,"",1)) ->  | AX145: 0 | BG145: 0 | BK145: 144
S146: 145 | U146: =IF(A147=0,IF(B147="",IF(B146=0,"",SUM($AG$1:AG146)-SUM($U$1:U145)),""),SUM($AG$1:AG146)-SUM($U$1:U145)) ->  | AA146: 0 | AB146: =IF(AJ146=statistics!$D$3,AB145+AH146-AG146,) -> 0 | AC146: =IF(AND(ROW(AC146)>=statistics!$C$55,ROW(AC146)<=statistics!$D$55),AC145+AH146-AG146,) -> 0 | AD146: =IF(AND(statistics!$C$55<=ROW(A146),ROW(A146)<=statistics!$D$55)=TRUE,AH146-AG146+AA145-INDEX(AA:AA,statistics!$C$55),"") ->  | AG146: 0 | AH146: 0 | AI146: 0 | AK146: =IF(statistics!$D$3<>0,IF(AJ146=statistics!$D$3,AG146,""),IF(B146<>"",AG146,"")) ->  | AL146: =IF(statistics!$D$3<>0,IF(AJ146=statistics!$D$3,IF(AH146=0,"",AH146),""),IF(AH146<>0,AH146,"")) ->  | AM146: =IF(statistics!$D$3<>0,IF(AJ146=statistics!$D$3,IF(A146=0,"",1),""),IF(A146=0,"",1)) ->  | AX146: 0 | BG146: 0 | BK146: 145
S147: 146 | U147: =IF(A148=0,IF(B148="",IF(B147=0,"",SUM($AG$1:AG147)-SUM($U$1:U146)),""),SUM($AG$1:AG147)-SUM($U$1:U146)) ->  | AA147: 0 | AB147: =IF(AJ147=statistics!$D$3,AB146+AH147-AG147,) -> 0 | AC147: =IF(AND(ROW(AC147)>=statistics!$C$55,ROW(AC147)<=statistics!$D$55),AC146+AH147-AG147,) -> 0 | AD147: =IF(AND(statistics!$C$55<=ROW(A147),ROW(A147)<=statistics!$D$55)=TRUE,AH147-AG147+AA146-INDEX(AA:AA,statistics!$C$55),"") ->  | AG147: 0 | AH147: 0 | AI147: 0 | AK147: =IF(statistics!$D$3<>0,IF(AJ147=statistics!$D$3,AG147,""),IF(B147<>"",AG147,"")) ->  | AL147: =IF(statistics!$D$3<>0,IF(AJ147=statistics!$D$3,IF(AH147=0,"",AH147),""),IF(AH147<>0,AH147,"")) ->  | AM147: =IF(statistics!$D$3<>0,IF(AJ147=statistics!$D$3,IF(A147=0,"",1),""),IF(A147=0,"",1)) ->  | AX147: 0 | BG147: 0 | BK147: 146
S148: 147 | U148: =IF(A149=0,IF(B149="",IF(B148=0,"",SUM($AG$1:AG148)-SUM($U$1:U147)),""),SUM($AG$1:AG148)-SUM($U$1:U147)) ->  | AA148: 0 | AB148: =IF(AJ148=statistics!$D$3,AB147+AH148-AG148,) -> 0 | AC148: =IF(AND(ROW(AC148)>=statistics!$C$55,ROW(AC148)<=statistics!$D$55),AC147+AH148-AG148,) -> 0 | AD148: =IF(AND(statistics!$C$55<=ROW(A148),ROW(A148)<=statistics!$D$55)=TRUE,AH148-AG148+AA147-INDEX(AA:AA,statistics!$C$55),"") ->  | AG148: 0 | AH148: 0 | AI148: 0 | AJ148: =IF(A148<>0,MONTH(A148),IF(B148="","",AJ147)) ->  | AK148: =IF(statistics!$D$3<>0,IF(AJ148=statistics!$D$3,AG148,""),IF(B148<>"",AG148,"")) ->  | AL148: =IF(statistics!$D$3<>0,IF(AJ148=statistics!$D$3,IF(AH148=0,"",AH148),""),IF(AH148<>0,AH148,"")) ->  | AM148: =IF(statistics!$D$3<>0,IF(AJ148=statistics!$D$3,IF(A148=0,"",1),""),IF(A148=0,"",1)) ->  | AX148: 0 | BG148: 0 | BK148: 147
S149: 148 | U149: =IF(A150=0,IF(B150="",IF(B149=0,"",SUM($AG$1:AG149)-SUM($U$1:U148)),""),SUM($AG$1:AG149)-SUM($U$1:U148)) ->  | AA149: 0 | AB149: =IF(AJ149=statistics!$D$3,AB148+AH149-AG149,) -> 0 | AC149: =IF(AND(ROW(AC149)>=statistics!$C$55,ROW(AC149)<=statistics!$D$55),AC148+AH149-AG149,) -> 0 | AD149: =IF(AND(statistics!$C$55<=ROW(A149),ROW(A149)<=statistics!$D$55)=TRUE,AH149-AG149+AA148-INDEX(AA:AA,statistics!$C$55),"") ->  | AG149: 0 | AH149: 0 | AI149: 0 | AK149: =IF(statistics!$D$3<>0,IF(AJ149=statistics!$D$3,AG149,""),IF(B149<>"",AG149,"")) ->  | AL149: =IF(statistics!$D$3<>0,IF(AJ149=statistics!$D$3,IF(AH149=0,"",AH149),""),IF(AH149<>0,AH149,"")) ->  | AM149: =IF(statistics!$D$3<>0,IF(AJ149=statistics!$D$3,IF(A149=0,"",1),""),IF(A149=0,"",1)) ->  | AX149: 0 | BG149: 0 | BK149: 148
S150: 149 | U150: =IF(A151=0,IF(B151="",IF(B150=0,"",SUM($AG$1:AG150)-SUM($U$1:U149)),""),SUM($AG$1:AG150)-SUM($U$1:U149)) ->  | AA150: 0 | AB150: =IF(AJ150=statistics!$D$3,AB149+AH150-AG150,) -> 0 | AC150: =IF(AND(ROW(AC150)>=statistics!$C$55,ROW(AC150)<=statistics!$D$55),AC149+AH150-AG150,) -> 0 | AD150: =IF(AND(statistics!$C$55<=ROW(A150),ROW(A150)<=statistics!$D$55)=TRUE,AH150-AG150+AA149-INDEX(AA:AA,statistics!$C$55),"") ->  | AG150: 0 | AH150: 0 | AI150: 0 | AK150: =IF(statistics!$D$3<>0,IF(AJ150=statistics!$D$3,AG150,""),IF(B150<>"",AG150,"")) ->  | AL150: =IF(statistics!$D$3<>0,IF(AJ150=statistics!$D$3,IF(AH150=0,"",AH150),""),IF(AH150<>0,AH150,"")) ->  | AM150: =IF(statistics!$D$3<>0,IF(AJ150=statistics!$D$3,IF(A150=0,"",1),""),IF(A150=0,"",1)) ->  | AX150: 0 | BG150: 0 | BK150: 149
S151: 150 | U151: =IF(A152=0,IF(B152="",IF(B151=0,"",SUM($AG$1:AG151)-SUM($U$1:U150)),""),SUM($AG$1:AG151)-SUM($U$1:U150)) ->  | AA151: 0 | AB151: =IF(AJ151=statistics!$D$3,AB150+AH151-AG151,) -> 0 | AC151: =IF(AND(ROW(AC151)>=statistics!$C$55,ROW(AC151)<=statistics!$D$55),AC150+AH151-AG151,) -> 0 | AD151: =IF(AND(statistics!$C$55<=ROW(A151),ROW(A151)<=statistics!$D$55)=TRUE,AH151-AG151+AA150-INDEX(AA:AA,statistics!$C$55),"") ->  | AG151: 0 | AH151: 0 | AI151: 0 | AK151: =IF(statistics!$D$3<>0,IF(AJ151=statistics!$D$3,AG151,""),IF(B151<>"",AG151,"")) ->  | AL151: =IF(statistics!$D$3<>0,IF(AJ151=statistics!$D$3,IF(AH151=0,"",AH151),""),IF(AH151<>0,AH151,"")) ->  | AM151: =IF(statistics!$D$3<>0,IF(AJ151=statistics!$D$3,IF(A151=0,"",1),""),IF(A151=0,"",1)) ->  | AX151: 0 | BG151: 0 | BK151: 150
S152: 151 | U152: =IF(A153=0,IF(B153="",IF(B152=0,"",SUM($AG$1:AG152)-SUM($U$1:U151)),""),SUM($AG$1:AG152)-SUM($U$1:U151)) ->  | AA152: 0 | AB152: =IF(AJ152=statistics!$D$3,AB151+AH152-AG152,) -> 0 | AC152: =IF(AND(ROW(AC152)>=statistics!$C$55,ROW(AC152)<=statistics!$D$55),AC151+AH152-AG152,) -> 0 | AD152: =IF(AND(statistics!$C$55<=ROW(A152),ROW(A152)<=statistics!$D$55)=TRUE,AH152-AG152+AA151-INDEX(AA:AA,statistics!$C$55),"") ->  | AG152: 0 | AH152: 0 | AI152: 0 | AK152: =IF(statistics!$D$3<>0,IF(AJ152=statistics!$D$3,AG152,""),IF(B152<>"",AG152,"")) ->  | AL152: =IF(statistics!$D$3<>0,IF(AJ152=statistics!$D$3,IF(AH152=0,"",AH152),""),IF(AH152<>0,AH152,"")) ->  | AM152: =IF(statistics!$D$3<>0,IF(AJ152=statistics!$D$3,IF(A152=0,"",1),""),IF(A152=0,"",1)) ->  | AX152: 0 | BG152: 0 | BK152: 151
S153: 152 | U153: =IF(A154=0,IF(B154="",IF(B153=0,"",SUM($AG$1:AG153)-SUM($U$1:U152)),""),SUM($AG$1:AG153)-SUM($U$1:U152)) ->  | AA153: 0 | AB153: =IF(AJ153=statistics!$D$3,AB152+AH153-AG153,) -> 0 | AC153: =IF(AND(ROW(AC153)>=statistics!$C$55,ROW(AC153)<=statistics!$D$55),AC152+AH153-AG153,) -> 0 | AD153: =IF(AND(statistics!$C$55<=ROW(A153),ROW(A153)<=statistics!$D$55)=TRUE,AH153-AG153+AA152-INDEX(AA:AA,statistics!$C$55),"") ->  | AG153: 0 | AH153: 0 | AI153: 0 | AK153: =IF(statistics!$D$3<>0,IF(AJ153=statistics!$D$3,AG153,""),IF(B153<>"",AG153,"")) ->  | AL153: =IF(statistics!$D$3<>0,IF(AJ153=statistics!$D$3,IF(AH153=0,"",AH153),""),IF(AH153<>0,AH153,"")) ->  | AM153: =IF(statistics!$D$3<>0,IF(AJ153=statistics!$D$3,IF(A153=0,"",1),""),IF(A153=0,"",1)) ->  | AX153: 0 | BG153: 0 | BK153: 152
S154: 153 | U154: =IF(A155=0,IF(B155="",IF(B154=0,"",SUM($AG$1:AG154)-SUM($U$1:U153)),""),SUM($AG$1:AG154)-SUM($U$1:U153)) ->  | AA154: 0 | AB154: =IF(AJ154=statistics!$D$3,AB153+AH154-AG154,) -> 0 | AC154: =IF(AND(ROW(AC154)>=statistics!$C$55,ROW(AC154)<=statistics!$D$55),AC153+AH154-AG154,) -> 0 | AD154: =IF(AND(statistics!$C$55<=ROW(A154),ROW(A154)<=statistics!$D$55)=TRUE,AH154-AG154+AA153-INDEX(AA:AA,statistics!$C$55),"") ->  | AG154: 0 | AH154: 0 | AI154: 0 | AK154: =IF(statistics!$D$3<>0,IF(AJ154=statistics!$D$3,AG154,""),IF(B154<>"",AG154,"")) ->  | AL154: =IF(statistics!$D$3<>0,IF(AJ154=statistics!$D$3,IF(AH154=0,"",AH154),""),IF(AH154<>0,AH154,"")) ->  | AM154: =IF(statistics!$D$3<>0,IF(AJ154=statistics!$D$3,IF(A154=0,"",1),""),IF(A154=0,"",1)) ->  | AX154: 0 | BG154: 0 | BK154: 153
S155: 154 | U155: =IF(A156=0,IF(B156="",IF(B155=0,"",SUM($AG$1:AG155)-SUM($U$1:U154)),""),SUM($AG$1:AG155)-SUM($U$1:U154)) ->  | AA155: 0 | AB155: =IF(AJ155=statistics!$D$3,AB154+AH155-AG155,) -> 0 | AC155: =IF(AND(ROW(AC155)>=statistics!$C$55,ROW(AC155)<=statistics!$D$55),AC154+AH155-AG155,) -> 0 | AD155: =IF(AND(statistics!$C$55<=ROW(A155),ROW(A155)<=statistics!$D$55)=TRUE,AH155-AG155+AA154-INDEX(AA:AA,statistics!$C$55),"") ->  | AG155: 0 | AH155: 0 | AI155: 0 | AK155: =IF(statistics!$D$3<>0,IF(AJ155=statistics!$D$3,AG155,""),IF(B155<>"",AG155,"")) ->  | AL155: =IF(statistics!$D$3<>0,IF(AJ155=statistics!$D$3,IF(AH155=0,"",AH155),""),IF(AH155<>0,AH155,"")) ->  | AM155: =IF(statistics!$D$3<>0,IF(AJ155=statistics!$D$3,IF(A155=0,"",1),""),IF(A155=0,"",1)) ->  | AX155: 0 | BG155: 0 | BK155: 154
S156: 155 | U156: =IF(A157=0,IF(B157="",IF(B156=0,"",SUM($AG$1:AG156)-SUM($U$1:U155)),""),SUM($AG$1:AG156)-SUM($U$1:U155)) ->  | AA156: 0 | AB156: =IF(AJ156=statistics!$D$3,AB155+AH156-AG156,) -> 0 | AC156: =IF(AND(ROW(AC156)>=statistics!$C$55,ROW(AC156)<=statistics!$D$55),AC155+AH156-AG156,) -> 0 | AD156: =IF(AND(statistics!$C$55<=ROW(A156),ROW(A156)<=statistics!$D$55)=TRUE,AH156-AG156+AA155-INDEX(AA:AA,statistics!$C$55),"") ->  | AG156: 0 | AH156: 0 | AI156: 0 | AK156: =IF(statistics!$D$3<>0,IF(AJ156=statistics!$D$3,AG156,""),IF(B156<>"",AG156,"")) ->  | AL156: =IF(statistics!$D$3<>0,IF(AJ156=statistics!$D$3,IF(AH156=0,"",AH156),""),IF(AH156<>0,AH156,"")) ->  | AM156: =IF(statistics!$D$3<>0,IF(AJ156=statistics!$D$3,IF(A156=0,"",1),""),IF(A156=0,"",1)) ->  | AX156: 0 | BG156: 0 | BK156: 155
S157: 156 | U157: =IF(A158=0,IF(B158="",IF(B157=0,"",SUM($AG$1:AG157)-SUM($U$1:U156)),""),SUM($AG$1:AG157)-SUM($U$1:U156)) ->  | AA157: 0 | AB157: =IF(AJ157=statistics!$D$3,AB156+AH157-AG157,) -> 0 | AC157: =IF(AND(ROW(AC157)>=statistics!$C$55,ROW(AC157)<=statistics!$D$55),AC156+AH157-AG157,) -> 0 | AD157: =IF(AND(statistics!$C$55<=ROW(A157),ROW(A157)<=statistics!$D$55)=TRUE,AH157-AG157+AA156-INDEX(AA:AA,statistics!$C$55),"") ->  | AG157: 0 | AH157: 0 | AI157: 0 | AK157: =IF(statistics!$D$3<>0,IF(AJ157=statistics!$D$3,AG157,""),IF(B157<>"",AG157,"")) ->  | AL157: =IF(statistics!$D$3<>0,IF(AJ157=statistics!$D$3,IF(AH157=0,"",AH157),""),IF(AH157<>0,AH157,"")) ->  | AM157: =IF(statistics!$D$3<>0,IF(AJ157=statistics!$D$3,IF(A157=0,"",1),""),IF(A157=0,"",1)) ->  | AX157: 0 | BG157: 0 | BK157: 156
S158: 157 | U158: =IF(A159=0,IF(B159="",IF(B158=0,"",SUM($AG$1:AG158)-SUM($U$1:U157)),""),SUM($AG$1:AG158)-SUM($U$1:U157)) ->  | AA158: 0 | AB158: =IF(AJ158=statistics!$D$3,AB157+AH158-AG158,) -> 0 | AC158: =IF(AND(ROW(AC158)>=statistics!$C$55,ROW(AC158)<=statistics!$D$55),AC157+AH158-AG158,) -> 0 | AD158: =IF(AND(statistics!$C$55<=ROW(A158),ROW(A158)<=statistics!$D$55)=TRUE,AH158-AG158+AA157-INDEX(AA:AA,statistics!$C$55),"") ->  | AG158: 0 | AH158: 0 | AI158: 0 | AK158: =IF(statistics!$D$3<>0,IF(AJ158=statistics!$D$3,AG158,""),IF(B158<>"",AG158,"")) ->  | AL158: =IF(statistics!$D$3<>0,IF(AJ158=statistics!$D$3,IF(AH158=0,"",AH158),""),IF(AH158<>0,AH158,"")) ->  | AM158: =IF(statistics!$D$3<>0,IF(AJ158=statistics!$D$3,IF(A158=0,"",1),""),IF(A158=0,"",1)) ->  | AX158: 0 | BG158: 0 | BK158: 157
S159: 158 | U159: =IF(A160=0,IF(B160="",IF(B159=0,"",SUM($AG$1:AG159)-SUM($U$1:U158)),""),SUM($AG$1:AG159)-SUM($U$1:U158)) ->  | AA159: 0 | AB159: =IF(AJ159=statistics!$D$3,AB158+AH159-AG159,) -> 0 | AC159: =IF(AND(ROW(AC159)>=statistics!$C$55,ROW(AC159)<=statistics!$D$55),AC158+AH159-AG159,) -> 0 | AD159: =IF(AND(statistics!$C$55<=ROW(A159),ROW(A159)<=statistics!$D$55)=TRUE,AH159-AG159+AA158-INDEX(AA:AA,statistics!$C$55),"") ->  | AG159: 0 | AH159: 0 | AI159: 0 | AK159: =IF(statistics!$D$3<>0,IF(AJ159=statistics!$D$3,AG159,""),IF(B159<>"",AG159,"")) ->  | AL159: =IF(statistics!$D$3<>0,IF(AJ159=statistics!$D$3,IF(AH159=0,"",AH159),""),IF(AH159<>0,AH159,"")) ->  | AM159: =IF(statistics!$D$3<>0,IF(AJ159=statistics!$D$3,IF(A159=0,"",1),""),IF(A159=0,"",1)) ->  | AX159: 0 | BG159: 0 | BK159: 158
S160: 159 | U160: =IF(A161=0,IF(B161="",IF(B160=0,"",SUM($AG$1:AG160)-SUM($U$1:U159)),""),SUM($AG$1:AG160)-SUM($U$1:U159)) ->  | AA160: 0 | AB160: =IF(AJ160=statistics!$D$3,AB159+AH160-AG160,) -> 0 | AC160: =IF(AND(ROW(AC160)>=statistics!$C$55,ROW(AC160)<=statistics!$D$55),AC159+AH160-AG160,) -> 0 | AD160: =IF(AND(statistics!$C$55<=ROW(A160),ROW(A160)<=statistics!$D$55)=TRUE,AH160-AG160+AA159-INDEX(AA:AA,statistics!$C$55),"") ->  | AG160: 0 | AH160: 0 | AI160: 0 | AK160: =IF(statistics!$D$3<>0,IF(AJ160=statistics!$D$3,AG160,""),IF(B160<>"",AG160,"")) ->  | AL160: =IF(statistics!$D$3<>0,IF(AJ160=statistics!$D$3,IF(AH160=0,"",AH160),""),IF(AH160<>0,AH160,"")) ->  | AM160: =IF(statistics!$D$3<>0,IF(AJ160=statistics!$D$3,IF(A160=0,"",1),""),IF(A160=0,"",1)) ->  | AX160: 0 | BG160: 0 | BK160: 159
S161: 160 | U161: =IF(A162=0,IF(B162="",IF(B161=0,"",SUM($AG$1:AG161)-SUM($U$1:U160)),""),SUM($AG$1:AG161)-SUM($U$1:U160)) ->  | AA161: 0 | AB161: =IF(AJ161=statistics!$D$3,AB160+AH161-AG161,) -> 0 | AC161: =IF(AND(ROW(AC161)>=statistics!$C$55,ROW(AC161)<=statistics!$D$55),AC160+AH161-AG161,) -> 0 | AD161: =IF(AND(statistics!$C$55<=ROW(A161),ROW(A161)<=statistics!$D$55)=TRUE,AH161-AG161+AA160-INDEX(AA:AA,statistics!$C$55),"") ->  | AG161: 0 | AH161: 0 | AI161: 0 | AK161: =IF(statistics!$D$3<>0,IF(AJ161=statistics!$D$3,AG161,""),IF(B161<>"",AG161,"")) ->  | AL161: =IF(statistics!$D$3<>0,IF(AJ161=statistics!$D$3,IF(AH161=0,"",AH161),""),IF(AH161<>0,AH161,"")) ->  | AM161: =IF(statistics!$D$3<>0,IF(AJ161=statistics!$D$3,IF(A161=0,"",1),""),IF(A161=0,"",1)) ->  | AX161: 0 | BG161: 0 | BK161: 160
S162: 161 | U162: =IF(A163=0,IF(B163="",IF(B162=0,"",SUM($AG$1:AG162)-SUM($U$1:U161)),""),SUM($AG$1:AG162)-SUM($U$1:U161)) ->  | AA162: 0 | AB162: =IF(AJ162=statistics!$D$3,AB161+AH162-AG162,) -> 0 | AC162: =IF(AND(ROW(AC162)>=statistics!$C$55,ROW(AC162)<=statistics!$D$55),AC161+AH162-AG162,) -> 0 | AD162: =IF(AND(statistics!$C$55<=ROW(A162),ROW(A162)<=statistics!$D$55)=TRUE,AH162-AG162+AA161-INDEX(AA:AA,statistics!$C$55),"") ->  | AG162: 0 | AH162: 0 | AI162: 0 | AK162: =IF(statistics!$D$3<>0,IF(AJ162=statistics!$D$3,AG162,""),IF(B162<>"",AG162,"")) ->  | AL162: =IF(statistics!$D$3<>0,IF(AJ162=statistics!$D$3,IF(AH162=0,"",AH162),""),IF(AH162<>0,AH162,"")) ->  | AM162: =IF(statistics!$D$3<>0,IF(AJ162=statistics!$D$3,IF(A162=0,"",1),""),IF(A162=0,"",1)) ->  | AX162: 0 | BG162: 0 | BK162: 161
S163: 162 | U163: =IF(A164=0,IF(B164="",IF(B163=0,"",SUM($AG$1:AG163)-SUM($U$1:U162)),""),SUM($AG$1:AG163)-SUM($U$1:U162)) ->  | AA163: 0 | AB163: =IF(AJ163=statistics!$D$3,AB162+AH163-AG163,) -> 0 | AC163: =IF(AND(ROW(AC163)>=statistics!$C$55,ROW(AC163)<=statistics!$D$55),AC162+AH163-AG163,) -> 0 | AD163: =IF(AND(statistics!$C$55<=ROW(A163),ROW(A163)<=statistics!$D$55)=TRUE,AH163-AG163+AA162-INDEX(AA:AA,statistics!$C$55),"") ->  | AG163: 0 | AH163: 0 | AI163: 0 | AK163: =IF(statistics!$D$3<>0,IF(AJ163=statistics!$D$3,AG163,""),IF(B163<>"",AG163,"")) ->  | AL163: =IF(statistics!$D$3<>0,IF(AJ163=statistics!$D$3,IF(AH163=0,"",AH163),""),IF(AH163<>0,AH163,"")) ->  | AM163: =IF(statistics!$D$3<>0,IF(AJ163=statistics!$D$3,IF(A163=0,"",1),""),IF(A163=0,"",1)) ->  | AX163: 0 | BG163: 0 | BK163: 162
S164: 163 | U164: =IF(A165=0,IF(B165="",IF(B164=0,"",SUM($AG$1:AG164)-SUM($U$1:U163)),""),SUM($AG$1:AG164)-SUM($U$1:U163)) ->  | AA164: 0 | AB164: =IF(AJ164=statistics!$D$3,AB163+AH164-AG164,) -> 0 | AC164: =IF(AND(ROW(AC164)>=statistics!$C$55,ROW(AC164)<=statistics!$D$55),AC163+AH164-AG164,) -> 0 | AD164: =IF(AND(statistics!$C$55<=ROW(A164),ROW(A164)<=statistics!$D$55)=TRUE,AH164-AG164+AA163-INDEX(AA:AA,statistics!$C$55),"") ->  | AG164: 0 | AH164: 0 | AI164: 0 | AK164: =IF(statistics!$D$3<>0,IF(AJ164=statistics!$D$3,AG164,""),IF(B164<>"",AG164,"")) ->  | AL164: =IF(statistics!$D$3<>0,IF(AJ164=statistics!$D$3,IF(AH164=0,"",AH164),""),IF(AH164<>0,AH164,"")) ->  | AM164: =IF(statistics!$D$3<>0,IF(AJ164=statistics!$D$3,IF(A164=0,"",1),""),IF(A164=0,"",1)) ->  | AX164: 0 | BG164: 0 | BK164: 163
S165: 164 | U165: =IF(A166=0,IF(B166="",IF(B165=0,"",SUM($AG$1:AG165)-SUM($U$1:U164)),""),SUM($AG$1:AG165)-SUM($U$1:U164)) ->  | AA165: 0 | AB165: =IF(AJ165=statistics!$D$3,AB164+AH165-AG165,) -> 0 | AC165: =IF(AND(ROW(AC165)>=statistics!$C$55,ROW(AC165)<=statistics!$D$55),AC164+AH165-AG165,) -> 0 | AD165: =IF(AND(statistics!$C$55<=ROW(A165),ROW(A165)<=statistics!$D$55)=TRUE,AH165-AG165+AA164-INDEX(AA:AA,statistics!$C$55),"") ->  | AG165: 0 | AH165: 0 | AI165: 0 | AK165: =IF(statistics!$D$3<>0,IF(AJ165=statistics!$D$3,AG165,""),IF(B165<>"",AG165,"")) ->  | AL165: =IF(statistics!$D$3<>0,IF(AJ165=statistics!$D$3,IF(AH165=0,"",AH165),""),IF(AH165<>0,AH165,"")) ->  | AM165: =IF(statistics!$D$3<>0,IF(AJ165=statistics!$D$3,IF(A165=0,"",1),""),IF(A165=0,"",1)) ->  | AX165: 0 | BG165: 0 | BK165: 164
S166: 165 | U166: =IF(A167=0,IF(B167="",IF(B166=0,"",SUM($AG$1:AG166)-SUM($U$1:U165)),""),SUM($AG$1:AG166)-SUM($U$1:U165)) ->  | AA166: 0 | AB166: =IF(AJ166=statistics!$D$3,AB165+AH166-AG166,) -> 0 | AC166: =IF(AND(ROW(AC166)>=statistics!$C$55,ROW(AC166)<=statistics!$D$55),AC165+AH166-AG166,) -> 0 | AD166: =IF(AND(statistics!$C$55<=ROW(A166),ROW(A166)<=statistics!$D$55)=TRUE,AH166-AG166+AA165-INDEX(AA:AA,statistics!$C$55),"") ->  | AG166: 0 | AH166: 0 | AI166: 0 | AK166: =IF(statistics!$D$3<>0,IF(AJ166=statistics!$D$3,AG166,""),IF(B166<>"",AG166,"")) ->  | AL166: =IF(statistics!$D$3<>0,IF(AJ166=statistics!$D$3,IF(AH166=0,"",AH166),""),IF(AH166<>0,AH166,"")) ->  | AM166: =IF(statistics!$D$3<>0,IF(AJ166=statistics!$D$3,IF(A166=0,"",1),""),IF(A166=0,"",1)) ->  | AX166: 0 | BG166: 0 | BK166: 165
S167: 166 | U167: =IF(A168=0,IF(B168="",IF(B167=0,"",SUM($AG$1:AG167)-SUM($U$1:U166)),""),SUM($AG$1:AG167)-SUM($U$1:U166)) ->  | AA167: 0 | AB167: =IF(AJ167=statistics!$D$3,AB166+AH167-AG167,) -> 0 | AC167: =IF(AND(ROW(AC167)>=statistics!$C$55,ROW(AC167)<=statistics!$D$55),AC166+AH167-AG167,) -> 0 | AD167: =IF(AND(statistics!$C$55<=ROW(A167),ROW(A167)<=statistics!$D$55)=TRUE,AH167-AG167+AA166-INDEX(AA:AA,statistics!$C$55),"") ->  | AG167: 0 | AH167: 0 | AI167: 0 | AK167: =IF(statistics!$D$3<>0,IF(AJ167=statistics!$D$3,AG167,""),IF(B167<>"",AG167,"")) ->  | AL167: =IF(statistics!$D$3<>0,IF(AJ167=statistics!$D$3,IF(AH167=0,"",AH167),""),IF(AH167<>0,AH167,"")) ->  | AM167: =IF(statistics!$D$3<>0,IF(AJ167=statistics!$D$3,IF(A167=0,"",1),""),IF(A167=0,"",1)) ->  | AX167: 0 | BG167: 0 | BK167: 166
S168: 167 | U168: =IF(A169=0,IF(B169="",IF(B168=0,"",SUM($AG$1:AG168)-SUM($U$1:U167)),""),SUM($AG$1:AG168)-SUM($U$1:U167)) ->  | AA168: 0 | AB168: =IF(AJ168=statistics!$D$3,AB167+AH168-AG168,) -> 0 | AC168: =IF(AND(ROW(AC168)>=statistics!$C$55,ROW(AC168)<=statistics!$D$55),AC167+AH168-AG168,) -> 0 | AD168: =IF(AND(statistics!$C$55<=ROW(A168),ROW(A168)<=statistics!$D$55)=TRUE,AH168-AG168+AA167-INDEX(AA:AA,statistics!$C$55),"") ->  | AG168: 0 | AH168: 0 | AI168: 0 | AK168: =IF(statistics!$D$3<>0,IF(AJ168=statistics!$D$3,AG168,""),IF(B168<>"",AG168,"")) ->  | AL168: =IF(statistics!$D$3<>0,IF(AJ168=statistics!$D$3,IF(AH168=0,"",AH168),""),IF(AH168<>0,AH168,"")) ->  | AM168: =IF(statistics!$D$3<>0,IF(AJ168=statistics!$D$3,IF(A168=0,"",1),""),IF(A168=0,"",1)) ->  | AX168: 0 | BG168: 0 | BK168: 167
S169: 168 | U169: =IF(A170=0,IF(B170="",IF(B169=0,"",SUM($AG$1:AG169)-SUM($U$1:U168)),""),SUM($AG$1:AG169)-SUM($U$1:U168)) ->  | AA169: 0 | AB169: =IF(AJ169=statistics!$D$3,AB168+AH169-AG169,) -> 0 | AC169: =IF(AND(ROW(AC169)>=statistics!$C$55,ROW(AC169)<=statistics!$D$55),AC168+AH169-AG169,) -> 0 | AD169: =IF(AND(statistics!$C$55<=ROW(A169),ROW(A169)<=statistics!$D$55)=TRUE,AH169-AG169+AA168-INDEX(AA:AA,statistics!$C$55),"") ->  | AG169: 0 | AH169: 0 | AI169: 0 | AK169: =IF(statistics!$D$3<>0,IF(AJ169=statistics!$D$3,AG169,""),IF(B169<>"",AG169,"")) ->  | AL169: =IF(statistics!$D$3<>0,IF(AJ169=statistics!$D$3,IF(AH169=0,"",AH169),""),IF(AH169<>0,AH169,"")) ->  | AM169: =IF(statistics!$D$3<>0,IF(AJ169=statistics!$D$3,IF(A169=0,"",1),""),IF(A169=0,"",1)) ->  | AX169: 0 | BG169: 0 | BK169: 168
S170: 169 | U170: =IF(A171=0,IF(B171="",IF(B170=0,"",SUM($AG$1:AG170)-SUM($U$1:U169)),""),SUM($AG$1:AG170)-SUM($U$1:U169)) ->  | AA170: 0 | AB170: =IF(AJ170=statistics!$D$3,AB169+AH170-AG170,) -> 0 | AC170: =IF(AND(ROW(AC170)>=statistics!$C$55,ROW(AC170)<=statistics!$D$55),AC169+AH170-AG170,) -> 0 | AD170: =IF(AND(statistics!$C$55<=ROW(A170),ROW(A170)<=statistics!$D$55)=TRUE,AH170-AG170+AA169-INDEX(AA:AA,statistics!$C$55),"") ->  | AG170: 0 | AH170: 0 | AI170: 0 | AK170: =IF(statistics!$D$3<>0,IF(AJ170=statistics!$D$3,AG170,""),IF(B170<>"",AG170,"")) ->  | AL170: =IF(statistics!$D$3<>0,IF(AJ170=statistics!$D$3,IF(AH170=0,"",AH170),""),IF(AH170<>0,AH170,"")) ->  | AM170: =IF(statistics!$D$3<>0,IF(AJ170=statistics!$D$3,IF(A170=0,"",1),""),IF(A170=0,"",1)) ->  | AX170: 0 | BG170: 0 | BK170: 169
S171: 170 | U171: =IF(A172=0,IF(B172="",IF(B171=0,"",SUM($AG$1:AG171)-SUM($U$1:U170)),""),SUM($AG$1:AG171)-SUM($U$1:U170)) ->  | AA171: 0 | AB171: =IF(AJ171=statistics!$D$3,AB170+AH171-AG171,) -> 0 | AC171: =IF(AND(ROW(AC171)>=statistics!$C$55,ROW(AC171)<=statistics!$D$55),AC170+AH171-AG171,) -> 0 | AD171: =IF(AND(statistics!$C$55<=ROW(A171),ROW(A171)<=statistics!$D$55)=TRUE,AH171-AG171+AA170-INDEX(AA:AA,statistics!$C$55),"") ->  | AG171: 0 | AH171: 0 | AI171: 0 | AK171: =IF(statistics!$D$3<>0,IF(AJ171=statistics!$D$3,AG171,""),IF(B171<>"",AG171,"")) ->  | AL171: =IF(statistics!$D$3<>0,IF(AJ171=statistics!$D$3,IF(AH171=0,"",AH171),""),IF(AH171<>0,AH171,"")) ->  | AM171: =IF(statistics!$D$3<>0,IF(AJ171=statistics!$D$3,IF(A171=0,"",1),""),IF(A171=0,"",1)) ->  | AX171: 0 | BG171: 0 | BK171: 170
S172: 171 | U172: =IF(A173=0,IF(B173="",IF(B172=0,"",SUM($AG$1:AG172)-SUM($U$1:U171)),""),SUM($AG$1:AG172)-SUM($U$1:U171)) ->  | AA172: 0 | AB172: =IF(AJ172=statistics!$D$3,AB171+AH172-AG172,) -> 0 | AC172: =IF(AND(ROW(AC172)>=statistics!$C$55,ROW(AC172)<=statistics!$D$55),AC171+AH172-AG172,) -> 0 | AD172: =IF(AND(statistics!$C$55<=ROW(A172),ROW(A172)<=statistics!$D$55)=TRUE,AH172-AG172+AA171-INDEX(AA:AA,statistics!$C$55),"") ->  | AG172: 0 | AH172: 0 | AI172: 0 | AK172: =IF(statistics!$D$3<>0,IF(AJ172=statistics!$D$3,AG172,""),IF(B172<>"",AG172,"")) ->  | AL172: =IF(statistics!$D$3<>0,IF(AJ172=statistics!$D$3,IF(AH172=0,"",AH172),""),IF(AH172<>0,AH172,"")) ->  | AM172: =IF(statistics!$D$3<>0,IF(AJ172=statistics!$D$3,IF(A172=0,"",1),""),IF(A172=0,"",1)) ->  | AX172: 0 | BG172: 0 | BK172: 171
S173: 172 | U173: =IF(A174=0,IF(B174="",IF(B173=0,"",SUM($AG$1:AG173)-SUM($U$1:U172)),""),SUM($AG$1:AG173)-SUM($U$1:U172)) ->  | AA173: 0 | AB173: =IF(AJ173=statistics!$D$3,AB172+AH173-AG173,) -> 0 | AC173: =IF(AND(ROW(AC173)>=statistics!$C$55,ROW(AC173)<=statistics!$D$55),AC172+AH173-AG173,) -> 0 | AD173: =IF(AND(statistics!$C$55<=ROW(A173),ROW(A173)<=statistics!$D$55)=TRUE,AH173-AG173+AA172-INDEX(AA:AA,statistics!$C$55),"") ->  | AG173: 0 | AH173: 0 | AI173: 0 | AK173: =IF(statistics!$D$3<>0,IF(AJ173=statistics!$D$3,AG173,""),IF(B173<>"",AG173,"")) ->  | AL173: =IF(statistics!$D$3<>0,IF(AJ173=statistics!$D$3,IF(AH173=0,"",AH173),""),IF(AH173<>0,AH173,"")) ->  | AM173: =IF(statistics!$D$3<>0,IF(AJ173=statistics!$D$3,IF(A173=0,"",1),""),IF(A173=0,"",1)) ->  | AX173: 0 | BG173: 0 | BK173: 172
S174: 173 | U174: =IF(A175=0,IF(B175="",IF(B174=0,"",SUM($AG$1:AG174)-SUM($U$1:U173)),""),SUM($AG$1:AG174)-SUM($U$1:U173)) ->  | AA174: 0 | AB174: =IF(AJ174=statistics!$D$3,AB173+AH174-AG174,) -> 0 | AC174: =IF(AND(ROW(AC174)>=statistics!$C$55,ROW(AC174)<=statistics!$D$55),AC173+AH174-AG174,) -> 0 | AD174: =IF(AND(statistics!$C$55<=ROW(A174),ROW(A174)<=statistics!$D$55)=TRUE,AH174-AG174+AA173-INDEX(AA:AA,statistics!$C$55),"") ->  | AG174: 0 | AH174: 0 | AI174: 0 | AK174: =IF(statistics!$D$3<>0,IF(AJ174=statistics!$D$3,AG174,""),IF(B174<>"",AG174,"")) ->  | AL174: =IF(statistics!$D$3<>0,IF(AJ174=statistics!$D$3,IF(AH174=0,"",AH174),""),IF(AH174<>0,AH174,"")) ->  | AM174: =IF(statistics!$D$3<>0,IF(AJ174=statistics!$D$3,IF(A174=0,"",1),""),IF(A174=0,"",1)) ->  | AX174: 0 | BG174: 0 | BK174: 173
S175: 174 | U175: =IF(A176=0,IF(B176="",IF(B175=0,"",SUM($AG$1:AG175)-SUM($U$1:U174)),""),SUM($AG$1:AG175)-SUM($U$1:U174)) ->  | AA175: 0 | AB175: =IF(AJ175=statistics!$D$3,AB174+AH175-AG175,) -> 0 | AC175: =IF(AND(ROW(AC175)>=statistics!$C$55,ROW(AC175)<=statistics!$D$55),AC174+AH175-AG175,) -> 0 | AD175: =IF(AND(statistics!$C$55<=ROW(A175),ROW(A175)<=statistics!$D$55)=TRUE,AH175-AG175+AA174-INDEX(AA:AA,statistics!$C$55),"") ->  | AG175: 0 | AH175: 0 | AI175: 0 | AK175: =IF(statistics!$D$3<>0,IF(AJ175=statistics!$D$3,AG175,""),IF(B175<>"",AG175,"")) ->  | AL175: =IF(statistics!$D$3<>0,IF(AJ175=statistics!$D$3,IF(AH175=0,"",AH175),""),IF(AH175<>0,AH175,"")) ->  | AM175: =IF(statistics!$D$3<>0,IF(AJ175=statistics!$D$3,IF(A175=0,"",1),""),IF(A175=0,"",1)) ->  | AX175: 0 | BG175: 0 | BK175: 174
S176: 175 | U176: =IF(A177=0,IF(B177="",IF(B176=0,"",SUM($AG$1:AG176)-SUM($U$1:U175)),""),SUM($AG$1:AG176)-SUM($U$1:U175)) ->  | AA176: 0 | AB176: =IF(AJ176=statistics!$D$3,AB175+AH176-AG176,) -> 0 | AC176: =IF(AND(ROW(AC176)>=statistics!$C$55,ROW(AC176)<=statistics!$D$55),AC175+AH176-AG176,) -> 0 | AD176: =IF(AND(statistics!$C$55<=ROW(A176),ROW(A176)<=statistics!$D$55)=TRUE,AH176-AG176+AA175-INDEX(AA:AA,statistics!$C$55),"") ->  | AG176: 0 | AH176: 0 | AI176: 0 | AK176: =IF(statistics!$D$3<>0,IF(AJ176=statistics!$D$3,AG176,""),IF(B176<>"",AG176,"")) ->  | AL176: =IF(statistics!$D$3<>0,IF(AJ176=statistics!$D$3,IF(AH176=0,"",AH176),""),IF(AH176<>0,AH176,"")) ->  | AM176: =IF(statistics!$D$3<>0,IF(AJ176=statistics!$D$3,IF(A176=0,"",1),""),IF(A176=0,"",1)) ->  | AX176: 0 | BG176: 0 | BK176: 175
S177: 176 | U177: =IF(A178=0,IF(B178="",IF(B177=0,"",SUM($AG$1:AG177)-SUM($U$1:U176)),""),SUM($AG$1:AG177)-SUM($U$1:U176)) ->  | AA177: 0 | AB177: =IF(AJ177=statistics!$D$3,AB176+AH177-AG177,) -> 0 | AC177: =IF(AND(ROW(AC177)>=statistics!$C$55,ROW(AC177)<=statistics!$D$55),AC176+AH177-AG177,) -> 0 | AD177: =IF(AND(statistics!$C$55<=ROW(A177),ROW(A177)<=statistics!$D$55)=TRUE,AH177-AG177+AA176-INDEX(AA:AA,statistics!$C$55),"") ->  | AG177: 0 | AH177: 0 | AI177: 0 | AK177: =IF(statistics!$D$3<>0,IF(AJ177=statistics!$D$3,AG177,""),IF(B177<>"",AG177,"")) ->  | AL177: =IF(statistics!$D$3<>0,IF(AJ177=statistics!$D$3,IF(AH177=0,"",AH177),""),IF(AH177<>0,AH177,"")) ->  | AM177: =IF(statistics!$D$3<>0,IF(AJ177=statistics!$D$3,IF(A177=0,"",1),""),IF(A177=0,"",1)) ->  | AX177: 0 | BG177: 0 | BK177: 176
S178: 177 | U178: =IF(A179=0,IF(B179="",IF(B178=0,"",SUM($AG$1:AG178)-SUM($U$1:U177)),""),SUM($AG$1:AG178)-SUM($U$1:U177)) ->  | AA178: 0 | AB178: =IF(AJ178=statistics!$D$3,AB177+AH178-AG178,) -> 0 | AC178: =IF(AND(ROW(AC178)>=statistics!$C$55,ROW(AC178)<=statistics!$D$55),AC177+AH178-AG178,) -> 0 | AD178: =IF(AND(statistics!$C$55<=ROW(A178),ROW(A178)<=statistics!$D$55)=TRUE,AH178-AG178+AA177-INDEX(AA:AA,statistics!$C$55),"") ->  | AG178: 0 | AH178: 0 | AI178: 0 | AK178: =IF(statistics!$D$3<>0,IF(AJ178=statistics!$D$3,AG178,""),IF(B178<>"",AG178,"")) ->  | AL178: =IF(statistics!$D$3<>0,IF(AJ178=statistics!$D$3,IF(AH178=0,"",AH178),""),IF(AH178<>0,AH178,"")) ->  | AM178: =IF(statistics!$D$3<>0,IF(AJ178=statistics!$D$3,IF(A178=0,"",1),""),IF(A178=0,"",1)) ->  | AX178: 0 | BG178: 0 | BK178: 177
S179: 178 | U179: =IF(A180=0,IF(B180="",IF(B179=0,"",SUM($AG$1:AG179)-SUM($U$1:U178)),""),SUM($AG$1:AG179)-SUM($U$1:U178)) ->  | AA179: 0 | AB179: =IF(AJ179=statistics!$D$3,AB178+AH179-AG179,) -> 0 | AC179: =IF(AND(ROW(AC179)>=statistics!$C$55,ROW(AC179)<=statistics!$D$55),AC178+AH179-AG179,) -> 0 | AD179: =IF(AND(statistics!$C$55<=ROW(A179),ROW(A179)<=statistics!$D$55)=TRUE,AH179-AG179+AA178-INDEX(AA:AA,statistics!$C$55),"") ->  | AG179: 0 | AH179: 0 | AI179: 0 | AK179: =IF(statistics!$D$3<>0,IF(AJ179=statistics!$D$3,AG179,""),IF(B179<>"",AG179,"")) ->  | AL179: =IF(statistics!$D$3<>0,IF(AJ179=statistics!$D$3,IF(AH179=0,"",AH179),""),IF(AH179<>0,AH179,"")) ->  | AM179: =IF(statistics!$D$3<>0,IF(AJ179=statistics!$D$3,IF(A179=0,"",1),""),IF(A179=0,"",1)) ->  | AX179: 0 | BG179: 0 | BK179: 178
S180: 179 | U180: =IF(A181=0,IF(B181="",IF(B180=0,"",SUM($AG$1:AG180)-SUM($U$1:U179)),""),SUM($AG$1:AG180)-SUM($U$1:U179)) ->  | AA180: 0 | AB180: =IF(AJ180=statistics!$D$3,AB179+AH180-AG180,) -> 0 | AC180: =IF(AND(ROW(AC180)>=statistics!$C$55,ROW(AC180)<=statistics!$D$55),AC179+AH180-AG180,) -> 0 | AD180: =IF(AND(statistics!$C$55<=ROW(A180),ROW(A180)<=statistics!$D$55)=TRUE,AH180-AG180+AA179-INDEX(AA:AA,statistics!$C$55),"") ->  | AG180: 0 | AH180: 0 | AI180: 0 | AK180: =IF(statistics!$D$3<>0,IF(AJ180=statistics!$D$3,AG180,""),IF(B180<>"",AG180,"")) ->  | AL180: =IF(statistics!$D$3<>0,IF(AJ180=statistics!$D$3,IF(AH180=0,"",AH180),""),IF(AH180<>0,AH180,"")) ->  | AM180: =IF(statistics!$D$3<>0,IF(AJ180=statistics!$D$3,IF(A180=0,"",1),""),IF(A180=0,"",1)) ->  | AX180: 0 | BG180: 0 | BK180: 179
S181: 180 | U181: =IF(A182=0,IF(B182="",IF(B181=0,"",SUM($AG$1:AG181)-SUM($U$1:U180)),""),SUM($AG$1:AG181)-SUM($U$1:U180)) ->  | AA181: 0 | AB181: =IF(AJ181=statistics!$D$3,AB180+AH181-AG181,) -> 0 | AC181: =IF(AND(ROW(AC181)>=statistics!$C$55,ROW(AC181)<=statistics!$D$55),AC180+AH181-AG181,) -> 0 | AD181: =IF(AND(statistics!$C$55<=ROW(A181),ROW(A181)<=statistics!$D$55)=TRUE,AH181-AG181+AA180-INDEX(AA:AA,statistics!$C$55),"") ->  | AG181: 0 | AH181: 0 | AI181: 0 | AK181: =IF(statistics!$D$3<>0,IF(AJ181=statistics!$D$3,AG181,""),IF(B181<>"",AG181,"")) ->  | AL181: =IF(statistics!$D$3<>0,IF(AJ181=statistics!$D$3,IF(AH181=0,"",AH181),""),IF(AH181<>0,AH181,"")) ->  | AM181: =IF(statistics!$D$3<>0,IF(AJ181=statistics!$D$3,IF(A181=0,"",1),""),IF(A181=0,"",1)) ->  | AX181: 0 | BG181: 0 | BK181: 180
S182: 181 | U182: =IF(A183=0,IF(B183="",IF(B182=0,"",SUM($AG$1:AG182)-SUM($U$1:U181)),""),SUM($AG$1:AG182)-SUM($U$1:U181)) ->  | AA182: 0 | AB182: =IF(AJ182=statistics!$D$3,AB181+AH182-AG182,) -> 0 | AC182: =IF(AND(ROW(AC182)>=statistics!$C$55,ROW(AC182)<=statistics!$D$55),AC181+AH182-AG182,) -> 0 | AD182: =IF(AND(statistics!$C$55<=ROW(A182),ROW(A182)<=statistics!$D$55)=TRUE,AH182-AG182+AA181-INDEX(AA:AA,statistics!$C$55),"") ->  | AG182: 0 | AH182: 0 | AI182: 0 | AK182: =IF(statistics!$D$3<>0,IF(AJ182=statistics!$D$3,AG182,""),IF(B182<>"",AG182,"")) ->  | AL182: =IF(statistics!$D$3<>0,IF(AJ182=statistics!$D$3,IF(AH182=0,"",AH182),""),IF(AH182<>0,AH182,"")) ->  | AM182: =IF(statistics!$D$3<>0,IF(AJ182=statistics!$D$3,IF(A182=0,"",1),""),IF(A182=0,"",1)) ->  | AX182: 0 | BG182: 0 | BK182: 181
S183: 182 | U183: =IF(A184=0,IF(B184="",IF(B183=0,"",SUM($AG$1:AG183)-SUM($U$1:U182)),""),SUM($AG$1:AG183)-SUM($U$1:U182)) ->  | AA183: 0 | AB183: =IF(AJ183=statistics!$D$3,AB182+AH183-AG183,) -> 0 | AC183: =IF(AND(ROW(AC183)>=statistics!$C$55,ROW(AC183)<=statistics!$D$55),AC182+AH183-AG183,) -> 0 | AD183: =IF(AND(statistics!$C$55<=ROW(A183),ROW(A183)<=statistics!$D$55)=TRUE,AH183-AG183+AA182-INDEX(AA:AA,statistics!$C$55),"") ->  | AG183: 0 | AH183: 0 | AI183: 0 | AK183: =IF(statistics!$D$3<>0,IF(AJ183=statistics!$D$3,AG183,""),IF(B183<>"",AG183,"")) ->  | AL183: =IF(statistics!$D$3<>0,IF(AJ183=statistics!$D$3,IF(AH183=0,"",AH183),""),IF(AH183<>0,AH183,"")) ->  | AM183: =IF(statistics!$D$3<>0,IF(AJ183=statistics!$D$3,IF(A183=0,"",1),""),IF(A183=0,"",1)) ->  | AX183: 0 | BG183: 0 | BK183: 182
S184: 183 | U184: =IF(A185=0,IF(B185="",IF(B184=0,"",SUM($AG$1:AG184)-SUM($U$1:U183)),""),SUM($AG$1:AG184)-SUM($U$1:U183)) ->  | AA184: 0 | AB184: =IF(AJ184=statistics!$D$3,AB183+AH184-AG184,) -> 0 | AC184: =IF(AND(ROW(AC184)>=statistics!$C$55,ROW(AC184)<=statistics!$D$55),AC183+AH184-AG184,) -> 0 | AD184: =IF(AND(statistics!$C$55<=ROW(A184),ROW(A184)<=statistics!$D$55)=TRUE,AH184-AG184+AA183-INDEX(AA:AA,statistics!$C$55),"") ->  | AG184: 0 | AH184: 0 | AI184: 0 | AK184: =IF(statistics!$D$3<>0,IF(AJ184=statistics!$D$3,AG184,""),IF(B184<>"",AG184,"")) ->  | AL184: =IF(statistics!$D$3<>0,IF(AJ184=statistics!$D$3,IF(AH184=0,"",AH184),""),IF(AH184<>0,AH184,"")) ->  | AM184: =IF(statistics!$D$3<>0,IF(AJ184=statistics!$D$3,IF(A184=0,"",1),""),IF(A184=0,"",1)) ->  | AX184: 0 | BG184: 0 | BK184: 183
S185: 184 | U185: =IF(A186=0,IF(B186="",IF(B185=0,"",SUM($AG$1:AG185)-SUM($U$1:U184)),""),SUM($AG$1:AG185)-SUM($U$1:U184)) ->  | AA185: 0 | AB185: =IF(AJ185=statistics!$D$3,AB184+AH185-AG185,) -> 0 | AC185: =IF(AND(ROW(AC185)>=statistics!$C$55,ROW(AC185)<=statistics!$D$55),AC184+AH185-AG185,) -> 0 | AD185: =IF(AND(statistics!$C$55<=ROW(A185),ROW(A185)<=statistics!$D$55)=TRUE,AH185-AG185+AA184-INDEX(AA:AA,statistics!$C$55),"") ->  | AG185: 0 | AH185: 0 | AI185: 0 | AK185: =IF(statistics!$D$3<>0,IF(AJ185=statistics!$D$3,AG185,""),IF(B185<>"",AG185,"")) ->  | AL185: =IF(statistics!$D$3<>0,IF(AJ185=statistics!$D$3,IF(AH185=0,"",AH185),""),IF(AH185<>0,AH185,"")) ->  | AM185: =IF(statistics!$D$3<>0,IF(AJ185=statistics!$D$3,IF(A185=0,"",1),""),IF(A185=0,"",1)) ->  | AX185: 0 | BG185: 0 | BK185: 184
S186: 185 | U186: =IF(A187=0,IF(B187="",IF(B186=0,"",SUM($AG$1:AG186)-SUM($U$1:U185)),""),SUM($AG$1:AG186)-SUM($U$1:U185)) ->  | AA186: 0 | AB186: =IF(AJ186=statistics!$D$3,AB185+AH186-AG186,) -> 0 | AC186: =IF(AND(ROW(AC186)>=statistics!$C$55,ROW(AC186)<=statistics!$D$55),AC185+AH186-AG186,) -> 0 | AD186: =IF(AND(statistics!$C$55<=ROW(A186),ROW(A186)<=statistics!$D$55)=TRUE,AH186-AG186+AA185-INDEX(AA:AA,statistics!$C$55),"") ->  | AG186: 0 | AH186: 0 | AI186: 0 | AK186: =IF(statistics!$D$3<>0,IF(AJ186=statistics!$D$3,AG186,""),IF(B186<>"",AG186,"")) ->  | AL186: =IF(statistics!$D$3<>0,IF(AJ186=statistics!$D$3,IF(AH186=0,"",AH186),""),IF(AH186<>0,AH186,"")) ->  | AM186: =IF(statistics!$D$3<>0,IF(AJ186=statistics!$D$3,IF(A186=0,"",1),""),IF(A186=0,"",1)) ->  | AX186: 0 | BG186: 0 | BK186: 185
S187: 186 | U187: =IF(A188=0,IF(B188="",IF(B187=0,"",SUM($AG$1:AG187)-SUM($U$1:U186)),""),SUM($AG$1:AG187)-SUM($U$1:U186)) ->  | AA187: 0 | AB187: =IF(AJ187=statistics!$D$3,AB186+AH187-AG187,) -> 0 | AC187: =IF(AND(ROW(AC187)>=statistics!$C$55,ROW(AC187)<=statistics!$D$55),AC186+AH187-AG187,) -> 0 | AD187: =IF(AND(statistics!$C$55<=ROW(A187),ROW(A187)<=statistics!$D$55)=TRUE,AH187-AG187+AA186-INDEX(AA:AA,statistics!$C$55),"") ->  | AG187: 0 | AH187: 0 | AI187: 0 | AK187: =IF(statistics!$D$3<>0,IF(AJ187=statistics!$D$3,AG187,""),IF(B187<>"",AG187,"")) ->  | AL187: =IF(statistics!$D$3<>0,IF(AJ187=statistics!$D$3,IF(AH187=0,"",AH187),""),IF(AH187<>0,AH187,"")) ->  | AM187: =IF(statistics!$D$3<>0,IF(AJ187=statistics!$D$3,IF(A187=0,"",1),""),IF(A187=0,"",1)) ->  | AX187: 0 | BG187: 0 | BK187: 186
S188: 187 | U188: =IF(A189=0,IF(B189="",IF(B188=0,"",SUM($AG$1:AG188)-SUM($U$1:U187)),""),SUM($AG$1:AG188)-SUM($U$1:U187)) ->  | AA188: 0 | AB188: =IF(AJ188=statistics!$D$3,AB187+AH188-AG188,) -> 0 | AC188: =IF(AND(ROW(AC188)>=statistics!$C$55,ROW(AC188)<=statistics!$D$55),AC187+AH188-AG188,) -> 0 | AD188: =IF(AND(statistics!$C$55<=ROW(A188),ROW(A188)<=statistics!$D$55)=TRUE,AH188-AG188+AA187-INDEX(AA:AA,statistics!$C$55),"") ->  | AG188: 0 | AH188: 0 | AI188: 0 | AK188: =IF(statistics!$D$3<>0,IF(AJ188=statistics!$D$3,AG188,""),IF(B188<>"",AG188,"")) ->  | AL188: =IF(statistics!$D$3<>0,IF(AJ188=statistics!$D$3,IF(AH188=0,"",AH188),""),IF(AH188<>0,AH188,"")) ->  | AM188: =IF(statistics!$D$3<>0,IF(AJ188=statistics!$D$3,IF(A188=0,"",1),""),IF(A188=0,"",1)) ->  | AX188: 0 | BG188: 0 | BK188: 187
S189: 188 | U189: =IF(A190=0,IF(B190="",IF(B189=0,"",SUM($AG$1:AG189)-SUM($U$1:U188)),""),SUM($AG$1:AG189)-SUM($U$1:U188)) ->  | AA189: 0 | AB189: =IF(AJ189=statistics!$D$3,AB188+AH189-AG189,) -> 0 | AC189: =IF(AND(ROW(AC189)>=statistics!$C$55,ROW(AC189)<=statistics!$D$55),AC188+AH189-AG189,) -> 0 | AD189: =IF(AND(statistics!$C$55<=ROW(A189),ROW(A189)<=statistics!$D$55)=TRUE,AH189-AG189+AA188-INDEX(AA:AA,statistics!$C$55),"") ->  | AG189: 0 | AH189: 0 | AI189: 0 | AK189: =IF(statistics!$D$3<>0,IF(AJ189=statistics!$D$3,AG189,""),IF(B189<>"",AG189,"")) ->  | AL189: =IF(statistics!$D$3<>0,IF(AJ189=statistics!$D$3,IF(AH189=0,"",AH189),""),IF(AH189<>0,AH189,"")) ->  | AM189: =IF(statistics!$D$3<>0,IF(AJ189=statistics!$D$3,IF(A189=0,"",1),""),IF(A189=0,"",1)) ->  | AX189: 0 | BG189: 0 | BK189: 188
S190: 189 | U190: =IF(A191=0,IF(B191="",IF(B190=0,"",SUM($AG$1:AG190)-SUM($U$1:U189)),""),SUM($AG$1:AG190)-SUM($U$1:U189)) ->  | AA190: 0 | AB190: =IF(AJ190=statistics!$D$3,AB189+AH190-AG190,) -> 0 | AC190: =IF(AND(ROW(AC190)>=statistics!$C$55,ROW(AC190)<=statistics!$D$55),AC189+AH190-AG190,) -> 0 | AD190: =IF(AND(statistics!$C$55<=ROW(A190),ROW(A190)<=statistics!$D$55)=TRUE,AH190-AG190+AA189-INDEX(AA:AA,statistics!$C$55),"") ->  | AG190: 0 | AH190: 0 | AI190: 0 | AK190: =IF(statistics!$D$3<>0,IF(AJ190=statistics!$D$3,AG190,""),IF(B190<>"",AG190,"")) ->  | AL190: =IF(statistics!$D$3<>0,IF(AJ190=statistics!$D$3,IF(AH190=0,"",AH190),""),IF(AH190<>0,AH190,"")) ->  | AM190: =IF(statistics!$D$3<>0,IF(AJ190=statistics!$D$3,IF(A190=0,"",1),""),IF(A190=0,"",1)) ->  | AX190: 0 | BG190: 0 | BK190: 189
S191: 190 | U191: =IF(A192=0,IF(B192="",IF(B191=0,"",SUM($AG$1:AG191)-SUM($U$1:U190)),""),SUM($AG$1:AG191)-SUM($U$1:U190)) ->  | AA191: 0 | AB191: =IF(AJ191=statistics!$D$3,AB190+AH191-AG191,) -> 0 | AC191: =IF(AND(ROW(AC191)>=statistics!$C$55,ROW(AC191)<=statistics!$D$55),AC190+AH191-AG191,) -> 0 | AD191: =IF(AND(statistics!$C$55<=ROW(A191),ROW(A191)<=statistics!$D$55)=TRUE,AH191-AG191+AA190-INDEX(AA:AA,statistics!$C$55),"") ->  | AG191: 0 | AH191: 0 | AI191: 0 | AK191: =IF(statistics!$D$3<>0,IF(AJ191=statistics!$D$3,AG191,""),IF(B191<>"",AG191,"")) ->  | AL191: =IF(statistics!$D$3<>0,IF(AJ191=statistics!$D$3,IF(AH191=0,"",AH191),""),IF(AH191<>0,AH191,"")) ->  | AM191: =IF(statistics!$D$3<>0,IF(AJ191=statistics!$D$3,IF(A191=0,"",1),""),IF(A191=0,"",1)) ->  | AX191: 0 | BG191: 0 | BK191: 190
S192: 191 | U192: =IF(A193=0,IF(B193="",IF(B192=0,"",SUM($AG$1:AG192)-SUM($U$1:U191)),""),SUM($AG$1:AG192)-SUM($U$1:U191)) ->  | AA192: 0 | AB192: =IF(AJ192=statistics!$D$3,AB191+AH192-AG192,) -> 0 | AC192: =IF(AND(ROW(AC192)>=statistics!$C$55,ROW(AC192)<=statistics!$D$55),AC191+AH192-AG192,) -> 0 | AD192: =IF(AND(statistics!$C$55<=ROW(A192),ROW(A192)<=statistics!$D$55)=TRUE,AH192-AG192+AA191-INDEX(AA:AA,statistics!$C$55),"") ->  | AG192: 0 | AH192: 0 | AI192: 0 | AK192: =IF(statistics!$D$3<>0,IF(AJ192=statistics!$D$3,AG192,""),IF(B192<>"",AG192,"")) ->  | AL192: =IF(statistics!$D$3<>0,IF(AJ192=statistics!$D$3,IF(AH192=0,"",AH192),""),IF(AH192<>0,AH192,"")) ->  | AM192: =IF(statistics!$D$3<>0,IF(AJ192=statistics!$D$3,IF(A192=0,"",1),""),IF(A192=0,"",1)) ->  | AX192: 0 | BG192: 0 | BK192: 191
S193: 192 | U193: =IF(A194=0,IF(B194="",IF(B193=0,"",SUM($AG$1:AG193)-SUM($U$1:U192)),""),SUM($AG$1:AG193)-SUM($U$1:U192)) ->  | AA193: 0 | AB193: =IF(AJ193=statistics!$D$3,AB192+AH193-AG193,) -> 0 | AC193: =IF(AND(ROW(AC193)>=statistics!$C$55,ROW(AC193)<=statistics!$D$55),AC192+AH193-AG193,) -> 0 | AD193: =IF(AND(statistics!$C$55<=ROW(A193),ROW(A193)<=statistics!$D$55)=TRUE,AH193-AG193+AA192-INDEX(AA:AA,statistics!$C$55),"") ->  | AG193: 0 | AH193: 0 | AI193: 0 | AK193: =IF(statistics!$D$3<>0,IF(AJ193=statistics!$D$3,AG193,""),IF(B193<>"",AG193,"")) ->  | AL193: =IF(statistics!$D$3<>0,IF(AJ193=statistics!$D$3,IF(AH193=0,"",AH193),""),IF(AH193<>0,AH193,"")) ->  | AM193: =IF(statistics!$D$3<>0,IF(AJ193=statistics!$D$3,IF(A193=0,"",1),""),IF(A193=0,"",1)) ->  | AX193: 0 | BG193: 0 | BK193: 192
F194: =IF(A194=0,"",IF(T194=0,"",E194/T194)) ->  | H194: =IF(A195=0,IF(B195="",IF(B194=0,"",U194),""),U194) ->  | I194: =IF(A195=0,IF(B195="",IF(B194=0,"",S194),""),S194) ->  | S194: =IF(A194=0,S193+1,1) -> 193 | U194: =IF(A195=0,IF(B195="",IF(B194=0,"",SUM($AG$1:AG194)-SUM($U$1:U193)),""),SUM($AG$1:AG194)-SUM($U$1:U193)) ->  | AA194: 0 | AB194: =IF(AJ194=statistics!$D$3,AB193+AH194-AG194,) -> 0 | AC194: =IF(AND(ROW(AC194)>=statistics!$C$55,ROW(AC194)<=statistics!$D$55),AC193+AH194-AG194,) -> 0 | AD194: =IF(AND(statistics!$C$55<=ROW(A194),ROW(A194)<=statistics!$D$55)=TRUE,AH194-AG194+AA193-INDEX(AA:AA,statistics!$C$55),"") ->  | AG194: 0 | AH194: 0 | AI194: 0 | AK194: =IF(statistics!$D$3<>0,IF(AJ194=statistics!$D$3,AG194,""),IF(B194<>"",AG194,"")) ->  | AL194: =IF(statistics!$D$3<>0,IF(AJ194=statistics!$D$3,IF(AH194=0,"",AH194),""),IF(AH194<>0,AH194,"")) ->  | AM194: =IF(statistics!$D$3<>0,IF(AJ194=statistics!$D$3,IF(A194=0,"",1),""),IF(A194=0,"",1)) ->  | AX194: 0 | BG194: 0 | BK194: 193
E195: =IF(A195=0,"",IF(B195<>"",SUM(AH195:AH10193)-SUM(AG195:AG10193)-SUM(E196:E10193),"")) ->  | L195: =IF(A195=0,"",SUM(AI195:AI10193)-SUM(L196:L10193)) ->  | S195: 194 | T195: =IF(A195=0,"",SUM(AG195:AG10193)-SUM(T196:T10193)) ->  | U195: =IF(A196=0,IF(B196="",IF(B195=0,"",SUM($AG$1:AG195)-SUM($U$1:U194)),""),SUM($AG$1:AG195)-SUM($U$1:U194)) ->  | AA195: =AA194+AH195-AG195 -> 0 | AB195: =IF(AJ195=statistics!$D$3,AB194+AH195-AG195,) -> 0 | AC195: =IF(AND(ROW(AC195)>=statistics!$C$55,ROW(AC195)<=statistics!$D$55),AC194+AH195-AG195,) -> 0 | AD195: =IF(AND(statistics!$C$55<=ROW(A195),ROW(A195)<=statistics!$D$55)=TRUE,AH195-AG195+AA194-INDEX(AA:AA,statistics!$C$55),"") ->  | AG195: 0 | AH195: 0 | AI195: =IF(J195=0,,D195*J195) -> 0 | AK195: =IF(statistics!$D$3<>0,IF(AJ195=statistics!$D$3,AG195,""),IF(B195<>"",AG195,"")) ->  | AL195: =IF(statistics!$D$3<>0,IF(AJ195=statistics!$D$3,IF(AH195=0,"",AH195),""),IF(AH195<>0,AH195,"")) ->  | AM195: =IF(statistics!$D$3<>0,IF(AJ195=statistics!$D$3,IF(A195=0,"",1),""),IF(A195=0,"",1)) ->  | AQ195: =IF(B195=0,"",IF(D195=0,IF(D194=0,AQ194+1,1),"")) ->  | AX195: =J195*D195-J195*K195*(B195+C195) -> 0 | BB195: =IF(B195=$BA$2,ROW(),"") ->  | BE195: =IF(B195=$BA$2,INDEX(D:D,SMALL(BB:BB,CELL("содержимое",BG195)))-INDEX(B:B,SMALL(BB:BB,CELL("содержимое",BG195)))-INDEX(C:C,SMALL(BB:BB,CELL("содержимое",BG195))),"") ->  | BG195: =IF($BA$2=B195,BG194+1,BG194) -> 0 | BI195: =INDEX(BE:BE,SMALL(BB:BB,CELL("содержимое",BK195))) ->  | BJ195: =BJ194+BI195 ->  | BK195: =BK194+1 -> 194
S196: 195 | U196: =IF(A197=0,IF(B197="",IF(B196=0,"",SUM($AG$1:AG196)-SUM($U$1:U195)),""),SUM($AG$1:AG196)-SUM($U$1:U195)) ->  | AA196: 0 | AB196: =IF(AJ196=statistics!$D$3,AB195+AH196-AG196,) -> 0 | AC196: =IF(AND(ROW(AC196)>=statistics!$C$55,ROW(AC196)<=statistics!$D$55),AC195+AH196-AG196,) -> 0 | AD196: =IF(AND(statistics!$C$55<=ROW(A196),ROW(A196)<=statistics!$D$55)=TRUE,AH196-AG196+AA195-INDEX(AA:AA,statistics!$C$55),"") ->  | AG196: 0 | AH196: 0 | AI196: 0 | AK196: =IF(statistics!$D$3<>0,IF(AJ196=statistics!$D$3,AG196,""),IF(B196<>"",AG196,"")) ->  | AL196: =IF(statistics!$D$3<>0,IF(AJ196=statistics!$D$3,IF(AH196=0,"",AH196),""),IF(AH196<>0,AH196,"")) ->  | AM196: =IF(statistics!$D$3<>0,IF(AJ196=statistics!$D$3,IF(A196=0,"",1),""),IF(A196=0,"",1)) ->  | AN196: =IF(AK196<>"",IF(AK195=0,ROW(AK196),ROW(AK196)),"") ->  | AO196: =IF(A196<>0,IF(MONTH(A196)=AJ195,"",MONTH(A196)),"") ->  | AX196: 0 | BG196: 0 | BK196: 195
S197: 196 | U197: =IF(A198=0,IF(B198="",IF(B197=0,"",SUM($AG$1:AG197)-SUM($U$1:U196)),""),SUM($AG$1:AG197)-SUM($U$1:U196)) ->  | AA197: 0 | AB197: =IF(AJ197=statistics!$D$3,AB196+AH197-AG197,) -> 0 | AC197: =IF(AND(ROW(AC197)>=statistics!$C$55,ROW(AC197)<=statistics!$D$55),AC196+AH197-AG197,) -> 0 | AD197: =IF(AND(statistics!$C$55<=ROW(A197),ROW(A197)<=statistics!$D$55)=TRUE,AH197-AG197+AA196-INDEX(AA:AA,statistics!$C$55),"") ->  | AG197: =IF(J197=0,B197+C197,(B197+C197)-(B197+C197)*J197*K197) -> 0 | AH197: =IF(J197=0,D197,D197*(1-J197)) -> 0 | AI197: 0 | AK197: =IF(statistics!$D$3<>0,IF(AJ197=statistics!$D$3,AG197,""),IF(B197<>"",AG197,"")) ->  | AL197: =IF(statistics!$D$3<>0,IF(AJ197=statistics!$D$3,IF(AH197=0,"",AH197),""),IF(AH197<>0,AH197,"")) ->  | AM197: =IF(statistics!$D$3<>0,IF(AJ197=statistics!$D$3,IF(A197=0,"",1),""),IF(A197=0,"",1)) ->  | AX197: 0 | BG197: 0 | BK197: 196
S198: 197 | U198: =IF(A199=0,IF(B199="",IF(B198=0,"",SUM($AG$1:AG198)-SUM($U$1:U197)),""),SUM($AG$1:AG198)-SUM($U$1:U197)) ->  | AA198: 0 | AB198: =IF(AJ198=statistics!$D$3,AB197+AH198-AG198,) -> 0 | AC198: =IF(AND(ROW(AC198)>=statistics!$C$55,ROW(AC198)<=statistics!$D$55),AC197+AH198-AG198,) -> 0 | AD198: =IF(AND(statistics!$C$55<=ROW(A198),ROW(A198)<=statistics!$D$55)=TRUE,AH198-AG198+AA197-INDEX(AA:AA,statistics!$C$55),"") ->  | AG198: 0 | AH198: 0 | AI198: 0 | AK198: =IF(statistics!$D$3<>0,IF(AJ198=statistics!$D$3,AG198,""),IF(B198<>"",AG198,"")) ->  | AL198: =IF(statistics!$D$3<>0,IF(AJ198=statistics!$D$3,IF(AH198=0,"",AH198),""),IF(AH198<>0,AH198,"")) ->  | AM198: =IF(statistics!$D$3<>0,IF(AJ198=statistics!$D$3,IF(A198=0,"",1),""),IF(A198=0,"",1)) ->  | AX198: 0 | BG198: 0 | BK198: 197
S199: 198 | U199: =IF(A200=0,IF(B200="",IF(B199=0,"",SUM($AG$1:AG199)-SUM($U$1:U198)),""),SUM($AG$1:AG199)-SUM($U$1:U198)) ->  | AA199: 0 | AB199: =IF(AJ199=statistics!$D$3,AB198+AH199-AG199,) -> 0 | AC199: =IF(AND(ROW(AC199)>=statistics!$C$55,ROW(AC199)<=statistics!$D$55),AC198+AH199-AG199,) -> 0 | AD199: =IF(AND(statistics!$C$55<=ROW(A199),ROW(A199)<=statistics!$D$55)=TRUE,AH199-AG199+AA198-INDEX(AA:AA,statistics!$C$55),"") ->  | AG199: 0 | AH199: 0 | AI199: 0 | AK199: =IF(statistics!$D$3<>0,IF(AJ199=statistics!$D$3,AG199,""),IF(B199<>"",AG199,"")) ->  | AL199: =IF(statistics!$D$3<>0,IF(AJ199=statistics!$D$3,IF(AH199=0,"",AH199),""),IF(AH199<>0,AH199,"")) ->  | AM199: =IF(statistics!$D$3<>0,IF(AJ199=statistics!$D$3,IF(A199=0,"",1),""),IF(A199=0,"",1)) ->  | AX199: 0 | BG199: 0 | BK199: 198
S200: 199 | U200: =IF(A201=0,IF(B201="",IF(B200=0,"",SUM($AG$1:AG200)-SUM($U$1:U199)),""),SUM($AG$1:AG200)-SUM($U$1:U199)) ->  | AA200: 0 | AB200: =IF(AJ200=statistics!$D$3,AB199+AH200-AG200,) -> 0 | AC200: =IF(AND(ROW(AC200)>=statistics!$C$55,ROW(AC200)<=statistics!$D$55),AC199+AH200-AG200,) -> 0 | AD200: =IF(AND(statistics!$C$55<=ROW(A200),ROW(A200)<=statistics!$D$55)=TRUE,AH200-AG200+AA199-INDEX(AA:AA,statistics!$C$55),"") ->  | AG200: 0 | AH200: 0 | AI200: 0 | AK200: =IF(statistics!$D$3<>0,IF(AJ200=statistics!$D$3,AG200,""),IF(B200<>"",AG200,"")) ->  | AL200: =IF(statistics!$D$3<>0,IF(AJ200=statistics!$D$3,IF(AH200=0,"",AH200),""),IF(AH200<>0,AH200,"")) ->  | AM200: =IF(statistics!$D$3<>0,IF(AJ200=statistics!$D$3,IF(A200=0,"",1),""),IF(A200=0,"",1)) ->  | AX200: 0 | BG200: 0 | BK200: 199
... 925 more rows

Sheet statistics
B2: month | D2: № of month | E2: #mtt | F2: total bi | G2: won | H2: profit | I2: %roi | J2: %itm | K2: abi | L2: #days | P2: buy-in | Q2: #mtt | R2: total bi | S2: won | T2: profit | U2: %roi | W2: =IF(data!A2="","",IF(data!E2=SMALL(data!E2:'data'!E10000,1),data!A2,"")) -> 
D3: 3 | E3: =COUNT(data!AK:AK) -> 0 | F3: =SUM(data!AK:AK) -> 0 | G3: =SUM(data!AL:AL) -> 0 | H3: =G3-F3 -> 0 | I3: =IF(E3>0,H3/F3,) -> 0 | J3: =IF(E3>0,COUNT(data!AL:AL)/E3,"") ->  | K3: =IF(E3<>0,F3/E3,) -> 0 | L3: =SUM(data!AM:AM) -> 0 | O3: all | P3: 11 | Q3: =COUNTIF(data!B:B,P3) -> 0 | R3: =SUMIF(data!B:B,P3,data!B:B)+SUMIF(data!B:B,P3,data!C:C) -> 0 | S3: =SUMIF(data!B:B,P3,data!D:D) -> 0 | T3: =S3-R3 -> 0 | U3: =IF(Q3<>0,T3/R3,) -> 0 | W3: =IF(data!A3="","",IF(data!E3=SMALL(data!E3:'data'!E10001,1),data!A3,"")) -> 
C4: first | M4: last | W4: =IF(data!A4="","",IF(data!E4=SMALL(data!E4:'data'!E10002,1),data!A4,"")) -> 
C5: =SMALL(data!AN:AN,1) ->  | M5: =LARGE(data!AN:AN,1) ->  | W5: =IF(data!A5="","",IF(data!E5=SMALL(data!E5:'data'!E10003,1),data!A5,"")) -> 
W6: =IF(data!A6="","",IF(data!E6=SMALL(data!E6:'data'!E10004,1),data!A6,"")) -> 
W7: =IF(data!A7="","",IF(data!E7=SMALL(data!E7:'data'!E10005,1),data!A7,"")) -> 
W8: =IF(data!A8="","",IF(data!E8=SMALL(data!E8:'data'!E10006,1),data!A8,"")) -> 
W9: =IF(data!A9="","",IF(data!E9=SMALL(data!E9:'data'!E10007,1),data!A9,"")) -> 
W10: =IF(data!A10="","",IF(data!E10=SMALL(data!E10:'data'!E10008,1),data!A10,"")) -> 
W11: =IF(data!A11="","",IF(data!E11=SMALL(data!E11:'data'!E10009,1),data!A11,"")) -> 
W12: =IF(data!A12="","",IF(data!E12=SMALL(data!E12:'data'!E10010,1),data!A12,"")) -> 
W13: =IF(data!A13="","",IF(data!E13=SMALL(data!E13:'data'!E10011,1),data!A13,"")) -> 
W14: =IF(data!A14="","",IF(data!E14=SMALL(data!E14:'data'!E10012,1),data!A14,"")) -> 
W15: =IF(data!A15="","",IF(data!E15=SMALL(data!E15:'data'!E10013,1),data!A15,"")) -> 
W16: =IF(data!A16="","",IF(data!E16=SMALL(data!E16:'data'!E10014,1),data!A16,"")) -> 
W17: =IF(data!A17="","",IF(data!E17=SMALL(data!E17:'data'!E10015,1),data!A17,"")) -> 
W18: =IF(data!A18="","",IF(data!E18=SMALL(data!E18:'data'!E10016,1),data!A18,"")) -> 
W19: =IF(data!A19="","",IF(data!E19=SMALL(data!E19:'data'!E10017,1),data!A19,"")) -> 
W20: =IF(data!A20="","",IF(data!E20=SMALL(data!E20:'data'!E10018,1),data!A20,"")) -> 
W21: =IF(data!A21="","",IF(data!E21=SMALL(data!E21:'data'!E10019,1),data!A21,"")) -> 
W22: =IF(data!A22="","",IF(data!E22=SMALL(data!E22:'data'!E10020,1),data!A22,"")) -> 
W23: =IF(data!A23="","",IF(data!E23=SMALL(data!E23:'data'!E10021,1),data!A23,"")) -> 
G24: =SUM(data!C2:'data'!C3333) -> 0 | W24: =IF(data!A24="","",IF(data!E24=SMALL(data!E24:'data'!E10022,1),data!A24,"")) -> 
W25: =IF(data!A25="","",IF(data!E25=SMALL(data!E25:'data'!E10023,1),data!A25,"")) -> 
W26: =IF(data!A26="","",IF(data!E26=SMALL(data!E26:'data'!E10024,1),data!A26,"")) -> 
W27: =IF(data!A27="","",IF(data!E27=SMALL(data!E27:'data'!E10025,1),data!A27,"")) -> 
B28: total | W28: =IF(data!A28="","",IF(data!E28=SMALL(data!E28:'data'!E10026,1),data!A28,"")) -> 
C29: #months | D29: #days | E29: #mtt | F29: total bi | G29: won | H29: profit | I29: %roi | J29: %itm | K29: abi | L29: worst day | M29: longest /w itm | P29: buy-in | Q29: #mtt | R29: total bi | S29: won | T29: profit | U29: %roi | W29: =IF(data!A29="","",IF(data!E29=SMALL(data!E29:'data'!E10027,1),data!A29,"")) -> 
C30: =COUNT(data!AO:AO) -> 0 | D30: =COUNT(data!A:A) -> 0 | E30: =COUNT(data!B:B) -> 0 | F30: =SUM(data!AG:AG) -> 0 | G30: =SUM(data!AH:AH) -> 0 | H30: =G30-F30 -> 0 | I30: =IF(E30>0,H30/F30,) -> 0 | J30: =IF(E30>0,COUNTIF(data!D:D,">0")/E30,) -> 0 | K30: =IF(E30<>0,F30/E30,) -> 0 | L30: =SMALL(W:W,1) ->  | M30: =LARGE(data!AQ:AQ,1) ->  | O30: r+ only | P30: 5.5 | Q30: =COUNTIFS(data!B:B,P30,data!C:C,">0") -> 0 | R30: =SUMIFS(data!B:B,data!B:B,P30,data!C:C,">0")+SUMIFS(data!C:C,data!B:B,P30,data!C:C,">0") -> 0 | S30: =SUMIFS(data!D:D,data!B:B,P30,data!C:C,">0") -> 0 | T30: =S30-R30 -> 0 | U30: =IF(Q30<>0,T30/R30,) -> 0 | W30: =IF(data!A30="","",IF(data!E30=SMALL(data!E30:'data'!E10028,1),data!A30,"")) -> 
W31: =IF(data!A31="","",IF(data!E31=SMALL(data!E31:'data'!E10029,1),data!A31,"")) -> 
W32: =IF(data!A32="","",IF(data!E32=SMALL(data!E32:'data'!E10030,1),data!A32,"")) -> 
B33: first day | M33: last day | W33: =IF(data!A33="","",IF(data!E33=SMALL(data!E33:'data'!E10031,1),data!A33,"")) -> 
B34: =SMALL(data!A:A,1) ->  | M34: =LARGE(data!A:A,1) ->  | W34: =IF(data!A34="","",IF(data!E34=SMALL(data!E34:'data'!E10032,1),data!A34,"")) -> 
W35: =IF(data!A35="","",IF(data!E35=SMALL(data!E35:'data'!E10033,1),data!A35,"")) -> 
W36: =IF(data!A36="","",IF(data!E36=SMALL(data!E36:'data'!E10034,1),data!A36,"")) -> 
W37: =IF(data!A37="","",IF(data!E37=SMALL(data!E37:'data'!E10035,1),data!A37,"")) -> 
W38: =IF(data!A38="","",IF(data!E38=SMALL(data!E38:'data'!E10036,1),data!A38,"")) -> 
W39: =IF(data!A39="","",IF(data!E39=SMALL(data!E39:'data'!E10037,1),data!A39,"")) -> 
W40: =IF(data!A40="","",IF(data!E40=SMALL(data!E40:'data'!E10038,1),data!A40,"")) -> 
W41: =IF(data!A41="","",IF(data!E41=SMALL(data!E41:'data'!E10039,1),data!A41,"")) -> 
W42: =IF(data!A42="","",IF(data!E42=SMALL(data!E42:'data'!E10040,1),data!A42,"")) -> 
W43: =IF(data!A43="","",IF(data!E43=SMALL(data!E43:'data'!E10041,1),data!A43,"")) -> 
W44: =IF(data!A44="","",IF(data!E44=SMALL(data!E44:'data'!E10042,1),data!A44,"")) -> 
W45: =IF(data!A45="","",IF(data!E45=SMALL(data!E45:'data'!E10043,1),data!A45,"")) -> 
W46: =IF(data!A46="","",IF(data!E46=SMALL(data!E46:'data'!E10044,1),data!A46,"")) -> 
W47: =IF(data!A47="","",IF(data!E47=SMALL(data!E47:'data'!E10045,1),data!A47,"")) -> 
W48: =IF(data!A48="","",IF(data!E48=SMALL(data!E48:'data'!E10046,1),data!A48,"")) -> 
W49: =IF(data!A49="","",IF(data!E49=SMALL(data!E49:'data'!E10047,1),data!A49,"")) -> 
W50: =IF(data!A50="","",IF(data!E50=SMALL(data!E50:'data'!E10048,1),data!A50,"")) -> 
W51: =IF(data!A51="","",IF(data!E51=SMALL(data!E51:'data'!E10049,1),data!A51,"")) -> 
B52: period | W52: =IF(data!A52="","",IF(data!E52=SMALL(data!E52:'data'!E10050,1),data!A52,"")) -> 
W53: =IF(data!A53="","",IF(data!E53=SMALL(data!E53:'data'!E10051,1),data!A53,"")) -> 
C54: from # | D54: to # | E54: #mtt | F54: total bi | G54: won | H54: profit | I54: %roi | J54: %itm | K54: abi | L54: #days | W54: =IF(data!A54="","",IF(data!E54=SMALL(data!E54:'data'!E10052,1),data!A54,"")) -> 
C55: 25 | D55: 50 | E55: =COUNT(INDEX(data!B:B,C55):INDEX(data!B:B,D55)) -> 0 | F55: =SUM(INDEX(data!AG:AG,$C$55):INDEX(data!AG:AG,$D$55)) -> 0 | G55: =SUM(INDEX(data!AH:AH,$C$55):INDEX(data!AH:AH,$D$55)) -> 0 | H55: =G55-F55 -> 0 | I55: =IF(E55>0,H55/F55,) -> 0 | J55: =IF(E55>0,COUNTIF(INDEX(data!D:D,C55):INDEX(data!D:D,D55),">0")/E55,) -> 0 | K55: =IF(E55<>0,F55/E55,) -> 0 | L55: =COUNT(INDEX(data!A:A,C55):INDEX(data!A:A,D55)) -> 0 | W55: =IF(data!A55="","",IF(data!E55=SMALL(data!E55:'data'!E10053,1),data!A55,"")) -> 
W56: =IF(data!A56="","",IF(data!E56=SMALL(data!E56:'data'!E10054,1),data!A56,"")) -> 
W57: =IF(data!A57="","",IF(data!E57=SMALL(data!E57:'data'!E10055,1),data!A57,"")) -> 
B58: first day | M58: last day | W58: =IF(data!A58="","",IF(data!E58=SMALL(data!E58:'data'!E10056,1),data!A58,"")) -> 
B59: =INDEX(data!A:A,C55) -> 00:00:00 | M59: =LARGE(data!A:A,1) ->  | W59: =IF(data!A59="","",IF(data!E59=SMALL(data!E59:'data'!E10057,1),data!A59,"")) -> 
W60: =IF(data!A60="","",IF(data!E60=SMALL(data!E60:'data'!E10058,1),data!A60,"")) -> 
W61: =IF(data!A61="","",IF(data!E61=SMALL(data!E61:'data'!E10059,1),data!A61,"")) -> 
W62: =IF(data!A62="","",IF(data!E62=SMALL(data!E62:'data'!E10060,1),data!A62,"")) -> 
W63: =IF(data!A63="","",IF(data!E63=SMALL(data!E63:'data'!E10061,1),data!A63,"")) -> 
W64: =IF(data!A64="","",IF(data!E64=SMALL(data!E64:'data'!E10062,1),data!A64,"")) -> 
W65: =IF(data!A65="","",IF(data!E65=SMALL(data!E65:'data'!E10063,1),data!A65,"")) -> 
W66: =IF(data!A66="","",IF(data!E66=SMALL(data!E66:'data'!E10064,1),data!A66,"")) -> 
W67: =IF(data!A67="","",IF(data!E67=SMALL(data!E67:'data'!E10065,1),data!A67,"")) -> 
W68: =IF(data!A68="","",IF(data!E68=SMALL(data!E68:'data'!E10066,1),data!A68,"")) -> 
W69: =IF(data!A69="","",IF(data!E69=SMALL(data!E69:'data'!E10067,1),data!A69,"")) -> 
W70: =IF(data!A70="","",IF(data!E70=SMALL(data!E70:'data'!E10068,1),data!A70,"")) -> 
W71: =IF(data!A71="","",IF(data!E71=SMALL(data!E71:'data'!E10069,1),data!A71,"")) -> 
W72: =IF(data!A72="","",IF(data!E72=SMALL(data!E72:'data'!E10070,1),data!A72,"")) -> 
W73: =IF(data!A73="","",IF(data!E73=SMALL(data!E73:'data'!E10071,1),data!A73,"")) -> 
W74: =IF(data!A74="","",IF(data!E74=SMALL(data!E74:'data'!E10072,1),data!A74,"")) -> 
W75: =IF(data!A75="","",IF(data!E75=SMALL(data!E75:'data'!E10073,1),data!A75,"")) -> 
W76: =IF(data!A76="","",IF(data!E76=SMALL(data!E76:'data'!E10074,1),data!A76,"")) -> 
W77: =IF(data!A77="","",IF(data!E77=SMALL(data!E77:'data'!E10075,1),data!A77,"")) -> 
W78: =IF(data!A78="","",IF(data!E78=SMALL(data!E78:'data'!E10076,1),data!A78,"")) -> 
W79: =IF(data!A79="","",IF(data!E79=SMALL(data!E79:'data'!E10077,1),data!A79,"")) -> 
W80: =IF(data!A80="","",IF(data!E80=SMALL(data!E80:'data'!E10078,1),data!A80,"")) -> 
W81: =IF(data!A81="","",IF(data!E81=SMALL(data!E81:'data'!E10079,1),data!A81,"")) -> 
W82: =IF(data!A82="","",IF(data!E82=SMALL(data!E82:'data'!E10080,1),data!A82,"")) -> 
W83: =IF(data!A83="","",IF(data!E83=SMALL(data!E83:'data'!E10081,1),data!A83,"")) -> 
W84: =IF(data!A84="","",IF(data!E84=SMALL(data!E84:'data'!E10082,1),data!A84,"")) -> 
W85: =IF(data!A85="","",IF(data!E85=SMALL(data!E85:'data'!E10083,1),data!A85,"")) -> 
W86: =IF(data!A86="","",IF(data!E86=SMALL(data!E86:'data'!E10084,1),data!A86,"")) -> 
W87: =IF(data!A87="","",IF(data!E87=SMALL(data!E87:'data'!E10085,1),data!A87,"")) -> 
W88: =IF(data!A88="","",IF(data!E88=SMALL(data!E88:'data'!E10086,1),data!A88,"")) -> 
W89: =IF(data!A89="","",IF(data!E89=SMALL(data!E89:'data'!E10087,1),data!A89,"")) -> 
W90: =IF(data!A90="","",IF(data!E90=SMALL(data!E90:'data'!E10088,1),data!A90,"")) -> 
W91: =IF(data!A91="","",IF(data!E91=SMALL(data!E91:'data'!E10089,1),data!A91,"")) -> 
W92: =IF(data!A92="","",IF(data!E92=SMALL(data!E92:'data'!E10090,1),data!A92,"")) -> 
W93: =IF(data!A93="","",IF(data!E93=SMALL(data!E93:'data'!E10091,1),data!A93,"")) -> 
W94: =IF(data!A94="","",IF(data!E94=SMALL(data!E94:'data'!E10092,1),data!A94,"")) -> 
W95: =IF(data!A95="","",IF(data!E95=SMALL(data!E95:'data'!E10093,1),data!A95,"")) -> 
W96: =IF(data!A96="","",IF(data!E96=SMALL(data!E96:'data'!E10094,1),data!A96,"")) -> 
W97: =IF(data!A97="","",IF(data!E97=SMALL(data!E97:'data'!E10095,1),data!A97,"")) -> 
W98: =IF(data!A98="","",IF(data!E98=SMALL(data!E98:'data'!E10096,1),data!A98,"")) -> 
W99: =IF(data!A99="","",IF(data!E99=SMALL(data!E99:'data'!E10097,1),data!A99,"")) -> 
W100: =IF(data!A100="","",IF(data!E100=SMALL(data!E100:'data'!E10098,1),data!A100,"")) -> 
W101: =IF(data!A101="","",IF(data!E101=SMALL(data!E101:'data'!E10099,1),data!A101,"")) -> 
W102: =IF(data!A102="","",IF(data!E102=SMALL(data!E102:'data'!E10100,1),data!A102,"")) -> 
W103: =IF(data!A103="","",IF(data!E103=SMALL(data!E103:'data'!E10101,1),data!A103,"")) -> 
W104: =IF(data!A104="","",IF(data!E104=SMALL(data!E104:'data'!E10102,1),data!A104,"")) -> 
W105: =IF(data!A105="","",IF(data!E105=SMALL(data!E105:'data'!E10103,1),data!A105,"")) -> 
W106: =IF(data!A106="","",IF(data!E106=SMALL(data!E106:'data'!E10104,1),data!A106,"")) -> 
W107: =IF(data!A107="","",IF(data!E107=SMALL(data!E107:'data'!E10105,1),data!A107,"")) -> 
W108: =IF(data!A108="","",IF(data!E108=SMALL(data!E108:'data'!E10106,1),data!A108,"")) -> 
W109: =IF(data!A109="","",IF(data!E109=SMALL(data!E109:'data'!E10107,1),data!A109,"")) -> 
W110: =IF(data!A110="","",IF(data!E110=SMALL(data!E110:'data'!E10108,1),data!A110,"")) -> 
W111: =IF(data!A111="","",IF(data!E111=SMALL(data!E111:'data'!E10109,1),data!A111,"")) -> 
W112: =IF(data!A112="","",IF(data!E112=SMALL(data!E112:'data'!E10110,1),data!A112,"")) -> 
W113: =IF(data!A113="","",IF(data!E113=SMALL(data!E113:'data'!E10111,1),data!A113,"")) -> 
W114: =IF(data!A114="","",IF(data!E114=SMALL(data!E114:'data'!E10112,1),data!A114,"")) -> 
W115: =IF(data!A115="","",IF(data!E115=SMALL(data!E115:'data'!E10113,1),data!A115,"")) -> 
W116: =IF(data!A116="","",IF(data!E116=SMALL(data!E116:'data'!E10114,1),data!A116,"")) -> 
W117: =IF(data!A117="","",IF(data!E117=SMALL(data!E117:'data'!E10115,1),data!A117,"")) -> 
W118: =IF(data!A118="","",IF(data!E118=SMALL(data!E118:'data'!E10116,1),data!A118,"")) -> 
W119: =IF(data!A119="","",IF(data!E119=SMALL(data!E119:'data'!E10117,1),data!A119,"")) -> 
W120: =IF(data!A120="","",IF(data!E120=SMALL(data!E120:'data'!E10118,1),data!A120,"")) -> 
W121: =IF(data!A121="","",IF(data!E121=SMALL(data!E121:'data'!E10119,1),data!A121,"")) -> 
W122: =IF(data!A122="","",IF(data!E122=SMALL(data!E122:'data'!E10120,1),data!A122,"")) -> 
W123: =IF(data!A123="","",IF(data!E123=SMALL(data!E123:'data'!E10121,1),data!A123,"")) -> 
W124: =IF(data!A124="","",IF(data!E124=SMALL(data!E124:'data'!E10122,1),data!A124,"")) -> 
W125: =IF(data!A125="","",IF(data!E125=SMALL(data!E125:'data'!E10123,1),data!A125,"")) -> 
W126: =IF(data!A126="","",IF(data!E126=SMALL(data!E126:'data'!E10124,1),data!A126,"")) -> 
W127: =IF(data!A127="","",IF(data!E127=SMALL(data!E127:'data'!E10125,1),data!A127,"")) -> 
W128: =IF(data!A128="","",IF(data!E128=SMALL(data!E128:'data'!E10126,1),data!A128,"")) -> 
W129: =IF(data!A129="","",IF(data!E129=SMALL(data!E129:'data'!E10127,1),data!A129,"")) -> 
W130: =IF(data!A130="","",IF(data!E130=SMALL(data!E130:'data'!E10128,1),data!A130,"")) -> 
W131: =IF(data!A131="","",IF(data!E131=SMALL(data!E131:'data'!E10129,1),data!A131,"")) -> 
W132: =IF(data!A132="","",IF(data!E132=SMALL(data!E132:'data'!E10130,1),data!A132,"")) -> 
W133: =IF(data!A133="","",IF(data!E133=SMALL(data!E133:'data'!E10131,1),data!A133,"")) -> 
W134: =IF(data!A134="","",IF(data!E134=SMALL(data!E134:'data'!E10132,1),data!A134,"")) -> 
W135: =IF(data!A135="","",IF(data!E135=SMALL(data!E135:'data'!E10133,1),data!A135,"")) -> 
W136: =IF(data!A136="","",IF(data!E136=SMALL(data!E136:'data'!E10134,1),data!A136,"")) -> 
W137: =IF(data!A137="","",IF(data!E137=SMALL(data!E137:'data'!E10135,1),data!A137,"")) -> 
W138: =IF(data!A138="","",IF(data!E138=SMALL(data!E138:'data'!E10136,1),data!A138,"")) -> 
W139: =IF(data!A139="","",IF(data!E139=SMALL(data!E139:'data'!E10137,1),data!A139,"")) -> 
W140: =IF(data!A140="","",IF(data!E140=SMALL(data!E140:'data'!E10138,1),data!A140,"")) -> 
W141: =IF(data!A141="","",IF(data!E141=SMALL(data!E141:'data'!E10139,1),data!A141,"")) -> 
W142: =IF(data!A142="","",IF(data!E142=SMALL(data!E142:'data'!E10140,1),data!A142,"")) -> 
W143: =IF(data!A143="","",IF(data!E143=SMALL(data!E143:'data'!E10141,1),data!A143,"")) -> 
W144: =IF(data!A144="","",IF(data!E144=SMALL(data!E144:'data'!E10142,1),data!A144,"")) -> 
W145: =IF(data!A145="","",IF(data!E145=SMALL(data!E145:'data'!E10143,1),data!A145,"")) -> 
W146: =IF(data!A146="","",IF(data!E146=SMALL(data!E146:'data'!E10144,1),data!A146,"")) -> 
W147: =IF(data!A147="","",IF(data!E147=SMALL(data!E147:'data'!E10145,1),data!A147,"")) -> 
W148: =IF(data!A148="","",IF(data!E148=SMALL(data!E148:'data'!E10146,1),data!A148,"")) -> 
W149: =IF(data!A149="","",IF(data!E149=SMALL(data!E149:'data'!E10147,1),data!A149,"")) -> 
W150: =IF(data!A150="","",IF(data!E150=SMALL(data!E150:'data'!E10148,1),data!A150,"")) -> 
W151: =IF(data!A151="","",IF(data!E151=SMALL(data!E151:'data'!E10149,1),data!A151,"")) -> 
W152: =IF(data!A152="","",IF(data!E152=SMALL(data!E152:'data'!E10150,1),data!A152,"")) -> 
W153: =IF(data!A153="","",IF(data!E153=SMALL(data!E153:'data'!E10151,1),data!A153,"")) -> 
W154: =IF(data!A154="","",IF(data!E154=SMALL(data!E154:'data'!E10152,1),data!A154,"")) -> 
W155: =IF(data!A155="","",IF(data!E155=SMALL(data!E155:'data'!E10153,1),data!A155,"")) -> 
W156: =IF(data!A156="","",IF(data!E156=SMALL(data!E156:'data'!E10154,1),data!A156,"")) -> 
W157: =IF(data!A157="","",IF(data!E157=SMALL(data!E157:'data'!E10155,1),data!A157,"")) -> 
W158: =IF(data!A158="","",IF(data!E158=SMALL(data!E158:'data'!E10156,1),data!A158,"")) -> 
W159: =IF(data!A159="","",IF(data!E159=SMALL(data!E159:'data'!E10157,1),data!A159,"")) -> 
W160: =IF(data!A160="","",IF(data!E160=SMALL(data!E160:'data'!E10158,1),data!A160,"")) -> 
W161: =IF(data!A161="","",IF(data!E161=SMALL(data!E161:'data'!E10159,1),data!A161,"")) -> 
W162: =IF(data!A162="","",IF(data!E162=SMALL(data!E162:'data'!E10160,1),data!A162,"")) -> 
W163: =IF(data!A163="","",IF(data!E163=SMALL(data!E163:'data'!E10161,1),data!A163,"")) -> 
W164: =IF(data!A164="","",IF(data!E164=SMALL(data!E164:'data'!E10162,1),data!A164,"")) -> 
W165: =IF(data!A165="","",IF(data!E165=SMALL(data!E165:'data'!E10163,1),data!A165,"")) -> 
W166: =IF(data!A166="","",IF(data!E166=SMALL(data!E166:'data'!E10164,1),data!A166,"")) -> 
W167: =IF(data!A167="","",IF(data!E167=SMALL(data!E167:'data'!E10165,1),data!A167,"")) -> 
W168: =IF(data!A168="","",IF(data!E168=SMALL(data!E168:'data'!E10166,1),data!A168,"")) -> 
W169: =IF(data!A169="","",IF(data!E169=SMALL(data!E169:'data'!E10167,1),data!A169,"")) -> 
W170: =IF(data!A170="","",IF(data!E170=SMALL(data!E170:'data'!E10168,1),data!A170,"")) -> 
W171: =IF(data!A171="","",IF(data!E171=SMALL(data!E171:'data'!E10169,1),data!A171,"")) -> 
W172: =IF(data!A172="","",IF(data!E172=SMALL(data!E172:'data'!E10170,1),data!A172,"")) -> 
W173: =IF(data!A173="","",IF(data!E173=SMALL(data!E173:'data'!E10171,1),data!A173,"")) -> 
W174: =IF(data!A174="","",IF(data!E174=SMALL(data!E174:'data'!E10172,1),data!A174,"")) -> 
W175: =IF(data!A175="","",IF(data!E175=SMALL(data!E175:'data'!E10173,1),data!A175,"")) -> 
W176: =IF(data!A176="","",IF(data!E176=SMALL(data!E176:'data'!E10174,1),data!A176,"")) -> 
W177: =IF(data!A177="","",IF(data!E177=SMALL(data!E177:'data'!E10175,1),data!A177,"")) -> 
W178: =IF(data!A178="","",IF(data!E178=SMALL(data!E178:'data'!E10176,1),data!A178,"")) -> 
W179: =IF(data!A179="","",IF(data!E179=SMALL(data!E179:'data'!E10177,1),data!A179,"")) -> 
W180: =IF(data!A180="","",IF(data!E180=SMALL(data!E180:'data'!E10178,1),data!A180,"")) -> 
W181: =IF(data!A181="","",IF(data!E181=SMALL(data!E181:'data'!E10179,1),data!A181,"")) -> 
W182: =IF(data!A182="","",IF(data!E182=SMALL(data!E182:'data'!E10180,1),data!A182,"")) -> 
W183: =IF(data!A183="","",IF(data!E183=SMALL(data!E183:'data'!E10181,1),data!A183,"")) -> 
W184: =IF(data!A184="","",IF(data!E184=SMALL(data!E184:'data'!E10182,1),data!A184,"")) -> 
W185: =IF(data!A185="","",IF(data!E185=SMALL(data!E185:'data'!E10183,1),data!A185,"")) -> 
W186: =IF(data!A186="","",IF(data!E186=SMALL(data!E186:'data'!E10184,1),data!A186,"")) -> 
W187: =IF(data!A187="","",IF(data!E187=SMALL(data!E187:'data'!E10185,1),data!A187,"")) -> 
W188: =IF(data!A188="","",IF(data!E188=SMALL(data!E188:'data'!E10186,1),data!A188,"")) -> 
W189: =IF(data!A189="","",IF(data!E189=SMALL(data!E189:'data'!E10187,1),data!A189,"")) -> 
W190: =IF(data!A190="","",IF(data!E190=SMALL(data!E190:'data'!E10188,1),data!A190,"")) -> 
W191: =IF(data!A191="","",IF(data!E191=SMALL(data!E191:'data'!E10189,1),data!A191,"")) -> 
W192: =IF(data!A192="","",IF(data!E192=SMALL(data!E192:'data'!E10190,1),data!A192,"")) -> 
W193: =IF(data!A193="","",IF(data!E193=SMALL(data!E193:'data'!E10191,1),data!A193,"")) -> 
W194: =IF(data!A194="","",IF(data!E194=SMALL(data!E194:'data'!E10192,1),data!A194,"")) -> 
W195: =IF(data!A195="","",IF(data!E195=SMALL(data!E195:'data'!E10193,1),data!A195,"")) -> 
W196: =IF(data!A196="","",IF(data!E196=SMALL(data!E196:'data'!E10194,1),data!A196,"")) -> 
W197: =IF(data!A197="","",IF(data!E197=SMALL(data!E197:'data'!E10195,1),data!A197,"")) -> 
W198: =IF(data!A198="","",IF(data!E198=SMALL(data!E198:'data'!E10196,1),data!A198,"")) -> 
W199: =IF(data!A199="","",IF(data!E199=SMALL(data!E199:'data'!E10197,1),data!A199,"")) -> 
W200: =IF(data!A200="","",IF(data!E200=SMALL(data!E200:'data'!E10198,1),data!A200,"")) -> 
W201: =IF(data!A201="","",IF(data!E201=SMALL(data!E201:'data'!E10199,1),data!A201,"")) -> 
... 2008 more rows

Sheet manual
A1: лист 'data":
B2: Столбец А - игровые дни, вводятся в формате дд.мм
B3: столбец B - бай-ин турнира
B4: столбец C - затраты на ребаи/аддон в турнире
B5: столбец D - призовые турнира
B6: столбцы E-I заполняются автоматически
B7: столбцы J-K нужны, если на турнир были проданы доли, J - процент проданной доли, K - кэф
B8: всё что правее столбца K трогать не надо, там ведутся расчеты
A9: лист 'statistics':
B10: первые табличка/график показывают результаты за определённый месяц, номер которого вводится в поле D3
B11: табличка выводит результаты сама, график нужно менять вручную, нажав на него правой кнопкой мыши, кликнуть "выбрать данные",
B12: и в "=data!$AB$2:$AB$127" поменять числа 2 и 127 на те, что отображаются в клетках C5 и M5 соответственно
B14: под этим графиком - итоговые результаты по всем данным из таблицы, с графиком то же самое, только второе число должно быть
B15: номером строки листа 'data', в которой введён последний сыгранный турнир
B17: правее этих графиков 2 таблички:
B18: первая считает статистику по вводимому в P3 бай-ину, можно вводить ">10" например,
B19: под ней график, который показывает картину на указанных лимитах, точно также надо менять данные,
B20: первое число это всегда "1", второе - количество турниров в соответствующем окошке выше
B21: вторая - только по ребайникам, аналогично по вводимому в P12 бай-ину
B23: в качестве примера оставляю первый месяц, когда я начал пользоваться этой таблицей.
B24: со всеми вопросами - ко мне в блог!
B26: by aJarov
